Body Name,Purpose of Expenditure ,Directorate ,Dr/Cr,Gross Amount,Beneficiary,Transaction Date
Nottinghamshire County Council,Activities & Support,"Children, Families & Cultural Services",Debit,136.76,poundstretcher 569,02/04/2015
Nottinghamshire County Council,Activities & Support,"Children, Families & Cultural Services",Debit,39.13,homebase ltd,02/04/2015
Nottinghamshire County Council,Catering Consumables,"Adult Social Care, Health & Public Protection ",Debit,15.00,timpson ltd,02/04/2015
Nottinghamshire County Council,Catering Consumables,"Adult Social Care, Health & Public Protection ",Debit,7.72,asda superstore,02/04/2015
Nottinghamshire County Council,Furniture,"Adult Social Care, Health & Public Protection ",Debit,160.00,priory carpets of work,02/04/2015
Nottinghamshire County Council,Activities & Support,"Children, Families & Cultural Services",Debit,3.00,intu victoria centre,02/04/2015
Nottinghamshire County Council,Activities & Support,"Children, Families & Cultural Services",Debit,3.88,mcdonalds rest.,02/04/2015
Nottinghamshire County Council,Activities & Support,"Children, Families & Cultural Services",Debit,7.79,sainsburys s/mkts,01/04/2015
Nottinghamshire County Council,Activities & Support,"Children, Families & Cultural Services",Debit,2.50,the range nottinghamsh,02/04/2015
Nottinghamshire County Council,Materials - External,Environment & Resources,Debit,9.98,the lockshop (sia) ltd,01/04/2015
Nottinghamshire County Council,Activities & Support,"Children, Families & Cultural Services",Debit,16.68,tesco stores 2702,02/04/2015
Nottinghamshire County Council,Activities & Support,"Children, Families & Cultural Services",Debit,15.02,fast key services,01/04/2015
Nottinghamshire County Council,Provisions,"Children, Families & Cultural Services",Debit,74.60,sainsburys smkt,01/04/2015
Nottinghamshire County Council,Materials - External,Environment & Resources,Debit,157.97,frank key (notts) ltd,02/04/2015
Nottinghamshire County Council,Trees & Hedges,Environment & Resources,Debit,416.93,severn trent water,02/04/2015
Nottinghamshire County Council,Building Maintenance,Environment & Resources,Debit,90.47,edmundson electrical,02/04/2015
Nottinghamshire County Council,Office / General Equipment,Environment & Resources,Debit,79.58,amazon uk retail,02/04/2015
Nottinghamshire County Council,Personal Needs,"Children, Families & Cultural Services",Debit,15.00,b  q,02/04/2015
Nottinghamshire County Council,Personal Needs,"Children, Families & Cultural Services",Debit,76.90,amazon svcs europesar,01/04/2015
Nottinghamshire County Council,Personal Needs,"Children, Families & Cultural Services",Debit,39.96,amazon uk marketplace,02/04/2015
Nottinghamshire County Council,Personal Needs,"Children, Families & Cultural Services",Debit,24.99,maplin nottingham ng1,02/04/2015
Nottinghamshire County Council,Personal Needs,"Children, Families & Cultural Services",Debit,90.71,argos ltd,02/04/2015
Nottinghamshire County Council,Personal Needs,"Children, Families & Cultural Services",Debit,19.16,amazon uk marketplace,02/04/2015
Nottinghamshire County Council,Activities & Support,"Adult Social Care, Health & Public Protection ",Debit,176.74,js online grocery,02/04/2015
Nottinghamshire County Council,Office / General Equipment,"Children, Families & Cultural Services",Debit,85.49,argos ltd,01/04/2015
Nottinghamshire County Council,Personal Needs,"Children, Families & Cultural Services",Debit,37.40,tesco stores 5379,01/04/2015
Nottinghamshire County Council,Activities & Support,"Children, Families & Cultural Services",Debit,13.89,b  m retail,01/04/2015
Nottinghamshire County Council,Activities & Support,"Children, Families & Cultural Services",Debit,3.00,co-op group 011261,01/04/2015
Nottinghamshire County Council,Activities & Support,"Children, Families & Cultural Services",Debit,7.12,aldi,02/04/2015
Nottinghamshire County Council,Activities & Support,"Children, Families & Cultural Services",Debit,11.98,amazon uk retail,02/04/2015
Nottinghamshire County Council,Activities & Support,"Children, Families & Cultural Services",Debit,48.92,wilko retail limit,01/04/2015
Nottinghamshire County Council,Activities & Support,"Children, Families & Cultural Services",Debit,23.98,the range nottinghamsh,01/04/2015
Nottinghamshire County Council,Activities & Support,"Children, Families & Cultural Services",Debit,11.90,[Redacted],01/04/2015
Nottinghamshire County Council,Activities & Support,"Children, Families & Cultural Services",Debit,16.84,asda stores 4476,02/04/2015
Nottinghamshire County Council,Provisions,"Children, Families & Cultural Services",Debit,2.28,mcdonalds rest.,02/04/2015
Nottinghamshire County Council,Road Tax,Environment & Resources,Debit,227.50,www.dvla.gov.uk,02/04/2015
Nottinghamshire County Council,Road Tax,Environment & Resources,Debit,227.50,www.dvla.gov.uk,02/04/2015
Nottinghamshire County Council,Road Tax,Environment & Resources,Debit,227.50,www.dvla.gov.uk,02/04/2015
Nottinghamshire County Council,Activities & Support,"Children, Families & Cultural Services",Debit,30.09,asda superstore 04261,02/04/2015
Nottinghamshire County Council,Teaching Equipment,"Children, Families & Cultural Services",Debit,42.50,hitch n hike,01/04/2015
Nottinghamshire County Council,Materials - External,Environment & Resources,Debit,162.38,frank key (notts) ltd,02/04/2015
Nottinghamshire County Council,Aftercare - Equipment,"Children, Families & Cultural Services",Debit,39.00,tesco stores 5329,02/04/2015
Nottinghamshire County Council,Aftercare - Equipment,"Children, Families & Cultural Services",Debit,7.00,tesco stores 2964,02/04/2015
Nottinghamshire County Council,Materials - External,Environment & Resources,Debit,67.77,geo hansonsons(huckna,02/04/2015
Nottinghamshire County Council,Other Fee's & Services,"Children, Families & Cultural Services",Debit,11.00,nottingham city co,02/04/2015
Nottinghamshire County Council,Activities & Support,"Children, Families & Cultural Services",Debit,39.40,tesco stores 5437,01/04/2015
Nottinghamshire County Council,Personal Needs,"Children, Families & Cultural Services",Debit,15.00,new look 2015,01/04/2015
Nottinghamshire County Council,Activities & Support,"Children, Families & Cultural Services",Debit,5.59,co-op group 070325,02/04/2015
Nottinghamshire County Council,Minor Works,"Children, Families & Cultural Services",Debit,184.61,argos ltd,01/04/2015
Nottinghamshire County Council,Minor Works,"Children, Families & Cultural Services",Debit,416.66,argos ltd,01/04/2015
Nottinghamshire County Council,Minor Works,"Children, Families & Cultural Services",Debit,29.95,amazon uk retail,02/04/2015
Nottinghamshire County Council,Fuel - Petrol,"Children, Families & Cultural Services",Debit,23.84,shell leeming lane,02/04/2015
Nottinghamshire County Council,Personal Needs,"Children, Families & Cultural Services",Debit,48.99,next directory,02/04/2015
Nottinghamshire County Council,Personal Needs,"Children, Families & Cultural Services",Debit,37.50,wilko.com,02/04/2015
Nottinghamshire County Council,Activities & Support,"Children, Families & Cultural Services",Debit,145.50,tv licensing,01/04/2015
Nottinghamshire County Council,Materials - External,Environment & Resources,Debit,25.68,city electrical fa,01/04/2015
Nottinghamshire County Council,Materials - External,Environment & Resources,Debit,26.71,city electrical fa,01/04/2015
Nottinghamshire County Council,Materials - External,Environment & Resources,Debit,15.43,city electrical fa,01/04/2015
Nottinghamshire County Council,Office / General Equipment,Environment & Resources,Debit,30.00,savoy cinemas work,01/04/2015
Nottinghamshire County Council,Office / General Equipment,Environment & Resources,Debit,191.36,www.extensive.co.uk,02/04/2015
Nottinghamshire County Council,Building Maintenance,Environment & Resources,Debit,9.25,wilko retail limit,01/04/2015
Nottinghamshire County Council,Aftercare - Equipment,"Children, Families & Cultural Services",Debit,78.44,tesco insurance,01/04/2015
Nottinghamshire County Council,Aftercare - Equipment,"Children, Families & Cultural Services",Debit,108.89,argos ltd,01/04/2015
Nottinghamshire County Council,Personal Needs,"Children, Families & Cultural Services",Debit,41.37,nottinghamshire ymca,01/04/2015
Nottinghamshire County Council,Aftercare - Equipment,"Children, Families & Cultural Services",Debit,39.50,tesco direct,02/04/2015
Nottinghamshire County Council,Aftercare - Equipment,"Children, Families & Cultural Services",Debit,139.99,currys online,02/04/2015
Nottinghamshire County Council,Materials - External,Environment & Resources,Debit,91.02,keyline ashfield,01/04/2015
Nottinghamshire County Council,Activities & Support,"Children, Families & Cultural Services",Debit,12.78,tesco stores 5437,01/04/2015
Nottinghamshire County Council,Activities & Support,"Children, Families & Cultural Services",Debit,4.00,poundland ltd 1333,01/04/2015
Nottinghamshire County Council,Activities & Support,"Children, Families & Cultural Services",Debit,329.99,game retail ltd mansf,02/04/2015
Nottinghamshire County Council,Minor Works,"Children, Families & Cultural Services",Debit,142.00,wickes mansfield,01/04/2015
Nottinghamshire County Council,Minor Works,"Children, Families & Cultural Services",Debit,15.00,fat boys,01/04/2015
Nottinghamshire County Council,Office / General Equipment,"Adult Social Care, Health & Public Protection ",Debit,133.19,amazon uk retail,02/04/2015
Nottinghamshire County Council,Activities & Support,"Children, Families & Cultural Services",Debit,3.00,tesco stores 2702,01/04/2015
Nottinghamshire County Council,Provisions,"Adult Social Care, Health & Public Protection ",Debit,4.95,bm retail,02/04/2015
Nottinghamshire County Council,Provisions,"Adult Social Care, Health & Public Protection ",Debit,28.34,moorcroft seafoods ltd,02/04/2015
Nottinghamshire County Council,Provisions,"Adult Social Care, Health & Public Protection ",Debit,9.00,iceland,02/04/2015
Nottinghamshire County Council,Cleaning & Domestic Equipment,"Adult Social Care, Health & Public Protection ",Debit,14.58,amazon uk marketplace,01/04/2015
Nottinghamshire County Council,Cleaning & Domestic Equipment,"Adult Social Care, Health & Public Protection ",Debit,21.60,amazon uk marketplace,01/04/2015
Nottinghamshire County Council,Cleaning & Domestic Equipment,"Adult Social Care, Health & Public Protection ",Debit,5.56,amazon svcs europesar,01/04/2015
Nottinghamshire County Council,Cleaning & Domestic Equipment,"Adult Social Care, Health & Public Protection ",Debit,41.71,amazon svcs europesar,02/04/2015
Nottinghamshire County Council,Personal Needs,"Children, Families & Cultural Services",Debit,29.67,sainsburys s/mkts,01/04/2015
Nottinghamshire County Council,Fixtures & Fittings,"Children, Families & Cultural Services",Debit,8.30,sainsburys s/mkts,01/04/2015
Nottinghamshire County Council,Activities & Support,"Children, Families & Cultural Services",Debit,10.49,sainsburys s/mkts,01/04/2015
Nottinghamshire County Council,Activities & Support,"Children, Families & Cultural Services",Debit,3.00,sainsburys s/mkts,02/04/2015
Nottinghamshire County Council,Office / General Equipment,"Children, Families & Cultural Services",Debit,6.99,dunelm ltd,01/04/2015
Nottinghamshire County Council,Postages,Resources,Debit,18.61,amazon uk retail,02/04/2015
Nottinghamshire County Council,Other Fee's & Services,"Policy, Planning & Corporate Services",Debit,350.00,intellectual prop. ofc,02/04/2015
Nottinghamshire County Council,Other Fee's & Services,"Policy, Planning & Corporate Services",Debit,350.00,intellectual prop. ofc,02/04/2015
Nottinghamshire County Council,Other Fee's & Services,"Policy, Planning & Corporate Services",Debit,350.00,intellectual prop. ofc,02/04/2015
Nottinghamshire County Council,Personal Needs,"Children, Families & Cultural Services",Debit,21.50,www.svmcards.com,02/04/2015
Nottinghamshire County Council,Aftercare Lodging/Hostel,"Children, Families & Cultural Services",Debit,45.00,the stage hotel,01/04/2015
Nottinghamshire County Council,Student Subsistence,"Children, Families & Cultural Services",Debit,50.00,www.trentbarton.co.uk,02/04/2015
Nottinghamshire County Council,Personal Needs,"Children, Families & Cultural Services",Debit,89.25,www.nottinghamcity.gov,02/04/2015
Nottinghamshire County Council,Provisions,Environment & Resources,Debit,6.99,iceland,02/04/2015
Nottinghamshire County Council,Activities & Support,"Children, Families & Cultural Services",Debit,20.41,aldi,01/04/2015
Nottinghamshire County Council,Activities & Support,"Children, Families & Cultural Services",Debit,38.11,tesco stores 5379,02/04/2015
Nottinghamshire County Council,Postages,"Adult Social Care, Health & Public Protection ",Debit,10.74,nationality directorat,02/04/2015
Nottinghamshire County Council,Postages,"Adult Social Care, Health & Public Protection ",Debit,126.00,post office counter,02/04/2015
Nottinghamshire County Council,Office / General Equipment,Environment & Resources,Debit,6.45,post office counter,01/04/2015
Nottinghamshire County Council,Office / General Equipment,Environment & Resources,Debit,359.99,www.avpartmaster.net,02/04/2015
Nottinghamshire County Council,Provisions,Environment & Resources,Debit,16.58,asda superstore 04030,01/04/2015
Nottinghamshire County Council,Provisions,Environment & Resources,Debit,148.31,makro self service notti,02/04/2015
Nottinghamshire County Council,Personal Needs,"Children, Families & Cultural Services",Debit,5.99,netflix.com,01/04/2015
Nottinghamshire County Council,Grounds Maintenance,"Children, Families & Cultural Services",Debit,18.85,amazon svcs europesar,02/04/2015
Nottinghamshire County Council,Activities & Support,"Children, Families & Cultural Services",Debit,24.27,asda superstore 04030,02/04/2015
Nottinghamshire County Council,Office / General Equipment,Environment & Resources,Debit,26.70,1st access,02/04/2015
Nottinghamshire County Council,Cleaning Materials,"Adult Social Care, Health & Public Protection ",Debit,9.00,w boyes  co ltd kirkb,01/04/2015
Nottinghamshire County Council,Provisions,"Adult Social Care, Health & Public Protection ",Debit,8.94,w m morrison plc,01/04/2015
Nottinghamshire County Council,Cleaning & Domestic Equipment,"Adult Social Care, Health & Public Protection ",Debit,3.35,w boyes  co ltd kirkb,02/04/2015
Nottinghamshire County Council,Provisions,"Adult Social Care, Health & Public Protection ",Debit,4.00,w m morrison plc,02/04/2015
Nottinghamshire County Council,Provisions,"Adult Social Care, Health & Public Protection ",Debit,86.95,tesco stores 3297,02/04/2015
Nottinghamshire County Council,Office / General Equipment,"Children, Families & Cultural Services",Debit,5.98,poundstretcher - 669,01/04/2015
Nottinghamshire County Council,Provisions,"Children, Families & Cultural Services",Debit,12.60,tesco stores 5437,01/04/2015
Nottinghamshire County Council,Provisions,"Adult Social Care, Health & Public Protection ",Debit,190.37,w m morrisons.com,02/04/2015
Nottinghamshire County Council,Stationery,Environment & Resources,Debit,"2,520.00",royal mail,01/04/2015
Nottinghamshire County Council,Stationery,Environment & Resources,Debit,2.05,post office counter,02/04/2015
Nottinghamshire County Council,Advertising & Marketing,"Policy, Planning & Corporate Services",Debit,5.20,linkedin,01/04/2015
Nottinghamshire County Council,Office / General Equipment,"Policy, Planning & Corporate Services",Debit,27.94,fontdeck,01/04/2015
Nottinghamshire County Council,Activities & Support,"Adult Social Care, Health & Public Protection ",Debit,78.20,amazon uk retail,02/04/2015
Nottinghamshire County Council,Aftercare - Equipment,"Children, Families & Cultural Services",Debit,37.99,argos ltd,01/04/2015
Nottinghamshire County Council,Activities & Support,"Children, Families & Cultural Services",Debit,145.45,argos ltd,07/04/2015
Nottinghamshire County Council,Personal Needs,"Children, Families & Cultural Services",Debit,15.87,amazon svcs europesar,01/05/2015
Nottinghamshire County Council,Cleaning & Domestic Equipment,"Children, Families & Cultural Services",Debit,5.04,amazon svcs europesar,01/05/2015
Nottinghamshire County Council,Personal Needs,"Children, Families & Cultural Services",Debit,5.24,amazon uk retail,01/05/2015
Nottinghamshire County Council,Cleaning & Domestic Equipment,"Children, Families & Cultural Services",Debit,58.30,amazon svcs europesar,29/04/2015
Nottinghamshire County Council,Office / General Equipment,"Children, Families & Cultural Services",Debit,27.99,amazon svcs europesar,29/04/2015
Nottinghamshire County Council,Personal Needs,"Children, Families & Cultural Services",Debit,31.74,amazon svcs europesar,25/04/2015
Nottinghamshire County Council,Staff Training,"Children, Families & Cultural Services",Debit,72.00,wp-the virtual col,23/04/2015
Nottinghamshire County Council,Laundry & Dry Cleaning,"Children, Families & Cultural Services",Debit,20.15,amazon svcs europesar,22/04/2015
Nottinghamshire County Council,Aids & Appliances,"Children, Families & Cultural Services",Debit,56.34,amazon svcs europesar,17/04/2015
Nottinghamshire County Council,Office / General Equipment,"Children, Families & Cultural Services",Debit,31.50,newark  sherwood lock,17/04/2015
Nottinghamshire County Council,Personal Needs,"Children, Families & Cultural Services",Debit,38.35,amazon svcs europesar,17/04/2015
Nottinghamshire County Council,Personal Needs,"Children, Families & Cultural Services",Debit,15.75,amazon uk marketplace,16/04/2015
Nottinghamshire County Council,Personal Needs,"Children, Families & Cultural Services",Debit,27.00,amazon uk retail,16/04/2015
Nottinghamshire County Council,Aids & Appliances,"Children, Families & Cultural Services",Debit,71.00,product support ag,16/04/2015
Nottinghamshire County Council,Aids & Appliances,"Children, Families & Cultural Services",Debit,12.36,amazon svcs europesar,15/04/2015
Nottinghamshire County Council,Catering Consumables,"Adult Social Care, Health & Public Protection ",Debit,5.58,b  q,13/04/2015
Nottinghamshire County Council,Catering Consumables,"Adult Social Care, Health & Public Protection ",Debit,3.94,b  q,13/04/2015
Nottinghamshire County Council,Catering Consumables,"Adult Social Care, Health & Public Protection ",Debit,3.94,b  q,13/04/2015
Nottinghamshire County Council,Catering Consumables,"Adult Social Care, Health & Public Protection ",Debit,3.94,b  q,13/04/2015
Nottinghamshire County Council,Catering Consumables,"Adult Social Care, Health & Public Protection ",Debit,4.28,b  q,13/04/2015
Nottinghamshire County Council,Catering Consumables,"Adult Social Care, Health & Public Protection ",Debit,3.94,b  q,13/04/2015
Nottinghamshire County Council,Catering Consumables,"Adult Social Care, Health & Public Protection ",Debit,14.85,b  q,13/04/2015
Nottinghamshire County Council,Catering Consumables,"Adult Social Care, Health & Public Protection ",Debit,11.68,b  q,08/04/2015
Nottinghamshire County Council,Catering Consumables,"Adult Social Care, Health & Public Protection ",Debit,1.87,b  q,08/04/2015
Nottinghamshire County Council,Catering Consumables,"Adult Social Care, Health & Public Protection ",Debit,1.33,b  q,08/04/2015
Nottinghamshire County Council,Catering Consumables,"Adult Social Care, Health & Public Protection ",Debit,1.15,b  q,08/04/2015
Nottinghamshire County Council,Catering Consumables,"Adult Social Care, Health & Public Protection ",Debit,12.51,asda superstore,28/04/2015
Nottinghamshire County Council,Catering Consumables,"Adult Social Care, Health & Public Protection ",Debit,25.35,[Redacted],28/04/2015
Nottinghamshire County Council,Catering Consumables,"Adult Social Care, Health & Public Protection ",Debit,14.00,timpson ltd,23/04/2015
Nottinghamshire County Council,Catering Consumables,"Adult Social Care, Health & Public Protection ",Debit,18.63,wickes,21/04/2015
Nottinghamshire County Council,Catering Consumables,"Adult Social Care, Health & Public Protection ",Debit,19.70,sainsburys smkt,21/04/2015
Nottinghamshire County Council,Catering Consumables,"Adult Social Care, Health & Public Protection ",Debit,2.50,asda superstore,16/04/2015
Nottinghamshire County Council,Catering Consumables,"Adult Social Care, Health & Public Protection ",Debit,15.74,wilko retail limit,16/04/2015
Nottinghamshire County Council,Catering Consumables,"Adult Social Care, Health & Public Protection ",Debit,3.00,asda superstore,13/04/2015
Nottinghamshire County Council,Catering Consumables,"Adult Social Care, Health & Public Protection ",Debit,14.96,amazon svcs europesar,10/04/2015
Nottinghamshire County Council,Catering Consumables,"Adult Social Care, Health & Public Protection ",Debit,4.05,asda superstore,10/04/2015
Nottinghamshire County Council,Catering Consumables,"Adult Social Care, Health & Public Protection ",Debit,5.00,osbornes newark,11/04/2015
Nottinghamshire County Council,Catering Consumables,"Adult Social Care, Health & Public Protection ",Debit,53.29,amazon svcs europesar,09/04/2015
Nottinghamshire County Council,Catering Consumables,"Adult Social Care, Health & Public Protection ",Debit,29.18,wilko retail limit,09/04/2015
Nottinghamshire County Council,Catering Consumables,"Adult Social Care, Health & Public Protection ",Debit,22.50,sainsburys s/mkts,07/04/2015
Nottinghamshire County Council,Office / General Equipment,"Children, Families & Cultural Services",Debit,24.00,tesco store 2571,03/05/2015
Nottinghamshire County Council,Teaching Equipment,"Children, Families & Cultural Services",Debit,93.00,cluson engineering,29/04/2015
Nottinghamshire County Council,Provisions,"Children, Families & Cultural Services",Debit,18.00,wp-the virtual col,21/04/2015
Nottinghamshire County Council,Training Fees,"Adult Social Care, Health & Public Protection ",Debit,50.00,paypal  ,14/04/2015
Nottinghamshire County Council,Staff Training,"Adult Social Care, Health & Public Protection ",Debit,180.00,cieh limited,24/04/2015
Nottinghamshire County Council,Staff Training,"Adult Social Care, Health & Public Protection ",Debit,180.00,cieh limited,24/04/2015
Nottinghamshire County Council,Fuel - Diesel,"Adult Social Care, Health & Public Protection ",Debit,30.00,tesco pfs 4140,22/04/2015
Nottinghamshire County Council,Furniture,"Adult Social Care, Health & Public Protection ",Debit,69.00,priory carpets of work,29/04/2015
Nottinghamshire County Council,Fixtures & Fittings,"Adult Social Care, Health & Public Protection ",Debit,31.20,amazon uk marketplace,28/04/2015
Nottinghamshire County Council,Provisions,"Adult Social Care, Health & Public Protection ",Debit,148.95,asda home shopping,27/04/2015
Nottinghamshire County Council,Fixtures & Fittings,"Adult Social Care, Health & Public Protection ",Debit,46.79,amazon uk marketplace,28/04/2015
Nottinghamshire County Council,Vehicles Repairs & Maintenance,"Adult Social Care, Health & Public Protection ",Debit,136.50,automobile association,23/04/2015
Nottinghamshire County Council,Provisions,"Adult Social Care, Health & Public Protection ",Debit,50.44,asda home shopping,23/04/2015
Nottinghamshire County Council,Provisions,"Adult Social Care, Health & Public Protection ",Credit,-11.73,asda home shopping,20/04/2015
Nottinghamshire County Council,Aids & Appliances,"Adult Social Care, Health & Public Protection ",Debit,120.00,silvalea textiles,21/04/2015
Nottinghamshire County Council,Aids & Appliances,"Adult Social Care, Health & Public Protection ",Debit,119.09,www.unwin-safety.com,21/04/2015
Nottinghamshire County Council,Provisions,"Adult Social Care, Health & Public Protection ",Debit,205.55,asda home shopping,20/04/2015
Nottinghamshire County Council,Cleaning Materials,"Adult Social Care, Health & Public Protection ",Debit,65.04,caterclean supplies,16/04/2015
Nottinghamshire County Council,Protective Clothing,"Adult Social Care, Health & Public Protection ",Debit,17.98,alexandra website,15/04/2015
Nottinghamshire County Council,Provisions,"Adult Social Care, Health & Public Protection ",Debit,152.95,asda home shopping,13/04/2015
Nottinghamshire County Council,Activities & Support,"Adult Social Care, Health & Public Protection ",Debit,55.79,amazon svcs europesar,07/04/2015
Nottinghamshire County Council,Provisions,"Adult Social Care, Health & Public Protection ",Debit,149.42,asda home shopping,06/04/2015
Nottinghamshire County Council,Activities & Support,"Children, Families & Cultural Services",Debit,63.15,asda superstore,21/04/2015
Nottinghamshire County Council,Activities & Support,"Children, Families & Cultural Services",Debit,44.00,asda superstore,21/04/2015
Nottinghamshire County Council,Activities & Support,"Children, Families & Cultural Services",Debit,17.70,farmfoods limited,15/04/2015
Nottinghamshire County Council,Activities & Support,"Children, Families & Cultural Services",Debit,2.00,co-op group 011001,30/04/2015
Nottinghamshire County Council,Activities & Support,"Children, Families & Cultural Services",Debit,5.00,xercise 4 less nottingha,30/04/2015
Nottinghamshire County Council,Activities & Support,"Children, Families & Cultural Services",Debit,5.00,showcase cinemas,16/04/2015
Nottinghamshire County Council,Activities & Support,"Children, Families & Cultural Services",Debit,21.45,showcase cinemas,16/04/2015
Nottinghamshire County Council,Activities & Support,"Children, Families & Cultural Services",Debit,100.00,odeon,29/04/2015
Nottinghamshire County Council,Activities & Support,"Children, Families & Cultural Services",Debit,16.48,asda stores 4473,15/04/2015
Nottinghamshire County Council,Activities & Support,"Children, Families & Cultural Services",Debit,20.04,tesco stores 2995,14/04/2015
Nottinghamshire County Council,Stationery,"Children, Families & Cultural Services",Debit,124.80,the microfilm shop,15/04/2015
Nottinghamshire County Council,Stationery,"Children, Families & Cultural Services",Debit,124.80,the microfilm shop,07/04/2015
Nottinghamshire County Council,Activities & Support,"Children, Families & Cultural Services",Debit,23.44,amazon svcs europesar,02/05/2015
Nottinghamshire County Council,Activities & Support,"Children, Families & Cultural Services",Debit,3.90,amazon svcs europesar,02/05/2015
Nottinghamshire County Council,Activities & Support,"Children, Families & Cultural Services",Debit,6.99,amazon svcs europesar,01/05/2015
Nottinghamshire County Council,Activities & Support,"Children, Families & Cultural Services",Debit,12.72,asda superstore,02/05/2015
Nottinghamshire County Council,Activities & Support,"Children, Families & Cultural Services",Debit,24.49,amazon svcs europesar,02/05/2015
Nottinghamshire County Council,Activities & Support,"Children, Families & Cultural Services",Debit,23.14,amazon uk retail,02/05/2015
Nottinghamshire County Council,Activities & Support,"Children, Families & Cultural Services",Debit,19.96,amazon uk marketplace,17/04/2015
Nottinghamshire County Council,Activities & Support,"Children, Families & Cultural Services",Debit,12.39,amazon svcs europesar,17/04/2015
Nottinghamshire County Council,Activities & Support,"Children, Families & Cultural Services",Debit,3.85,amazon svcs europesar,17/04/2015
Nottinghamshire County Council,Activities & Support,"Children, Families & Cultural Services",Debit,17.49,amazon svcs europesar,17/04/2015
Nottinghamshire County Council,Activities & Support,"Children, Families & Cultural Services",Debit,4.69,amazon svcs europesar,16/04/2015
Nottinghamshire County Council,Activities & Support,"Children, Families & Cultural Services",Debit,5.95,amazon svcs europesar,16/04/2015
Nottinghamshire County Council,Activities & Support,"Children, Families & Cultural Services",Debit,8.35,sainsburys local,10/04/2015
Nottinghamshire County Council,Activities & Support,"Children, Families & Cultural Services",Debit,9.34,aldi,09/04/2015
Nottinghamshire County Council,Activities & Support,"Children, Families & Cultural Services",Debit,16.49,aldi,08/04/2015
Nottinghamshire County Council,Activities & Support,"Children, Families & Cultural Services",Debit,49.95,staples uk,03/04/2015
Nottinghamshire County Council,Materials - External,Environment & Resources,Debit,26.42,jwl architectural iron,29/04/2015
Nottinghamshire County Council,Materials - External,Environment & Resources,Debit,177.43,jwl architectural iron,07/04/2015
Nottinghamshire County Council,Materials - External,Environment & Resources,Debit,99.88,arco ltd,01/05/2015
Nottinghamshire County Council,Materials - External,Environment & Resources,Debit,18.48,frank key (notts) ltd,30/04/2015
Nottinghamshire County Council,Materials - External,Environment & Resources,Debit,20.92,midland fixings group,29/04/2015
Nottinghamshire County Council,Materials - External,Environment & Resources,Debit,69.54,midland fixings group,29/04/2015
Nottinghamshire County Council,Materials - External,Environment & Resources,Debit,101.38,frank key (notts) ltd,21/04/2015
Nottinghamshire County Council,Materials - External,Environment & Resources,Debit,5.98,staples uk,21/04/2015
Nottinghamshire County Council,Materials - External,Environment & Resources,Debit,94.99,argos ltd,21/04/2015
Nottinghamshire County Council,Materials - External,Environment & Resources,Debit,59.95,john a stephens,17/04/2015
Nottinghamshire County Council,Materials - External,Environment & Resources,Debit,54.20,lee glass and glazing,24/04/2015
Nottinghamshire County Council,Materials - External,Environment & Resources,Debit,52.50,robert m sansom plant lt,20/04/2015
Nottinghamshire County Council,Other Fee's & Services,Environment & Resources,Credit,-115.00,dsa,29/04/2015
Nottinghamshire County Council,Other Fee's & Services,Environment & Resources,Debit,118.34,http://www.rtitb.co.uk/,28/04/2015
Nottinghamshire County Council,Other Fee's & Services,Environment & Resources,Credit,-24.00,dsa theory test,21/04/2015
Nottinghamshire County Council,Other Fee's & Services,Environment & Resources,Debit,128.00,dsa theory test,21/04/2015
Nottinghamshire County Council,Other Fee's & Services,Environment & Resources,Debit,138.06,http://www.rtitb.co.uk/,14/04/2015
Nottinghamshire County Council,Other Fee's & Services,Environment & Resources,Debit,115.00,dsa,08/04/2015
Nottinghamshire County Council,Office / General Equipment,"Children, Families & Cultural Services",Debit,81.19,www.gear4music.com,14/04/2015
Nottinghamshire County Council,Office / General Equipment,"Children, Families & Cultural Services",Debit,188.98,www.gear4music.com,09/04/2015
Nottinghamshire County Council,Office / General Equipment,"Children, Families & Cultural Services",Debit,153.99,www.gear4music.com,08/04/2015
Nottinghamshire County Council,Office / General Equipment,"Children, Families & Cultural Services",Debit,64.76,www.thomann.de,08/04/2015
Nottinghamshire County Council,Office / General Equipment,"Children, Families & Cultural Services",Debit,79.00,robinsons furnitur,17/04/2015
Nottinghamshire County Council,Office / General Equipment,"Children, Families & Cultural Services",Debit,14.98,www espares co uk,15/04/2015
Nottinghamshire County Council,Aftercare - Equipment,"Children, Families & Cultural Services",Debit,268.16,asda superstore 04261,30/04/2015
Nottinghamshire County Council,Aftercare - Equipment,"Children, Families & Cultural Services",Debit,110.50,asda superstore,30/04/2015
Nottinghamshire County Council,Minor Works,"Children, Families & Cultural Services",Debit,4.37,tesco stores 2702,30/04/2015
Nottinghamshire County Council,Minor Works,"Children, Families & Cultural Services",Debit,3.29,sainsburys s/mkt,28/04/2015
Nottinghamshire County Council,Minor Works,"Children, Families & Cultural Services",Debit,2.00,tesco stores 5359,23/04/2015
Nottinghamshire County Council,Minor Works,"Children, Families & Cultural Services",Debit,2.48,tesco stores 2995,21/04/2015
Nottinghamshire County Council,Minor Works,"Children, Families & Cultural Services",Debit,3.31,tesco stores 2702,16/04/2015
Nottinghamshire County Council,Minor Works,"Children, Families & Cultural Services",Debit,196.80,robert m sansom plant lt,15/04/2015
Nottinghamshire County Council,Minor Works,"Children, Families & Cultural Services",Debit,77.81,frank key (notts) ltd,15/04/2015
Nottinghamshire County Council,Minor Works,"Children, Families & Cultural Services",Credit,-5.00,robert m sansom plant lt,13/04/2015
Nottinghamshire County Council,Minor Works,"Children, Families & Cultural Services",Debit,5.55,tesco pfs 4083,13/04/2015
Nottinghamshire County Council,Minor Works,"Children, Families & Cultural Services",Credit,-14.00,robert m sansom plant lt,13/04/2015
Nottinghamshire County Council,Minor Works,"Children, Families & Cultural Services",Debit,9.70,w m morrisons,13/04/2015
Nottinghamshire County Council,Minor Works,"Children, Families & Cultural Services",Debit,30.00,wickes bulwell,13/04/2015
Nottinghamshire County Council,Minor Works,"Children, Families & Cultural Services",Debit,5.56,morrison petrol,10/04/2015
Nottinghamshire County Council,Minor Works,"Children, Families & Cultural Services",Debit,5.76,frank key (notts) ltd,09/04/2015
Nottinghamshire County Council,Minor Works,"Children, Families & Cultural Services",Debit,0.49,tesco stores 2702,09/04/2015
Nottinghamshire County Council,Minor Works,"Children, Families & Cultural Services",Debit,50.00,robert m sansom plant lt,09/04/2015
Nottinghamshire County Council,Minor Works,"Children, Families & Cultural Services",Debit,50.00,robert m sansom plant lt,09/04/2015
Nottinghamshire County Council,Minor Works,"Children, Families & Cultural Services",Debit,3.58,wickes bulwell,07/04/2015
Nottinghamshire County Council,Minor Works,"Children, Families & Cultural Services",Debit,7.26,tesco stores 2702,07/04/2015
Nottinghamshire County Council,Clients - H & S Equipt,"Children, Families & Cultural Services",Debit,35.40,sainsburys s/mkts,28/04/2015
Nottinghamshire County Council,Clients - H & S Equipt,"Children, Families & Cultural Services",Debit,15.00,sainsburys s/mkts,28/04/2015
Nottinghamshire County Council,Aftercare - Equipment,"Children, Families & Cultural Services",Debit,34.97,tk maxx,24/04/2015
Nottinghamshire County Council,Clients - H & S Equipt,"Children, Families & Cultural Services",Debit,9.60,43034760 costa coffee,24/04/2015
Nottinghamshire County Council,Clients - H & S Equipt,"Children, Families & Cultural Services",Debit,5.13,ncp limited,22/04/2015
Nottinghamshire County Council,Clients - H & S Equipt,"Children, Families & Cultural Services",Debit,5.45,costa coffee,22/04/2015
Nottinghamshire County Council,Clients - H & S Equipt,"Children, Families & Cultural Services",Debit,6.00,sainsburys s/mkts,15/04/2015
Nottinghamshire County Council,Clients - H & S Equipt,"Children, Families & Cultural Services",Debit,8.69,co-op group 010431,09/04/2015
Nottinghamshire County Council,Aftercare Lodging/Hostel,"Children, Families & Cultural Services",Debit,315.00,the stage hotel,08/04/2015
Nottinghamshire County Council,Activities & Support,"Children, Families & Cultural Services",Debit,11.55,amazon svcs europesar,30/04/2015
Nottinghamshire County Council,Activities & Support,"Children, Families & Cultural Services",Debit,6.25,amazon svcs europesar,30/04/2015
Nottinghamshire County Council,Activities & Support,"Children, Families & Cultural Services",Debit,25.99,amazon svcs europesar,29/04/2015
Nottinghamshire County Council,Activities & Support,"Children, Families & Cultural Services",Debit,9.76,amazon svcs europesar,29/04/2015
Nottinghamshire County Council,Activities & Support,"Children, Families & Cultural Services",Debit,39.90,amazon svcs europesar,29/04/2015
Nottinghamshire County Council,Activities & Support,"Children, Families & Cultural Services",Debit,7.11,amazon svcs europesar,29/04/2015
Nottinghamshire County Council,Activities & Support,"Children, Families & Cultural Services",Debit,13.94,amazon svcs europesar,28/04/2015
Nottinghamshire County Council,Activities & Support,"Children, Families & Cultural Services",Debit,13.98,amazon svcs europesar,28/04/2015
Nottinghamshire County Council,Activities & Support,"Children, Families & Cultural Services",Debit,2.35,ikea sacat,13/04/2015
Nottinghamshire County Council,Activities & Support,"Children, Families & Cultural Services",Debit,17.96,decathlon,13/04/2015
Nottinghamshire County Council,Activities & Support,"Children, Families & Cultural Services",Debit,19.42,sainsburys s/mkt,13/04/2015
Nottinghamshire County Council,Activities & Support,"Children, Families & Cultural Services",Debit,3.04,aldi,07/04/2015
Nottinghamshire County Council,Activities & Support,"Children, Families & Cultural Services",Debit,4.25,tesco stores 5379,30/04/2015
Nottinghamshire County Council,Activities & Support,"Children, Families & Cultural Services",Debit,1.00,tesco stores 2995,23/04/2015
Nottinghamshire County Council,Activities & Support,"Children, Families & Cultural Services",Debit,14.37,tesco stores 5379,17/04/2015
Nottinghamshire County Council,Activities & Support,"Children, Families & Cultural Services",Debit,10.74,asda stores 4474,08/04/2015
Nottinghamshire County Council,Activities & Support,"Children, Families & Cultural Services",Debit,73.88,asda superstore 04030,22/04/2015
Nottinghamshire County Council,Office / General Equipment,Environment & Resources,Debit,133.20,keyline ashfield,15/04/2015
Nottinghamshire County Council,Office / General Equipment,Environment & Resources,Debit,15.05,keyline ashfield,14/04/2015
Nottinghamshire County Council,Office / General Equipment,Environment & Resources,Debit,72.00,acorn signs  engraving,17/04/2015
Nottinghamshire County Council,Activities & Support,"Children, Families & Cultural Services",Debit,99.00,paypal  ,24/04/2015
Nottinghamshire County Council,Activities & Support,"Children, Families & Cultural Services",Debit,45.20,amazon svcs europesar,14/04/2015
Nottinghamshire County Council,Activities & Support,"Children, Families & Cultural Services",Debit,21.66,fast key services,07/04/2015
Nottinghamshire County Council,Activities & Support,"Children, Families & Cultural Services",Debit,9.50,the lockshop (sia) ltd,15/04/2015
Nottinghamshire County Council,Provisions,"Children, Families & Cultural Services",Debit,15.25,asda superstore,29/04/2015
Nottinghamshire County Council,Provisions,"Children, Families & Cultural Services",Debit,26.15,sainsburys smkt,27/04/2015
Nottinghamshire County Council,Provisions,"Children, Families & Cultural Services",Debit,4.40,sainsburys smkt,24/04/2015
Nottinghamshire County Council,Provisions,"Children, Families & Cultural Services",Debit,39.85,sainsburys smkt,21/04/2015
Nottinghamshire County Council,Provisions,"Children, Families & Cultural Services",Debit,15.86,sainsburys smkt,17/04/2015
Nottinghamshire County Council,Provisions,"Children, Families & Cultural Services",Debit,55.23,sainsburys smkt,13/04/2015
Nottinghamshire County Council,Provisions,"Children, Families & Cultural Services",Debit,10.80,asda superstore,10/04/2015
Nottinghamshire County Council,Provisions,"Children, Families & Cultural Services",Debit,18.16,sainsburys smkt,11/04/2015
Nottinghamshire County Council,Materials - External,Environment & Resources,Debit,27.70,jewson,04/04/2015
Nottinghamshire County Council,Materials - External,Environment & Resources,Debit,6.58,jewson,04/04/2015
Nottinghamshire County Council,Materials - External,Environment & Resources,Debit,12.29,jewson,04/04/2015
Nottinghamshire County Council,Materials - External,Environment & Resources,Debit,47.76,jewson,04/04/2015
Nottinghamshire County Council,Materials - External,Environment & Resources,Debit,41.45,arco ltd,08/04/2015
Nottinghamshire County Council,Materials - External,Environment & Resources,Debit,61.80,frank key (notts) ltd,03/04/2015
Nottinghamshire County Council,Staff Training,Environment & Resources,Debit,"1,134.00",wallingford hydros,01/05/2015
Nottinghamshire County Council,Staff Training,Environment & Resources,Debit,157.50,www.transportxtra.com,28/04/2015
Nottinghamshire County Council,Clothing/Shoes/Uniforms,"Children, Families & Cultural Services",Debit,19.98,tk maxx,10/04/2015
Nottinghamshire County Council,Clothing/Shoes/Uniforms,"Children, Families & Cultural Services",Debit,20.00,j d sports 621,10/04/2015
Nottinghamshire County Council,Clothing/Shoes/Uniforms,"Children, Families & Cultural Services",Debit,15.00,primark,10/04/2015
Nottinghamshire County Council,Office / General Equipment,"Adult Social Care, Health & Public Protection ",Debit,187.21,amazon uk retail,02/05/2015
Nottinghamshire County Council,Postages,"Children, Families & Cultural Services",Debit,24.96,the post office,29/04/2015
Nottinghamshire County Council,Office / General Equipment,"Children, Families & Cultural Services",Debit,43.20,hayman graphics,28/04/2015
Nottinghamshire County Council,Office / General Equipment,"Children, Families & Cultural Services",Debit,9.50,w boyes  co ltd,20/04/2015
Nottinghamshire County Council,Office / General Equipment,"Children, Families & Cultural Services",Debit,3.78,w boyes  co ltd,20/04/2015
Nottinghamshire County Council,Postages,"Children, Families & Cultural Services",Debit,2.80,the post office,09/04/2015
Nottinghamshire County Council,Stationery,"Children, Families & Cultural Services",Debit,59.50,connect,08/04/2015
Nottinghamshire County Council,Building Maintenance,Environment & Resources,Debit,18.41,newey  eyre,21/04/2015
Nottinghamshire County Council,Building Maintenance,Environment & Resources,Debit,11.66,city electrical fa,13/04/2015
Nottinghamshire County Council,Building Maintenance,Environment & Resources,Debit,5.89,newey  eyre,09/04/2015
Nottinghamshire County Council,Building Maintenance,Environment & Resources,Debit,38.88,eyre  elliston ltd,02/04/2015
Nottinghamshire County Council,Office / General Equipment,Place ,Debit,27.94,amazon svcs europesar,24/04/2015
Nottinghamshire County Council,Office / General Equipment,Place ,Debit,59.98,amazon svcs europesar,22/04/2015
Nottinghamshire County Council,Personal Needs,"Children, Families & Cultural Services",Debit,27.54,space kraft ltd,27/04/2015
Nottinghamshire County Council,Personal Needs,"Children, Families & Cultural Services",Debit,129.50,handicare accessabilit,24/04/2015
Nottinghamshire County Council,Personal Needs,"Children, Families & Cultural Services",Debit,25.90,amazon uk marketplace,24/04/2015
Nottinghamshire County Council,Activities & Support,"Children, Families & Cultural Services",Debit,53.50,www.disabilityrocks.or,23/04/2015
Nottinghamshire County Council,Materials - External,Environment & Resources,Debit,469.67,tubes fittings,28/04/2015
Nottinghamshire County Council,Materials - External,Environment & Resources,Debit,28.14,tubes fittings,28/04/2015
Nottinghamshire County Council,Materials - External,Environment & Resources,Debit,115.10,tubes fittings,15/04/2015
Nottinghamshire County Council,Office / General Equipment,Environment & Resources,Debit,12.00,nec parking,15/04/2015
Nottinghamshire County Council,Office / General Equipment,Environment & Resources,Debit,6.99,amazon svcs europesar,13/04/2015
Nottinghamshire County Council,Minor Works,"Children, Families & Cultural Services",Debit,61.82,dulux decorator centre,20/04/2015
Nottinghamshire County Council,Minor Works,"Children, Families & Cultural Services",Debit,11.07,b  q,15/04/2015
Nottinghamshire County Council,Clothing/Shoes/Uniforms,"Children, Families & Cultural Services",Credit,-59.99,amazon svcs europesar,01/05/2015
Nottinghamshire County Council,Clothing/Shoes/Uniforms,"Children, Families & Cultural Services",Debit,48.97,www.mandmdirect.com,24/04/2015
Nottinghamshire County Council,Office / General Equipment,"Children, Families & Cultural Services",Debit,66.48,argos ltd,24/04/2015
Nottinghamshire County Council,Clothing/Shoes/Uniforms,"Children, Families & Cultural Services",Debit,21.95,tesco clothing uk,24/04/2015
Nottinghamshire County Council,Clothing/Shoes/Uniforms,"Children, Families & Cultural Services",Debit,28.99,www.mandmdirect.com,24/04/2015
Nottinghamshire County Council,Clothing/Shoes/Uniforms,"Children, Families & Cultural Services",Debit,48.94,www.footasylum.com,24/04/2015
Nottinghamshire County Council,Clothing/Shoes/Uniforms,"Children, Families & Cultural Services",Debit,32.97,www.mandmdirect.com,24/04/2015
Nottinghamshire County Council,Office / General Equipment,"Children, Families & Cultural Services",Debit,7.59,argos ltd,23/04/2015
Nottinghamshire County Council,Minor Works,"Children, Families & Cultural Services",Debit,53.94,argos retail group,23/04/2015
Nottinghamshire County Council,Office / General Equipment,"Children, Families & Cultural Services",Credit,-172.80,posturite (uk) ltd,23/04/2015
Nottinghamshire County Council,Minor Works,"Children, Families & Cultural Services",Debit,40.40,amazon svcs europesar,23/04/2015
Nottinghamshire County Council,Teaching Equipment,"Children, Families & Cultural Services",Debit,4.95,amazon svcs europesar,23/04/2015
Nottinghamshire County Council,Teaching Equipment,"Children, Families & Cultural Services",Debit,9.98,amazon svcs europesar,23/04/2015
Nottinghamshire County Council,First Aid Equipment Purchases,"Children, Families & Cultural Services",Debit,130.00,boots opticians,23/04/2015
Nottinghamshire County Council,Office / General Equipment,"Children, Families & Cultural Services",Debit,18.99,argos ltd,22/04/2015
Nottinghamshire County Council,Stock,"Children, Families & Cultural Services",Debit,170.10,xlr8 sports ltd t/a leis,22/04/2015
Nottinghamshire County Council,Office / General Equipment,"Children, Families & Cultural Services",Debit,131.00,argos ltd,22/04/2015
Nottinghamshire County Council,Teaching Equipment,"Children, Families & Cultural Services",Debit,3.65,amazon uk marketplace,22/04/2015
Nottinghamshire County Council,Minor Works,"Children, Families & Cultural Services",Debit,184.95,walton web,22/04/2015
Nottinghamshire County Council,Office / General Equipment,"Children, Families & Cultural Services",Debit,118.80,posturite (uk) ltd,20/04/2015
Nottinghamshire County Council,Office / General Equipment,"Children, Families & Cultural Services",Credit,-166.80,www.posturite.co.uk,17/04/2015
Nottinghamshire County Council,Personal Needs,"Children, Families & Cultural Services",Debit,18.98,argos ltd,17/04/2015
Nottinghamshire County Council,Personal Needs,"Children, Families & Cultural Services",Debit,70.38,argos ltd,17/04/2015
Nottinghamshire County Council,Stock,"Children, Families & Cultural Services",Debit,13.05,amazon uk retail,17/04/2015
Nottinghamshire County Council,Office / General Equipment,"Children, Families & Cultural Services",Debit,96.00,wp-ma education lt,16/04/2015
Nottinghamshire County Council,Personal Needs,"Children, Families & Cultural Services",Debit,107.40,tesco stores 3297,16/04/2015
Nottinghamshire County Council,Teaching Equipment,"Children, Families & Cultural Services",Debit,9.49,argos ltd,16/04/2015
Nottinghamshire County Council,Office / General Equipment,"Children, Families & Cultural Services",Debit,5.90,tesco stores 5329,16/04/2015
Nottinghamshire County Council,Minor Works,"Children, Families & Cultural Services",Debit,49.78,lindab ltd-nottingham,15/04/2015
Nottinghamshire County Council,Office / General Equipment,"Children, Families & Cultural Services",Debit,172.80,posturite (uk) ltd,15/04/2015
Nottinghamshire County Council,Pocket Money,"Children, Families & Cultural Services",Debit,54.99,www.footasylum.com,15/04/2015
Nottinghamshire County Council,Minor Works,"Children, Families & Cultural Services",Debit,226.80,www.officefurnitureonl,15/04/2015
Nottinghamshire County Council,Provisions,"Children, Families & Cultural Services",Debit,6.40,sainsburys spmkts,15/04/2015
Nottinghamshire County Council,Teaching Equipment,"Children, Families & Cultural Services",Debit,25.00,amazon svcs europesar,14/04/2015
Nottinghamshire County Council,Stock,"Children, Families & Cultural Services",Debit,5.00,amazon uk retail,14/04/2015
Nottinghamshire County Council,Office / General Equipment,"Children, Families & Cultural Services",Debit,38.40,amazon svcs europesar,14/04/2015
Nottinghamshire County Council,Teaching Equipment,"Children, Families & Cultural Services",Debit,46.20,amazon svcs europesar,14/04/2015
Nottinghamshire County Council,Stock,"Children, Families & Cultural Services",Debit,19.50,amazon svcs europesar,13/04/2015
Nottinghamshire County Council,Office / General Equipment,"Children, Families & Cultural Services",Debit,24.68,argos ltd,13/04/2015
Nottinghamshire County Council,Office / General Equipment,"Children, Families & Cultural Services",Debit,24.68,argos ltd,13/04/2015
Nottinghamshire County Council,Teaching Equipment,"Children, Families & Cultural Services",Debit,180.00,www.oup.com,13/04/2015
Nottinghamshire County Council,Office / General Equipment,"Children, Families & Cultural Services",Debit,32.97,serenata flowers,13/04/2015
Nottinghamshire County Council,Office / General Equipment,"Children, Families & Cultural Services",Debit,11.38,argos ltd,13/04/2015
Nottinghamshire County Council,Stock,"Children, Families & Cultural Services",Debit,10.95,amazon svcs europesar,13/04/2015
Nottinghamshire County Council,Office / General Equipment,"Children, Families & Cultural Services",Debit,12.34,argos ltd,13/04/2015
Nottinghamshire County Council,Stock,"Children, Families & Cultural Services",Debit,11.38,amazon uk retail,10/04/2015
Nottinghamshire County Council,Office / General Equipment,"Children, Families & Cultural Services",Debit,8.65,the plastic box compan,10/04/2015
Nottinghamshire County Council,Clothing/Shoes/Uniforms,"Children, Families & Cultural Services",Debit,63.97,amazon svcs europesar,11/04/2015
Nottinghamshire County Council,Stock,"Children, Families & Cultural Services",Debit,12.82,amazon uk retail,10/04/2015
Nottinghamshire County Council,Clothing/Shoes/Uniforms,"Children, Families & Cultural Services",Debit,34.99,www.mandmdirect.com,10/04/2015
Nottinghamshire County Council,Office / General Equipment,"Children, Families & Cultural Services",Debit,14.97,amazon svcs europesar,10/04/2015
Nottinghamshire County Council,Stock,"Children, Families & Cultural Services",Debit,36.96,amazon uk retail,10/04/2015
Nottinghamshire County Council,Stock,"Children, Families & Cultural Services",Debit,7.94,amazon uk marketplace,11/04/2015
Nottinghamshire County Council,Stock,"Children, Families & Cultural Services",Debit,25.96,amazon uk marketplace,11/04/2015
Nottinghamshire County Council,First Aid Equipment Purchases,"Children, Families & Cultural Services",Debit,162.96,www.lewis-plast.co.uk,10/04/2015
Nottinghamshire County Council,Clothing/Shoes/Uniforms,"Children, Families & Cultural Services",Credit,-58.89,amazon uk marketplace,09/04/2015
Nottinghamshire County Council,Office / General Equipment,"Children, Families & Cultural Services",Debit,15.86,iceland,09/04/2015
Nottinghamshire County Council,Office / General Equipment,"Children, Families & Cultural Services",Debit,14.24,argos ltd,08/04/2015
Nottinghamshire County Council,Teaching Equipment,"Children, Families & Cultural Services",Debit,498.78,argos ltd,08/04/2015
Nottinghamshire County Council,Office / General Equipment,"Children, Families & Cultural Services",Debit,21.32,argos ltd,08/04/2015
Nottinghamshire County Council,Office / General Equipment,"Children, Families & Cultural Services",Debit,18.99,argos ltd,08/04/2015
Nottinghamshire County Council,First Aid Equipment Purchases,"Children, Families & Cultural Services",Debit,60.00,scrivens opticians 084,08/04/2015
Nottinghamshire County Council,Office / General Equipment,"Children, Families & Cultural Services",Debit,11.37,amazon svcs europesar,03/04/2015
Nottinghamshire County Council,Other Fee's & Services,"Children, Families & Cultural Services",Debit,111.50,post office counter,29/04/2015
Nottinghamshire County Council,Other Fee's & Services,"Children, Families & Cultural Services",Debit,46.80,gro hm passport office,22/04/2015
Nottinghamshire County Council,Other Fee's & Services,"Children, Families & Cultural Services",Credit,-23.40,gro hm passport office,21/04/2015
Nottinghamshire County Council,Other Fee's & Services,"Children, Families & Cultural Services",Debit,16.29,derby c cncl tel payme,22/04/2015
Nottinghamshire County Council,Other Fee's & Services,"Children, Families & Cultural Services",Debit,23.40,gro hm passport office,21/04/2015
Nottinghamshire County Council,TV / Radio Licences,"Children, Families & Cultural Services",Debit,145.50,tv licensing,20/04/2015
Nottinghamshire County Council,Staff Training,"Children, Families & Cultural Services",Debit,105.90,sonic coms int ltd,20/04/2015
Nottinghamshire County Council,Other Fee's & Services,"Children, Families & Cultural Services",Debit,16.29,www.derby.gov.uk,09/04/2015
Nottinghamshire County Council,Other Fee's & Services,"Children, Families & Cultural Services",Credit,-23.40,gro hm passport office,07/04/2015
Nottinghamshire County Council,Other Fee's & Services,"Children, Families & Cultural Services",Debit,46.80,gro hm passport office,08/04/2015
Nottinghamshire County Council,Other Fee's & Services,"Children, Families & Cultural Services",Debit,46.80,gro hm passport office,07/04/2015
Nottinghamshire County Council,Special Guardianship Report,"Children, Families & Cultural Services",Debit,300.00,sills  betteridge llp,07/04/2015
Nottinghamshire County Council,Activities & Support,"Adult Social Care, Health & Public Protection ",Debit,163.65,js online grocery,30/04/2015
Nottinghamshire County Council,Activities & Support,"Adult Social Care, Health & Public Protection ",Debit,102.18,js online grocery,23/04/2015
Nottinghamshire County Council,Activities & Support,"Adult Social Care, Health & Public Protection ",Debit,164.05,js online grocery,15/04/2015
Nottinghamshire County Council,Activities & Support,"Adult Social Care, Health & Public Protection ",Debit,132.75,js online grocery,10/04/2015
Nottinghamshire County Council,Activities & Support,"Adult Social Care, Health & Public Protection ",Debit,54.46,auk agora business pub,24/04/2015
Nottinghamshire County Council,Other Fee's & Services,"Adult Social Care, Health & Public Protection ",Debit,11.50,tfl cc/lez charge,01/05/2015
Nottinghamshire County Council,Stationery,"Adult Social Care, Health & Public Protection ",Debit,36.49,currys,29/04/2015
Nottinghamshire County Council,Fuel - Petrol,"Adult Social Care, Health & Public Protection ",Debit,38.71,tesco pfs 4140,27/04/2015
Nottinghamshire County Council,Stationery,"Adult Social Care, Health & Public Protection ",Debit,34.80,apple online store gbp,18/04/2015
Nottinghamshire County Council,Fuel - Petrol,"Adult Social Care, Health & Public Protection ",Debit,37.54,tesco pfs 4140,13/04/2015
Nottinghamshire County Council,Cleaning Materials,"Adult Social Care, Health & Public Protection ",Debit,10.98,ableworld newark,29/04/2015
Nottinghamshire County Council,Cleaning Materials,"Adult Social Care, Health & Public Protection ",Debit,52.22,whistlers pharmacy,22/04/2015
Nottinghamshire County Council,Other Fee's & Services,"Policy, Planning & Corporate Services",Debit,455.00,county court,30/04/2015
Nottinghamshire County Council,Other Fee's & Services,"Policy, Planning & Corporate Services",Debit,14.40,gotocitrix.com,30/04/2015
Nottinghamshire County Council,Other Fee's & Services,"Policy, Planning & Corporate Services",Debit,455.00,county court,29/04/2015
Nottinghamshire County Council,Other Fee's & Services,"Policy, Planning & Corporate Services",Debit,455.00,county court,22/04/2015
Nottinghamshire County Council,Other Fee's & Services,"Policy, Planning & Corporate Services",Debit,455.00,county court,13/04/2015
Nottinghamshire County Council,Other Fee's & Services,"Policy, Planning & Corporate Services",Debit,34.80,gotocitrix.com,09/04/2015
Nottinghamshire County Council,Minor Works,"Children, Families & Cultural Services",Debit,30.00,marriet,25/04/2015
Nottinghamshire County Council,Minor Works,"Children, Families & Cultural Services",Debit,6.45,amazon uk marketplace,22/04/2015
Nottinghamshire County Council,Minor Works,"Children, Families & Cultural Services",Debit,24.39,amazon svcs europesar,21/04/2015
Nottinghamshire County Council,Minor Works,"Children, Families & Cultural Services",Debit,23.16,amazon uk retail,16/04/2015
Nottinghamshire County Council,Minor Works,"Children, Families & Cultural Services",Debit,200.00,judson signs ltd,14/04/2015
Nottinghamshire County Council,Provisions,"Children, Families & Cultural Services",Debit,89.21,tesco stores 2995,28/04/2015
Nottinghamshire County Council,Cleaning Materials,"Children, Families & Cultural Services",Debit,24.00,tesco stores 2995,28/04/2015
Nottinghamshire County Council,Provisions,"Children, Families & Cultural Services",Debit,15.07,mcdonalds rest.,23/04/2015
Nottinghamshire County Council,Provisions,"Children, Families & Cultural Services",Debit,4.35,co-op group 017191,20/04/2015
Nottinghamshire County Council,Provisions,"Children, Families & Cultural Services",Debit,7.35,mcdonalds rest.,13/04/2015
Nottinghamshire County Council,Clothing/Shoes/Uniforms,"Children, Families & Cultural Services",Debit,54.00,tesco stores 5379,13/04/2015
Nottinghamshire County Council,Provisions,"Children, Families & Cultural Services",Debit,7.40,burnt stump,13/04/2015
Nottinghamshire County Council,Provisions,"Children, Families & Cultural Services",Debit,26.91,tesco stores 2995,10/04/2015
Nottinghamshire County Council,Provisions,"Children, Families & Cultural Services",Debit,10.80,the riverside fish and,08/04/2015
Nottinghamshire County Council,Provisions,"Children, Families & Cultural Services",Debit,12.07,mcdonalds rest.,08/04/2015
Nottinghamshire County Council,Personal Needs,"Children, Families & Cultural Services",Debit,35.00,odeon,05/04/2015
Nottinghamshire County Council,Personal Needs,"Children, Families & Cultural Services",Debit,15.00,tesco stores 2995,06/04/2015
Nottinghamshire County Council,Provisions,"Children, Families & Cultural Services",Debit,78.97,tesco stores 2995,06/04/2015
Nottinghamshire County Council,Provisions,"Children, Families & Cultural Services",Debit,19.40,paddyfields,03/04/2015
Nottinghamshire County Council,Personal Needs,"Children, Families & Cultural Services",Debit,55.00,clippers,04/04/2015
Nottinghamshire County Council,Provisions,"Children, Families & Cultural Services",Debit,30.81,asda store ston in as,04/04/2015
Nottinghamshire County Council,Provisions,"Children, Families & Cultural Services",Debit,2.05,asda store ston in as,04/04/2015
Nottinghamshire County Council,Activities & Support,"Children, Families & Cultural Services",Debit,7.99,nottingham contemporar,03/05/2015
Nottinghamshire County Council,Activities & Support,"Children, Families & Cultural Services",Debit,5.97,headway the brain inju,01/05/2015
Nottinghamshire County Council,Activities & Support,"Children, Families & Cultural Services",Debit,4.24,co-op group 011261,30/04/2015
Nottinghamshire County Council,Activities & Support,"Children, Families & Cultural Services",Debit,4.58,co-op group 011261,30/04/2015
Nottinghamshire County Council,Activities & Support,"Children, Families & Cultural Services",Debit,8.60,aldi,30/04/2015
Nottinghamshire County Council,Activities & Support,"Children, Families & Cultural Services",Debit,3.97,asda superstore,29/04/2015
Nottinghamshire County Council,Activities & Support,"Children, Families & Cultural Services",Debit,17.66,b  m retail,29/04/2015
Nottinghamshire County Council,Activities & Support,"Children, Families & Cultural Services",Debit,5.49,b  m retail,28/04/2015
Nottinghamshire County Council,Activities & Support,"Children, Families & Cultural Services",Debit,2.87,co-op group 011261,28/04/2015
Nottinghamshire County Council,Activities & Support,"Children, Families & Cultural Services",Debit,0.89,co-op group 011261,23/04/2015
Nottinghamshire County Council,Activities & Support,"Children, Families & Cultural Services",Debit,6.31,aldi,23/04/2015
Nottinghamshire County Council,Activities & Support,"Children, Families & Cultural Services",Debit,18.46,b  m retail,23/04/2015
Nottinghamshire County Council,Activities & Support,"Children, Families & Cultural Services",Debit,6.00,b  m retail,22/04/2015
Nottinghamshire County Council,Other Fee's & Services,"Adult Social Care, Health & Public Protection ",Debit,265.20,parkway secure storage,24/04/2015
Nottinghamshire County Council,Activities & Support,"Children, Families & Cultural Services",Debit,62.76,wm morrison 067,28/04/2015
Nottinghamshire County Council,Activities & Support,"Children, Families & Cultural Services",Debit,24.50,hobbycraft,28/04/2015
Nottinghamshire County Council,Building Maintenance,Environment & Resources,Debit,35.74,dulux decorator centre,16/04/2015
Nottinghamshire County Council,Building Maintenance,Environment & Resources,Debit,221.29,dulux decorator centre,07/04/2015
Nottinghamshire County Council,Building Maintenance,Environment & Resources,Debit,79.44,john a stephens,23/04/2015
Nottinghamshire County Council,Building Maintenance,Environment & Resources,Debit,19.09,john a stephens,21/04/2015
Nottinghamshire County Council,Building Maintenance,Environment & Resources,Debit,39.26,jackson building ctrs lt,16/04/2015
Nottinghamshire County Council,Building Maintenance,Environment & Resources,Debit,15.55,john a stephens,08/04/2015
Nottinghamshire County Council,Activities & Support,"Children, Families & Cultural Services",Debit,6.89,asda stores,01/05/2015
Nottinghamshire County Council,Activities & Support,"Children, Families & Cultural Services",Debit,7.90,lidl uk,27/04/2015
Nottinghamshire County Council,Activities & Support,"Children, Families & Cultural Services",Debit,4.37,asda stores,23/04/2015
Nottinghamshire County Council,Activities & Support,"Children, Families & Cultural Services",Debit,15.64,tesco stores,20/04/2015
Nottinghamshire County Council,Activities & Support,"Children, Families & Cultural Services",Debit,14.25,mcdonalds rest,17/04/2015
Nottinghamshire County Council,Activities & Support,"Children, Families & Cultural Services",Debit,5.07,mcdonalds rest,15/04/2015
Nottinghamshire County Council,Office / General Equipment,Place,Debit,163.20,msm hygiene ltd,08/04/2015
Nottinghamshire County Council,Other Fee's & Services,Place,Debit,92.28,s jeyes  son (midland,27/04/2015
Nottinghamshire County Council,Other Fee's & Services,Place,Debit,131.76,s jeyes  son (midland,16/04/2015
Nottinghamshire County Council,Activities & Support,"Children, Families & Cultural Services",Debit,16.59,wm morrisons,30/04/2015
Nottinghamshire County Council,Activities & Support,"Children, Families & Cultural Services",Debit,7.95,amazon svcs europesar,27/04/2015
Nottinghamshire County Council,Activities & Support,"Children, Families & Cultural Services",Debit,11.00,amazon svcs europesar,27/04/2015
Nottinghamshire County Council,Activities & Support,"Children, Families & Cultural Services",Debit,26.50,wm morrison 067,15/04/2015
Nottinghamshire County Council,Activities & Support,"Children, Families & Cultural Services",Debit,37.92,mcdonalds rest.,13/04/2015
Nottinghamshire County Council,Activities & Support,"Children, Families & Cultural Services",Debit,30.67,wm morrison 023,13/04/2015
Nottinghamshire County Council,Activities & Support,"Children, Families & Cultural Services",Debit,11.90,sainsburys s/mkts,10/04/2015
Nottinghamshire County Council,Activities & Support,"Children, Families & Cultural Services",Debit,4.96,home bargains,09/04/2015
Nottinghamshire County Council,Activities & Support,"Children, Families & Cultural Services",Debit,16.35,wm morrisons,07/04/2015
Nottinghamshire County Council,Activities & Support,"Children, Families & Cultural Services",Debit,3.38,asda stores 4476,28/04/2015
Nottinghamshire County Council,Activities & Support,"Children, Families & Cultural Services",Debit,11.00,sainsburys s/mkts,16/04/2015
Nottinghamshire County Council,Activities & Support,"Children, Families & Cultural Services",Debit,6.14,farmfoods- worksop,16/04/2015
Nottinghamshire County Council,Activities & Support,"Children, Families & Cultural Services",Debit,3.98,wilko retail limit,13/04/2015
Nottinghamshire County Council,Activities & Support,"Children, Families & Cultural Services",Debit,16.73,aldi,08/04/2015
Nottinghamshire County Council,Activities & Support,"Children, Families & Cultural Services",Debit,9.65,sainsburys spmkts,01/05/2015
Nottinghamshire County Council,Activities & Support,"Children, Families & Cultural Services",Debit,5.80,sainsburys spmkts,30/04/2015
Nottinghamshire County Council,Activities & Support,"Children, Families & Cultural Services",Debit,14.00,iceland,30/04/2015
Nottinghamshire County Council,Activities & Support,"Children, Families & Cultural Services",Debit,17.29,poundstretcher ltd,21/04/2015
Nottinghamshire County Council,Fire Precaution Equipment,"Children, Families & Cultural Services",Debit,475.44,amazon svcs europesar,14/04/2015
Nottinghamshire County Council,Computer Equipment,Resources ,Debit,33.96,www.maplin.co.uk,24/04/2015
Nottinghamshire County Council,Software Purchases,Resources ,Debit,68.84,pure chat inc,23/04/2015
Nottinghamshire County Council,Software Purchases,Resources ,Debit,67.03,wp-spybot sdsnltd,17/04/2015
Nottinghamshire County Council,Activities & Support,"Children, Families & Cultural Services",Debit,15.74,tesco stores 5437,29/04/2015
Nottinghamshire County Council,Activities & Support,"Children, Families & Cultural Services",Debit,20.94,mcdonalds rest.,09/04/2015
Nottinghamshire County Council,Activities & Support,"Children, Families & Cultural Services",Debit,12.00,tesco stores 5437,07/04/2015
Nottinghamshire County Council,Training Fees,"Adult Social Care, Health & Public Protection ",Debit,25.90,amazon uk marketplace,10/04/2015
Nottinghamshire County Council,Clients - H & S Equipt,"Children, Families & Cultural Services",Debit,3.00,upt - nottinghamcity cou,30/04/2015
Nottinghamshire County Council,Clients - H & S Equipt,"Children, Families & Cultural Services",Debit,6.60,eve trades cic-worksop,30/04/2015
Nottinghamshire County Council,Aftercare - Equipment,"Children, Families & Cultural Services",Debit,508.92,argos retail group,30/04/2015
Nottinghamshire County Council,Aftercare - Equipment,"Children, Families & Cultural Services",Debit,99.81,asda store ston in as,30/04/2015
Nottinghamshire County Council,Clients - H & S Equipt,"Children, Families & Cultural Services",Debit,3.00,intu victoria centre,27/04/2015
Nottinghamshire County Council,Clients - H & S Equipt,"Children, Families & Cultural Services",Debit,12.17,tesco stores 6205,28/04/2015
Nottinghamshire County Council,Clients - H & S Equipt,"Children, Families & Cultural Services",Debit,145.50,tvlicensing.co.uk,24/04/2015
Nottinghamshire County Council,Personal Needs,"Children, Families & Cultural Services",Debit,4.85,starbucks,27/04/2015
Nottinghamshire County Council,Aftercare - Equipment,"Children, Families & Cultural Services",Debit,169.99,currys online,24/04/2015
Nottinghamshire County Council,Aftercare - Equipment,"Children, Families & Cultural Services",Debit,183.56,argos ltd,23/04/2015
Nottinghamshire County Council,Aftercare - Equipment,"Children, Families & Cultural Services",Debit,225.00,furniture town,23/04/2015
Nottinghamshire County Council,Aftercare - Equipment,"Children, Families & Cultural Services",Debit,3.00,intu victoria centre,23/04/2015
Nottinghamshire County Council,Clients - H & S Equipt,"Children, Families & Cultural Services",Debit,12.00,wilko retail limit,10/04/2015
Nottinghamshire County Council,Clients - H & S Equipt,"Children, Families & Cultural Services",Debit,120.00,sainsburys smkt,10/04/2015
Nottinghamshire County Council,Clients - H & S Equipt,"Children, Families & Cultural Services",Debit,3.90,costa coffee,09/04/2015
Nottinghamshire County Council,Clients - H & S Equipt,"Children, Families & Cultural Services",Debit,4.50,intu victoria centre,09/04/2015
Nottinghamshire County Council,Clients - H & S Equipt,"Children, Families & Cultural Services",Debit,9.00,hartleys,09/04/2015
Nottinghamshire County Council,Aftercare Lodging/Hostel,"Children, Families & Cultural Services",Debit,5.60,tv licensing,07/04/2015
Nottinghamshire County Council,Clients - H & S Equipt,"Children, Families & Cultural Services",Debit,2.28,mcdonalds rest.,08/04/2015
Nottinghamshire County Council,Clients - H & S Equipt,"Children, Families & Cultural Services",Debit,40.00,sainsburys s/mkt,07/04/2015
Nottinghamshire County Council,Office / General Equipment,"Policy, Planning & Corporate Services",Debit,9.49,argos ltd,23/04/2015
Nottinghamshire County Council,Office / General Equipment,"Policy, Planning & Corporate Services",Debit,26.00,times newspapers ltd,22/04/2015
Nottinghamshire County Council,Office / General Equipment,"Policy, Planning & Corporate Services",Debit,9.49,argos ltd,23/04/2015
Nottinghamshire County Council,Office / General Equipment,"Children, Families & Cultural Services",Debit,14.98,b  q,11/04/2015
Nottinghamshire County Council,Personal Needs,"Children, Families & Cultural Services",Debit,24.00,b  q,04/04/2015
Nottinghamshire County Council,Cleaning & Domestic Equipment,"Children, Families & Cultural Services",Debit,32.96,bm retail ltd,21/04/2015
Nottinghamshire County Council,Office / General Equipment,"Children, Families & Cultural Services",Debit,87.00,ikea,16/04/2015
Nottinghamshire County Council,Provisions,"Children, Families & Cultural Services",Debit,21.65,asda superstore 04261,15/04/2015
Nottinghamshire County Council,Office / General Equipment,"Children, Families & Cultural Services",Debit,14.45,wilko retail limit,15/04/2015
Nottinghamshire County Council,Provisions,"Children, Families & Cultural Services",Debit,113.68,tesco stores 5437,13/04/2015
Nottinghamshire County Council,Personal Needs,"Children, Families & Cultural Services",Debit,34.48,max spielmann ltd,11/04/2015
Nottinghamshire County Council,Cleaning & Domestic Equipment,"Children, Families & Cultural Services",Debit,19.96,poundstretcher - 669,10/04/2015
Nottinghamshire County Council,Provisions,"Children, Families & Cultural Services",Debit,28.03,tesco stores 5437,10/04/2015
Nottinghamshire County Council,Cleaning & Domestic Equipment,"Children, Families & Cultural Services",Debit,9.00,asda superstore 04261,03/04/2015
Nottinghamshire County Council,Clothing/Shoes/Uniforms,"Children, Families & Cultural Services",Debit,56.00,asda superstore 04261,03/04/2015
Nottinghamshire County Council,Provisions,"Children, Families & Cultural Services",Debit,64.38,tesco stores 5437,04/04/2015
Nottinghamshire County Council,Provisions,"Children, Families & Cultural Services",Debit,11.28,asda superstore 04261,03/04/2015
Nottinghamshire County Council,Cleaning Materials,"Adult Social Care, Health & Public Protection ",Debit,97.79,jangro (leicester) ltd,27/04/2015
Nottinghamshire County Council,Cleaning Materials,"Adult Social Care, Health & Public Protection ",Debit,940.55,jangro (leicester) ltd,21/04/2015
Nottinghamshire County Council,Personal Needs,"Adult Social Care, Health & Public Protection ",Debit,145.50,tvlicensing.co.uk,09/04/2015
Nottinghamshire County Council,Office / General Equipment,"Children, Families & Cultural Services",Debit,17.45,amazon uk retail,08/04/2015
Nottinghamshire County Council,Office / General Equipment,"Children, Families & Cultural Services",Debit,24.43,bookdepository.com,08/04/2015
Nottinghamshire County Council,Provisions,"Children, Families & Cultural Services",Debit,27.13,tesco stores 5437,02/05/2015
Nottinghamshire County Council,Provisions,"Children, Families & Cultural Services",Debit,6.19,mcdonalds rest.,02/05/2015
Nottinghamshire County Council,Personal Needs,"Children, Families & Cultural Services",Debit,15.00,webticketmanager ltd,02/05/2015
Nottinghamshire County Council,Office / General Equipment,"Children, Families & Cultural Services",Debit,12.00,tesco stores 2995,02/05/2015
Nottinghamshire County Council,Personal Needs,"Children, Families & Cultural Services",Debit,8.00,water meadows swim,27/04/2015
Nottinghamshire County Council,Office / General Equipment,"Children, Families & Cultural Services",Debit,6.95,wilko retail limit,21/04/2015
Nottinghamshire County Council,Office / General Equipment,"Children, Families & Cultural Services",Debit,5.60,wilko retail limit,21/04/2015
Nottinghamshire County Council,Provisions,"Children, Families & Cultural Services",Debit,6.40,white post farm limited,18/04/2015
Nottinghamshire County Council,Provisions,"Children, Families & Cultural Services",Debit,38.00,white post farm limited,18/04/2015
Nottinghamshire County Council,Provisions,"Children, Families & Cultural Services",Debit,52.45,white post-farnsfield,18/04/2015
Nottinghamshire County Council,Provisions,"Children, Families & Cultural Services",Debit,15.50,odeon,14/04/2015
Nottinghamshire County Council,Personal Needs,"Children, Families & Cultural Services",Debit,7.60,odeon,14/04/2015
Nottinghamshire County Council,Personal Needs,"Children, Families & Cultural Services",Debit,9.50,water meadows swim,08/04/2015
Nottinghamshire County Council,Office / General Equipment,Place,Debit,95.62,arco ltd,14/04/2015
Nottinghamshire County Council,Teaching Equipment,"Children, Families & Cultural Services",Debit,126.90,amazon uk retail,25/04/2015
Nottinghamshire County Council,Teaching Equipment,"Children, Families & Cultural Services",Debit,165.66,amazon uk retail,24/04/2015
Nottinghamshire County Council,Teaching Equipment,"Children, Families & Cultural Services",Debit,12.95,amazon uk retail,23/04/2015
Nottinghamshire County Council,Teaching Equipment,"Children, Families & Cultural Services",Debit,60.84,amazon uk retail,23/04/2015
Nottinghamshire County Council,Teaching Equipment,"Children, Families & Cultural Services",Debit,205.44,amazon uk retail,22/04/2015
Nottinghamshire County Council,Teaching Equipment,"Children, Families & Cultural Services",Debit,24.75,amazon uk retail,21/04/2015
Nottinghamshire County Council,Teaching Equipment,"Children, Families & Cultural Services",Debit,12.99,amazon uk retail,21/04/2015
Nottinghamshire County Council,Teaching Equipment,"Children, Families & Cultural Services",Debit,13.29,amazon svcs europesar,14/04/2015
Nottinghamshire County Council,Teaching Equipment,"Children, Families & Cultural Services",Debit,28.76,amazon svcs europesar,10/04/2015
Nottinghamshire County Council,Teaching Equipment,"Children, Families & Cultural Services",Debit,14.04,amazon svcs europesar,11/04/2015
Nottinghamshire County Council,Vehicles Repairs & Maintenance,Environment & Resources,Debit,128.16,t cards direct,23/04/2015
Nottinghamshire County Council,Staff Training,Environment & Resources,Debit,102.00,eb nottinghamshire dr,01/05/2015
Nottinghamshire County Council,MOT Tests,Environment & Resources,Debit,"2,000.00",dvsa,30/04/2015
Nottinghamshire County Council,Staff Training,Environment & Resources,Debit,115.00,dsa,29/04/2015
Nottinghamshire County Council,Stationery,Environment & Resources,Debit,279.00,breathingspace.co.,28/04/2015
Nottinghamshire County Council,MOT Tests,Environment & Resources,Debit,"2,000.00",dvsa,27/04/2015
Nottinghamshire County Council,Road Tax,Environment & Resources,Debit,227.50,www.dvla.gov.uk,22/04/2015
Nottinghamshire County Council,MOT Tests,Environment & Resources,Debit,"4,000.00",dvsa,22/04/2015
Nottinghamshire County Council,MOT Tests,Environment & Resources,Debit,"2,000.00",dvsa,17/04/2015
Nottinghamshire County Council,Road Tax,Environment & Resources,Debit,60.00,www.eventcarparks.com,15/04/2015
Nottinghamshire County Council,MOT Tests,Environment & Resources,Debit,"2,000.00",dvsa,15/04/2015
Nottinghamshire County Council,Road Tax,Environment & Resources,Debit,22.74,www.rha.uk.net,15/04/2015
Nottinghamshire County Council,MOT Tests,Environment & Resources,Debit,"2,000.00",dvsa,13/04/2015
Nottinghamshire County Council,MOT Tests,Environment & Resources,Debit,"2,000.00",dvsa,09/04/2015
Nottinghamshire County Council,Road Tax,Environment & Resources,Debit,167.50,www.dvla.gov.uk,08/04/2015
Nottinghamshire County Council,Road Tax,Environment & Resources,Debit,167.50,www.dvla.gov.uk,08/04/2015
Nottinghamshire County Council,MOT Tests,Environment & Resources,Debit,100.00,dvsa,08/04/2015
Nottinghamshire County Council,Road Tax,Environment & Resources,Debit,207.50,www.dvla.gov.uk,08/04/2015
Nottinghamshire County Council,Road Tax,Environment & Resources,Debit,227.50,www.dvla.gov.uk,08/04/2015
Nottinghamshire County Council,MOT Tests,Environment & Resources,Debit,"4,000.00",dvsa,07/04/2015
Nottinghamshire County Council,Road Tax,Environment & Resources,Debit,202.50,www.dvla.gov.uk,07/04/2015
Nottinghamshire County Council,Materials - External,Environment & Resources,Debit,"1,239.24",al-vac uk ltd,07/04/2015
Nottinghamshire County Council,Road Tax,Environment & Resources,Debit,227.50,www.dvla.gov.uk,07/04/2015
Nottinghamshire County Council,Road Tax,Environment & Resources,Debit,202.50,www.dvla.gov.uk,07/04/2015
Nottinghamshire County Council,Road Tax,Environment & Resources,Debit,227.50,www.dvla.gov.uk,07/04/2015
Nottinghamshire County Council,Road Tax,Environment & Resources,Debit,227.50,www.dvla.gov.uk,07/04/2015
Nottinghamshire County Council,Activities & Support,"Children, Families & Cultural Services",Debit,14.00,poundworld retail,30/04/2015
Nottinghamshire County Council,Computer Equipment,Environment & Resources,Debit,12.48,amazon uk retail,29/04/2015
Nottinghamshire County Council,Computer Equipment,Environment & Resources,Debit,59.99,curry stores,27/04/2015
Nottinghamshire County Council,Provisions,Environment & Resources,Debit,176.40,royal mail,27/04/2015
Nottinghamshire County Council,Provisions,Environment & Resources,Debit,17.33,amazon svcs europesar,24/04/2015
Nottinghamshire County Council,Provisions,Environment & Resources,Debit,8.99,amazon svcs europesar,23/04/2015
Nottinghamshire County Council,Provisions,Environment & Resources,Debit,15.98,amazon uk retail,13/04/2015
Nottinghamshire County Council,Office / General Equipment,"Children, Families & Cultural Services",Debit,42.24,www.staples.co.uk,20/04/2015
Nottinghamshire County Council,Activities & Support,"Adult Social Care, Health & Public Protection ",Debit,33.50,disrightsuk,15/04/2015
Nottinghamshire County Council,Activities & Support,"Children, Families & Cultural Services",Debit,13.89,farmfoods- woodhou,30/04/2015
Nottinghamshire County Council,Activities & Support,"Children, Families & Cultural Services",Debit,15.00,farmfoods limited,28/04/2015
Nottinghamshire County Council,Activities & Support,"Children, Families & Cultural Services",Debit,13.78,farmfoods limited,23/04/2015
Nottinghamshire County Council,Activities & Support,"Children, Families & Cultural Services",Debit,15.28,tesco stores 5437,21/04/2015
Nottinghamshire County Council,Hardware Maintenance,Environment & Resources,Debit,29.99,the works,24/04/2015
Nottinghamshire County Council,Building Maintenance,Environment & Resources,Debit,26.98,tubes fittings,27/04/2015
Nottinghamshire County Council,Building Maintenance,Environment & Resources,Debit,16.56,tubes fittings,27/04/2015
Nottinghamshire County Council,Building Maintenance,Environment & Resources,Debit,18.00,plumb center tp,14/04/2015
Nottinghamshire County Council,Building Maintenance,Environment & Resources,Debit,2.09,plumb center tp,14/04/2015
Nottinghamshire County Council,Building Maintenance,Environment & Resources,Debit,114.46,dulux decorator centre,07/04/2015
Nottinghamshire County Council,Building Maintenance,Environment & Resources,Debit,17.40,willbond plumbing centre,01/05/2015
Nottinghamshire County Council,Building Maintenance,Environment & Resources,Debit,32.38,willbond plumbing centre,30/04/2015
Nottinghamshire County Council,Building Maintenance,Environment & Resources,Debit,20.90,alltools ltd,28/04/2015
Nottinghamshire County Council,Building Maintenance,Environment & Resources,Debit,60.37,willbond plumbing centre,27/04/2015
Nottinghamshire County Council,Building Maintenance,Environment & Resources,Debit,92.28,willbond plumbing centre,24/04/2015
Nottinghamshire County Council,Building Maintenance,Environment & Resources,Debit,69.89,willbond plumbing centre,21/04/2015
Nottinghamshire County Council,Building Maintenance,Environment & Resources,Debit,23.72,willbond plumbing centre,10/04/2015
Nottinghamshire County Council,Building Maintenance,Environment & Resources,Debit,32.72,willbond plumbing centre,07/04/2015
Nottinghamshire County Council,Provisions,"Adult Social Care, Health & Public Protection ",Debit,21.49,arco ltd,01/04/2015
Nottinghamshire County Council,Office / General Equipment,"Children, Families & Cultural Services",Debit,17.10,east midlands trai,29/04/2015
Nottinghamshire County Council,Office / General Equipment,"Children, Families & Cultural Services",Debit,36.00,mltuk,20/04/2015
Nottinghamshire County Council,Teaching Equipment,"Children, Families & Cultural Services",Debit,290.00,hitch n hike,14/04/2015
Nottinghamshire County Council,Activities & Support,"Children, Families & Cultural Services",Debit,3.66,tesco stores 2702,16/04/2015
Nottinghamshire County Council,Activities & Support,"Children, Families & Cultural Services",Debit,1.20,tesco stores 2702,09/04/2015
Nottinghamshire County Council,Materials - External,Environment & Resources,Debit,251.58,edmundson electrical,30/04/2015
Nottinghamshire County Council,Materials - External,Environment & Resources,Debit,33.10,erf electrical wh,21/04/2015
Nottinghamshire County Council,Activities & Support,"Children, Families & Cultural Services",Debit,15.45,sainsburys s/mkts,29/04/2015
Nottinghamshire County Council,Activities & Support,"Children, Families & Cultural Services",Debit,133.86,makro self service notti,25/04/2015
Nottinghamshire County Council,Activities & Support,"Children, Families & Cultural Services",Debit,18.24,wm morrison 067,21/04/2015
Nottinghamshire County Council,Activities & Support,"Children, Families & Cultural Services",Debit,47.09,farmfoods- carlton,20/04/2015
Nottinghamshire County Council,Fuel - Petrol,"Adult Social Care, Health & Public Protection ",Debit,20.00,w m morrison,30/04/2015
Nottinghamshire County Council,Stationery,"Adult Social Care, Health & Public Protection ",Debit,13.10,w boyes  co ltd eastw,22/04/2015
Nottinghamshire County Council,Cleaning Materials,"Adult Social Care, Health & Public Protection ",Debit,12.94,savers health  beauty,22/04/2015
Nottinghamshire County Council,Materials - External,Environment & Resources,Debit,59.98,arco ltd,29/04/2015
Nottinghamshire County Council,Fixtures & Fittings,"Children, Families & Cultural Services",Debit,12.00,b  q,23/04/2015
Nottinghamshire County Council,Fixtures & Fittings,"Children, Families & Cultural Services",Debit,12.00,b  q,23/04/2015
Nottinghamshire County Council,Personal Needs,"Children, Families & Cultural Services",Debit,34.65,frankie  bennys,23/04/2015
Nottinghamshire County Council,Clothing/Shoes/Uniforms,"Children, Families & Cultural Services",Debit,13.00,primark,16/04/2015
Nottinghamshire County Council,Clothing/Shoes/Uniforms,"Children, Families & Cultural Services",Debit,8.00,select - mansfield 2,16/04/2015
Nottinghamshire County Council,Clothing/Shoes/Uniforms,"Children, Families & Cultural Services",Debit,30.00,j d sports 621,16/04/2015
Nottinghamshire County Council,Other Public Transport,"Children, Families & Cultural Services",Debit,21.80,ace of mansfield,14/04/2015
Nottinghamshire County Council,Other Public Transport,"Children, Families & Cultural Services",Debit,20.80,ace of mansfield,07/04/2015
Nottinghamshire County Council,Office / General Equipment,"Policy, Planning & Corporate Services",Debit,195.00,paypal  ,10/04/2015
Nottinghamshire County Council,Materials - External,Environment & Resources,Debit,20.00,bq,20/04/2015
Nottinghamshire County Council,Materials - External,Environment & Resources,Debit,9.34,howden joinery arnold,16/04/2015
Nottinghamshire County Council,Materials - External,Environment & Resources,Debit,6.60,buildbase sutton,28/04/2015
Nottinghamshire County Council,Materials - External,Environment & Resources,Debit,43.63,frank key (notts) ltd,29/04/2015
Nottinghamshire County Council,Materials - External,Environment & Resources,Debit,11.66,robert m sansom plant lt,29/04/2015
Nottinghamshire County Council,Materials - External,Environment & Resources,Debit,31.85,frank key (notts) ltd,29/04/2015
Nottinghamshire County Council,Materials - External,Environment & Resources,Debit,59.15,jackson building ctrs lt,28/04/2015
Nottinghamshire County Council,Materials - External,Environment & Resources,Debit,14.12,frank key (notts) ltd,23/04/2015
Nottinghamshire County Council,Materials - External,Environment & Resources,Debit,28.75,robert m sansom plant lt,22/04/2015
Nottinghamshire County Council,Materials - External,Environment & Resources,Debit,13.63,knight building produc,17/04/2015
Nottinghamshire County Council,Materials - External,Environment & Resources,Debit,108.47,frank key (notts) ltd,17/04/2015
Nottinghamshire County Council,Materials - External,Environment & Resources,Debit,25.80,robert m sansom plant lt,17/04/2015
Nottinghamshire County Council,Materials - External,Environment & Resources,Debit,164.36,br3417 gibbsdandy,16/04/2015
Nottinghamshire County Council,Materials - External,Environment & Resources,Debit,84.46,frank key (notts) ltd,16/04/2015
Nottinghamshire County Council,Materials - External,Environment & Resources,Debit,22.40,1st access,15/04/2015
Nottinghamshire County Council,Materials - External,Environment & Resources,Debit,154.03,robert m sansom plant lt,15/04/2015
Nottinghamshire County Council,Materials - External,Environment & Resources,Debit,102.41,frank key (notts) ltd,15/04/2015
Nottinghamshire County Council,Materials - External,Environment & Resources,Debit,58.57,frank key (notts) ltd,14/04/2015
Nottinghamshire County Council,Materials - External,Environment & Resources,Debit,10.08,robert m sansom plant lt,14/04/2015
Nottinghamshire County Council,Materials - External,Environment & Resources,Debit,30.72,br3417 gibbsdandy,14/04/2015
Nottinghamshire County Council,Materials - External,Environment & Resources,Debit,61.44,br3417 gibbsdandy,14/04/2015
Nottinghamshire County Council,Materials - External,Environment & Resources,Debit,13.80,robert m sansom plant lt,11/04/2015
Nottinghamshire County Council,Materials - External,Environment & Resources,Debit,177.13,frank key (notts) ltd,11/04/2015
Nottinghamshire County Council,Stationery,"Adult Social Care, Health & Public Protection ",Debit,45.34,amazon uk retail,27/04/2015
Nottinghamshire County Council,Stationery,"Adult Social Care, Health & Public Protection ",Debit,21.00,amazon uk marketplace,21/04/2015
Nottinghamshire County Council,Aftercare - Equipment,"Children, Families & Cultural Services",Debit,10.35,maid marion foodstores,29/04/2015
Nottinghamshire County Council,Aftercare - Equipment,"Children, Families & Cultural Services",Debit,43.00,nottingham city counci,04/04/2015
Nottinghamshire County Council,Materials - External,Environment & Resources,Debit,40.70,arco ltd,01/05/2015
Nottinghamshire County Council,Materials - External,Environment & Resources,Debit,56.02,arco ltd,08/04/2015
Nottinghamshire County Council,Office / General Equipment,Place,Debit,127.50,city electrical fa,30/04/2015
Nottinghamshire County Council,Materials - External,Place,Debit,162.86,city electrical fa,14/04/2015
Nottinghamshire County Council,Materials - External,Place,Debit,106.50,city electrical fa,14/04/2015
Nottinghamshire County Council,Materials - External,Place,Debit,0.29,city electrical fa,14/04/2015
Nottinghamshire County Council,Materials - External,Place,Debit,5.35,city electrical fa,14/04/2015
Nottinghamshire County Council,Materials - External,Place,Debit,122.15,city electrical fa,14/04/2015
Nottinghamshire County Council,Materials - External,Place,Debit,123.24,city electrical fa,14/04/2015
Nottinghamshire County Council,Materials - External,Place,Debit,213.00,city electrical fa,14/04/2015
Nottinghamshire County Council,Materials - External,Place,Debit,86.36,city electrical fa,14/04/2015
Nottinghamshire County Council,Materials - External,Place,Debit,0.18,city electrical fa,14/04/2015
Nottinghamshire County Council,Materials - External,Place,Debit,30.86,city electrical fa,14/04/2015
Nottinghamshire County Council,Materials - External,Place,Debit,20.00,poundstretcher 136,01/05/2015
Nottinghamshire County Council,Materials - External,Place,Debit,69.43,yesss electrical,15/04/2015
Nottinghamshire County Council,Materials - External,Place,Debit,243.85,yesss electrical,15/04/2015
Nottinghamshire County Council,Legal Fees,Resources ,Debit,280.00,county court,24/04/2015
Nottinghamshire County Council,Legal Fees,Resources ,Debit,377.29,law society financ,21/04/2015
Nottinghamshire County Council,Legal Fees,Resources ,Debit,"2,055.00",county court,20/04/2015
Nottinghamshire County Council,Legal Fees,Resources ,Debit,50.00,county court,20/04/2015
Nottinghamshire County Council,Legal Fees,Resources ,Debit,"2,055.00",county court,20/04/2015
Nottinghamshire County Council,Legal Fees,Resources ,Debit,"2,055.00",county court,20/04/2015
Nottinghamshire County Council,Legal Fees,Resources ,Debit,"2,055.00",county court,20/04/2015
Nottinghamshire County Council,Legal Fees,Resources ,Debit,"2,055.00",county court,20/04/2015
Nottinghamshire County Council,Legal Fees,Resources ,Debit,"2,055.00",county court,20/04/2015
Nottinghamshire County Council,Legal Fees,Resources ,Debit,50.00,county court,20/04/2015
Nottinghamshire County Council,Legal Fees,Resources ,Debit,50.00,county court,20/04/2015
Nottinghamshire County Council,Legal Fees,Resources ,Debit,50.00,county court,20/04/2015
Nottinghamshire County Council,Legal Fees,Resources ,Debit,"2,055.00",county court,20/04/2015
Nottinghamshire County Council,Legal Fees,Resources ,Debit,50.00,county court,20/04/2015
Nottinghamshire County Council,Legal Fees,Resources ,Debit,69.00,trfsa   thomsonreuters,20/04/2015
Nottinghamshire County Council,Legal Fees,Resources ,Debit,"2,055.00",county court,20/04/2015
Nottinghamshire County Council,Legal Fees,Resources ,Debit,60.00,creditreform (uk) ltd,14/04/2015
Nottinghamshire County Council,Legal Fees,Resources ,Debit,17.52,amazon svcs europesar,13/04/2015
Nottinghamshire County Council,Legal Fees,Resources ,Debit,455.00,county court,10/04/2015
Nottinghamshire County Council,Office / General Equipment,"Policy, Planning & Corporate Services",Debit,19.75,amazon svcs europesar,01/05/2015
Nottinghamshire County Council,Publicity,"Policy, Planning & Corporate Services",Debit,30.00,paypal  ,28/04/2015
Nottinghamshire County Council,Office / General Equipment,"Policy, Planning & Corporate Services",Debit,5.40,amazon svcs europesar,10/04/2015
Nottinghamshire County Council,Activities & Support,"Children, Families & Cultural Services",Debit,35.00,b  q,02/05/2015
Nottinghamshire County Council,Activities & Support,"Children, Families & Cultural Services",Debit,5.98,b  q,02/05/2015
Nottinghamshire County Council,Activities & Support,"Children, Families & Cultural Services",Debit,15.00,b  q,02/05/2015
Nottinghamshire County Council,Activities & Support,"Children, Families & Cultural Services",Debit,15.00,b  q,02/05/2015
Nottinghamshire County Council,Activities & Support,"Children, Families & Cultural Services",Debit,9.54,bm retail ltd,02/05/2015
Nottinghamshire County Council,Activities & Support,"Children, Families & Cultural Services",Debit,15.50,heron foods ltd,30/04/2015
Nottinghamshire County Council,Activities & Support,"Children, Families & Cultural Services",Debit,45.00,sportsdirect 292,30/04/2015
Nottinghamshire County Council,Activities & Support,"Children, Families & Cultural Services",Debit,139.00,ukdj,24/04/2015
Nottinghamshire County Council,Activities & Support,"Children, Families & Cultural Services",Debit,10.00,sportsdirect 437,22/04/2015
Nottinghamshire County Council,Office / General Equipment,"Children, Families & Cultural Services",Debit,12.99,tesco stores 5329,28/04/2015
Nottinghamshire County Council,Office / General Equipment,"Children, Families & Cultural Services",Debit,12.00,wilko retail limit,24/04/2015
Nottinghamshire County Council,Office / General Equipment,"Children, Families & Cultural Services",Debit,92.00,wilko retail limit,24/04/2015
Nottinghamshire County Council,Office / General Equipment,"Children, Families & Cultural Services",Debit,97.90,rocky riders,15/04/2015
Nottinghamshire County Council,Office / General Equipment,"Children, Families & Cultural Services",Debit,10.97,mcdonalds rest.,15/04/2015
Nottinghamshire County Council,Office / General Equipment,"Children, Families & Cultural Services",Debit,8.99,currys,22/04/2015
Nottinghamshire County Council,Office / General Equipment,"Children, Families & Cultural Services",Debit,169.00,ao retail limited,20/04/2015
Nottinghamshire County Council,Office / General Equipment,"Children, Families & Cultural Services",Debit,49.10,asda home shopping,10/04/2015
Nottinghamshire County Council,Office / General Equipment,"Children, Families & Cultural Services",Debit,11.34,aldi,10/04/2015
Nottinghamshire County Council,Teaching Equipment,"Children, Families & Cultural Services",Debit,58.00,peak district npa,30/04/2015
Nottinghamshire County Council,Minor Works,"Children, Families & Cultural Services",Debit,10.95,amazon uk retail,29/04/2015
Nottinghamshire County Council,Books - General,"Children, Families & Cultural Services",Debit,6.73,wm eyre and sons,13/04/2015
Nottinghamshire County Council,Activities & Support,"Children, Families & Cultural Services",Debit,4.00,co-op group 070325,30/04/2015
Nottinghamshire County Council,Activities & Support,"Children, Families & Cultural Services",Debit,16.17,lidl uk,30/04/2015
Nottinghamshire County Council,Activities & Support,"Children, Families & Cultural Services",Debit,10.15,aldi,29/04/2015
Nottinghamshire County Council,Activities & Support,"Children, Families & Cultural Services",Debit,3.20,aldi,28/04/2015
Nottinghamshire County Council,Activities & Support,"Children, Families & Cultural Services",Debit,1.75,co-op group 070325,28/04/2015
Nottinghamshire County Council,Activities & Support,"Children, Families & Cultural Services",Debit,3.78,co-op group 070325,24/04/2015
Nottinghamshire County Council,Activities & Support,"Children, Families & Cultural Services",Debit,1.00,co-op group 070325,22/04/2015
Nottinghamshire County Council,Activities & Support,"Children, Families & Cultural Services",Debit,22.59,aldi,22/04/2015
Nottinghamshire County Council,Activities & Support,"Children, Families & Cultural Services",Debit,19.46,argos ltd,20/04/2015
Nottinghamshire County Council,Stationery,Environment & Resources,Debit,225.60,paypal  ,24/04/2015
Nottinghamshire County Council,Stationery,Environment & Resources,Debit,40.45,amazon svcs europesar,11/04/2015
Nottinghamshire County Council,Stationery,Environment & Resources,Debit,12.49,amazon svcs europesar,11/04/2015
Nottinghamshire County Council,Stationery,Environment & Resources,Debit,103.96,bikeability materials,09/04/2015
Nottinghamshire County Council,Office / General Equipment,"Children, Families & Cultural Services",Debit,348.66,www.willisholidays.co.,01/05/2015
Nottinghamshire County Council,Personal Needs,"Children, Families & Cultural Services",Debit,7.98,halfords 0900,06/04/2015
Nottinghamshire County Council,Provisions,"Children, Families & Cultural Services",Credit,-6.00,tesco stores 5437,06/04/2015
Nottinghamshire County Council,Office / General Equipment,"Children, Families & Cultural Services",Debit,4.00,tesco stores 5437,06/04/2015
Nottinghamshire County Council,Provisions,"Children, Families & Cultural Services",Debit,15.95,tesco stores 5437,06/04/2015
Nottinghamshire County Council,Materials - External,Place ,Debit,109.15,burdens,28/04/2015
Nottinghamshire County Council,Materials - External,Place ,Debit,93.12,cromwell tools,10/04/2015
Nottinghamshire County Council,Materials - External,Place ,Debit,19.49,cromwell tools,08/04/2015
Nottinghamshire County Council,Office / General Equipment,Place ,Debit,27.11,johnstones dec centre,29/04/2015
Nottinghamshire County Council,Office / General Equipment,Place ,Debit,32.44,johnstones dec centre,29/04/2015
Nottinghamshire County Council,Office / General Equipment,Place ,Debit,74.40,fast graphics ltd,16/04/2015
Nottinghamshire County Council,Office / General Equipment,Place ,Debit,188.16,john a stephens,16/04/2015
Nottinghamshire County Council,Office / General Equipment,Place ,Debit,58.00,fast graphics ltd,10/04/2015
Nottinghamshire County Council,Activities & Support,"Children, Families & Cultural Services",Debit,64.26,trainline.com,28/04/2015
Nottinghamshire County Council,Personal Needs,"Children, Families & Cultural Services",Debit,25.00,tesco stores 5329,30/04/2015
Nottinghamshire County Council,Personal Needs,"Children, Families & Cultural Services",Debit,30.00,w m morrison plc,28/04/2015
Nottinghamshire County Council,Personal Needs,"Children, Families & Cultural Services",Debit,15.00,www.citizencard.com,23/04/2015
Nottinghamshire County Council,Personal Needs,"Children, Families & Cultural Services",Debit,100.00,the lucky leprechauns,22/04/2015
Nottinghamshire County Council,Personal Needs,"Children, Families & Cultural Services",Debit,7.69,ncp limited,22/04/2015
Nottinghamshire County Council,Personal Needs,"Children, Families & Cultural Services",Debit,145.50,tvlicensing.co.uk,21/04/2015
Nottinghamshire County Council,Personal Needs,"Children, Families & Cultural Services",Debit,77.00,betel of britain,21/04/2015
Nottinghamshire County Council,Personal Needs,"Children, Families & Cultural Services",Debit,9.97,oxfam f1515,21/04/2015
Nottinghamshire County Council,Personal Needs,"Children, Families & Cultural Services",Debit,38.25,asda superstore,21/04/2015
Nottinghamshire County Council,Personal Needs,"Children, Families & Cultural Services",Debit,18.50,wilko retail limit,21/04/2015
Nottinghamshire County Council,Personal Needs,"Children, Families & Cultural Services",Debit,20.50,rmnewsfood,21/04/2015
Nottinghamshire County Council,Personal Needs,"Children, Families & Cultural Services",Debit,145.50,tvlicensing.co.uk,14/04/2015
Nottinghamshire County Council,Personal Needs,"Children, Families & Cultural Services",Debit,22.95,asda 4387,14/04/2015
Nottinghamshire County Council,Personal Needs,"Children, Families & Cultural Services",Debit,2.50,w m morrisons cafe,14/04/2015
Nottinghamshire County Council,Personal Needs,"Children, Families & Cultural Services",Debit,3.70,broadmarsh car park up,13/04/2015
Nottinghamshire County Council,Personal Needs,"Children, Families & Cultural Services",Debit,15.00,sainsburys s/mkts,13/04/2015
Nottinghamshire County Council,Personal Needs,"Children, Families & Cultural Services",Debit,40.00,tesco stores 5417,10/04/2015
Nottinghamshire County Council,TV Licences,"Children, Families & Cultural Services",Debit,34.00,amazon uk retail,24/04/2015
Nottinghamshire County Council,Activities & Support,"Children, Families & Cultural Services",Debit,5.60,amazon svcs europesar,22/04/2015
Nottinghamshire County Council,Activities & Support,"Children, Families & Cultural Services",Debit,8.30,amazon uk retail,21/04/2015
Nottinghamshire County Council,Other Fee's & Services,Resources ,Debit,4.00,www.registry-trust.org,29/04/2015
Nottinghamshire County Council,Other Fee's & Services,Resources ,Debit,10.00,www.gov.uk,30/04/2015
Nottinghamshire County Council,Staff Training,Resources ,Debit,252.00,westminster forum,28/04/2015
Nottinghamshire County Council,Other Fee's & Services,Resources ,Debit,180.00,www.gov.uk,28/04/2015
Nottinghamshire County Council,Other Fee's & Services,Resources ,Debit,105.00,www.moneyclaim.gov,24/04/2015
Nottinghamshire County Council,Other Fee's & Services,Resources ,Debit,105.00,www.moneyclaim.gov,20/04/2015
Nottinghamshire County Council,Other Fee's & Services,Resources ,Debit,60.00,www.moneyclaim.gov,20/04/2015
Nottinghamshire County Council,Other Fee's & Services,Resources ,Debit,410.00,www.moneyclaim.gov,20/04/2015
Nottinghamshire County Council,Other Fee's & Services,Resources ,Debit,1.00,companies house,16/04/2015
Nottinghamshire County Council,Other Fee's & Services,Resources ,Debit,1.00,companies house,16/04/2015
Nottinghamshire County Council,Other Fee's & Services,Resources ,Debit,12.00,www.eastsussexcc.gov.u,13/04/2015
Nottinghamshire County Council,Other Fee's & Services,Resources ,Debit,25.00,www.moneyclaim.gov,13/04/2015
Nottinghamshire County Council,Other Fee's & Services,Resources ,Debit,11.00,nottingham city co,10/04/2015
Nottinghamshire County Council,Other Fee's & Services,Resources ,Debit,601.75,www.moneyclaim.gov,10/04/2015
Nottinghamshire County Council,Other Fee's & Services,Resources ,Debit,11.00,nottingham city co,10/04/2015
Nottinghamshire County Council,Other Fee's & Services,Resources ,Debit,11.00,nottingham city co,10/04/2015
Nottinghamshire County Council,Other Fee's & Services,Resources ,Debit,185.00,www.moneyclaim.gov,09/04/2015
Nottinghamshire County Council,Other Fee's & Services,Resources ,Debit,11.00,nottingham city co,08/04/2015
Nottinghamshire County Council,Other Fee's & Services,Resources ,Debit,70.00,www.moneyclaim.gov,07/04/2015
Nottinghamshire County Council,Other Fee's & Services,Place ,Debit,92.35,keyline nottingham,20/04/2015
Nottinghamshire County Council,Other Fee's & Services,Place ,Debit,52.19,hy-acc services,10/04/2015
Nottinghamshire County Council,Activities & Support,"Children, Families & Cultural Services",Debit,35.67,tesco stores 2995,25/04/2015
Nottinghamshire County Council,Activities & Support,"Children, Families & Cultural Services",Debit,15.59,poundworld retail,22/04/2015
Nottinghamshire County Council,Activities & Support,"Children, Families & Cultural Services",Debit,8.00,sainsburys s/mkts,11/04/2015
Nottinghamshire County Council,Activities & Support,"Children, Families & Cultural Services",Debit,51.21,welcome break,12/04/2015
Nottinghamshire County Council,Activities & Support,"Children, Families & Cultural Services",Debit,6.19,welcome break bk,12/04/2015
Nottinghamshire County Council,Activities & Support,"Children, Families & Cultural Services",Debit,5.92,asda store ston in as,09/04/2015
Nottinghamshire County Council,Activities & Support,"Children, Families & Cultural Services",Debit,18.18,asda  stores 4201,17/04/2015
Nottinghamshire County Council,Activities & Support,"Children, Families & Cultural Services",Debit,2.90,sainsburys s/mkts,16/04/2015
Nottinghamshire County Council,Activities & Support,"Children, Families & Cultural Services",Debit,15.25,asda  stores 4201,16/04/2015
Nottinghamshire County Council,Activities & Support,"Children, Families & Cultural Services",Debit,16.55,asda  stores 4201,15/04/2015
Nottinghamshire County Council,Activities & Support,"Children, Families & Cultural Services",Debit,22.00,asda  stores 4201,14/04/2015
Nottinghamshire County Council,Activities & Support,"Children, Families & Cultural Services",Debit,11.78,asda  stores 4201,13/04/2015
Nottinghamshire County Council,Activities & Support,"Children, Families & Cultural Services",Debit,0.99,aldi,13/04/2015
Nottinghamshire County Council,Activities & Support,"Children, Families & Cultural Services",Debit,4.74,aldi,11/04/2015
Nottinghamshire County Council,Activities & Support,"Children, Families & Cultural Services",Debit,17.50,mansfield superbowl,09/04/2015
Nottinghamshire County Council,Activities & Support,"Children, Families & Cultural Services",Debit,34.95,bingham leisure centre,07/04/2015
Nottinghamshire County Council,Activities & Support,"Children, Families & Cultural Services",Debit,13.67,tesco store 2964,06/04/2015
Nottinghamshire County Council,Activities & Support,"Children, Families & Cultural Services",Debit,11.49,tesco stores 2964,06/04/2015
Nottinghamshire County Council,Activities & Support,"Children, Families & Cultural Services",Debit,6.81,aldi,03/04/2015
Nottinghamshire County Council,Minor Works,"Children, Families & Cultural Services",Debit,131.72,dulux decorator centre,28/04/2015
Nottinghamshire County Council,Minor Works,"Children, Families & Cultural Services",Debit,58.00,b  q,11/04/2015
Nottinghamshire County Council,Teaching Equipment,"Children, Families & Cultural Services",Debit,6.80,amazon uk marketplace,02/05/2015
Nottinghamshire County Council,Teaching Equipment,"Children, Families & Cultural Services",Debit,53.39,amazon uk marketplace,01/05/2015
Nottinghamshire County Council,Stock,"Children, Families & Cultural Services",Debit,15.49,amazon uk marketplace,02/05/2015
Nottinghamshire County Council,Stock,"Children, Families & Cultural Services",Debit,14.99,amazon svcs europesar,01/05/2015
Nottinghamshire County Council,Stock,"Children, Families & Cultural Services",Debit,18.96,amazon uk marketplace,01/05/2015
Nottinghamshire County Council,Minor Works,"Children, Families & Cultural Services",Debit,84.28,amazon svcs europesar,30/04/2015
Nottinghamshire County Council,Stock,"Children, Families & Cultural Services",Debit,19.85,amazon uk retail,30/04/2015
Nottinghamshire County Council,Stock,"Children, Families & Cultural Services",Debit,14.50,amazon svcs europesar,30/04/2015
Nottinghamshire County Council,Exam Fees,"Children, Families & Cultural Services",Debit,893.00,pc world,28/04/2015
Nottinghamshire County Council,Stock,"Children, Families & Cultural Services",Debit,7.99,lovefilm by post,28/04/2015
Nottinghamshire County Council,Exam Fees,"Children, Families & Cultural Services",Debit,188.28,paypal  ,28/04/2015
Nottinghamshire County Council,Minor Works,"Children, Families & Cultural Services",Debit,714.00,www.lesar.co.uk,27/04/2015
Nottinghamshire County Council,Minor Works,"Children, Families & Cultural Services",Debit,191.39,paypal  ,22/04/2015
Nottinghamshire County Council,Minor Works,"Children, Families & Cultural Services",Debit,66.84,www.patchsave.com,17/04/2015
Nottinghamshire County Council,Minor Works,"Children, Families & Cultural Services",Debit,3.01,amazon svcs europesar,17/04/2015
Nottinghamshire County Council,Minor Works,"Children, Families & Cultural Services",Debit,56.40,amazon uk retail,16/04/2015
Nottinghamshire County Council,Minor Works,"Children, Families & Cultural Services",Debit,62.88,amazon uk retail,16/04/2015
Nottinghamshire County Council,Minor Works,"Children, Families & Cultural Services",Debit,41.89,amazon uk retail,13/04/2015
Nottinghamshire County Council,Aftercare - Equipment,"Children, Families & Cultural Services",Debit,145.50,tvlicensing.co.uk,21/04/2015
Nottinghamshire County Council,Aftercare - Equipment,"Children, Families & Cultural Services",Debit,150.00,ao retail limited,17/04/2015
Nottinghamshire County Council,Aftercare - Equipment,"Children, Families & Cultural Services",Debit,398.00,ao retail limited,17/04/2015
Nottinghamshire County Council,Aftercare - Equipment,"Children, Families & Cultural Services",Debit,178.94,argos direct,17/04/2015
Nottinghamshire County Council,Clients - H & S Equipt,"Children, Families & Cultural Services",Debit,50.00,asda stores 4474,17/04/2015
Nottinghamshire County Council,Aftercare - Equipment,"Children, Families & Cultural Services",Debit,50.00,tesco stores 2995,17/04/2015
Nottinghamshire County Council,Fuel - Petrol,"Children, Families & Cultural Services",Debit,30.27,malthurst retail l,14/04/2015
Nottinghamshire County Council,Aftercare - Equipment,"Children, Families & Cultural Services",Debit,198.94,argos direct,08/04/2015
Nottinghamshire County Council,Activities & Support,"Children, Families & Cultural Services",Debit,10.67,tesco store 3439,14/04/2015
Nottinghamshire County Council,Activities & Support,"Children, Families & Cultural Services",Debit,11.71,tesco store 3439,07/04/2015
Nottinghamshire County Council,Activities & Support,"Children, Families & Cultural Services",Debit,1.24,b  q,07/04/2015
Nottinghamshire County Council,Activities & Support,"Children, Families & Cultural Services",Debit,1.24,b  q,07/04/2015
Nottinghamshire County Council,Office / General Equipment,Environment & Resources,Debit,9.00,asda  stores 4201,14/04/2015
Nottinghamshire County Council,Personal Needs,"Children, Families & Cultural Services",Debit,20.25,bunzl cleaning  hygie,14/04/2015
Nottinghamshire County Council,Phone - Mobile,"Children, Families & Cultural Services",Debit,7.00,tesco direct,01/05/2015
Nottinghamshire County Council,Disposal Clinical Waste,"Children, Families & Cultural Services",Debit,680.20,polybags ltd,17/04/2015
Nottinghamshire County Council,Personal Needs,"Children, Families & Cultural Services",Debit,13.48,amazon svcs europesar,17/04/2015
Nottinghamshire County Council,Personal Needs,"Children, Families & Cultural Services",Debit,13.94,amazon svcs europesar,17/04/2015
Nottinghamshire County Council,Provisions,"Children, Families & Cultural Services",Debit,278.05,owen taylor  sons,09/04/2015
Nottinghamshire County Council,Vehicles Repairs & Maintenance,"Children, Families & Cultural Services",Debit,227.50,www.dvla.gov.uk,08/04/2015
Nottinghamshire County Council,Activities & Support,"Children, Families & Cultural Services",Debit,72.56,booker limited nottingha,22/04/2015
Nottinghamshire County Council,Personal Needs,"Children, Families & Cultural Services",Debit,11.10,national trust,30/04/2015
Nottinghamshire County Council,Personal Needs,"Children, Families & Cultural Services",Debit,6.00,national trust,30/04/2015
Nottinghamshire County Council,Personal Needs,"Children, Families & Cultural Services",Debit,31.50,national trust,30/04/2015
Nottinghamshire County Council,Provisions,"Children, Families & Cultural Services",Debit,7.96,mcdonalds rest.,30/04/2015
Nottinghamshire County Council,Personal Needs,"Children, Families & Cultural Services",Debit,3.78,co-op group 017091,28/04/2015
Nottinghamshire County Council,Provisions,"Children, Families & Cultural Services",Debit,50.37,tesco stores 2995,20/04/2015
Nottinghamshire County Council,Provisions,"Adult Social Care, Health & Public Protection ",Debit,90.68,www.nisbets.com,30/04/2015
Nottinghamshire County Council,Aids & Appliances,"Children, Families & Cultural Services",Debit,234.00,sherwood marquees ltd,09/04/2015
Nottinghamshire County Council,Aids & Appliances,"Children, Families & Cultural Services",Debit,234.00,sherwood marquees ltd,07/04/2015
Nottinghamshire County Council,Teaching Equipment,"Children, Families & Cultural Services",Debit,23.36,tesco stores 5437,27/04/2015
Nottinghamshire County Council,Teaching Equipment,"Children, Families & Cultural Services",Debit,36.61,aldi,25/04/2015
Nottinghamshire County Council,Teaching Equipment,"Children, Families & Cultural Services",Debit,14.72,tesco stores 5379,19/04/2015
Nottinghamshire County Council,Teaching Equipment,"Children, Families & Cultural Services",Debit,36.67,tesco stores 5437,15/04/2015
Nottinghamshire County Council,Teaching Equipment,"Children, Families & Cultural Services",Debit,14.87,asda superstore 04261,15/04/2015
Nottinghamshire County Council,Teaching Equipment,"Children, Families & Cultural Services",Debit,19.52,tesco stores 5379,07/04/2015
Nottinghamshire County Council,Materials - External,Environment & Resources,Debit,98.78,edmundson electrical,24/04/2015
Nottinghamshire County Council,Office / General Equipment,"Children, Families & Cultural Services",Debit,103.94,amazon svcs europesar,01/05/2015
Nottinghamshire County Council,Provisions,"Children, Families & Cultural Services",Debit,102.30,js online grocery,30/04/2015
Nottinghamshire County Council,Provisions,"Children, Families & Cultural Services",Debit,39.92,wm morrison 067,24/04/2015
Nottinghamshire County Council,Specialist Equipment,"Children, Families & Cultural Services",Debit,185.00,a b waste disposal ltd,23/04/2015
Nottinghamshire County Council,Residence Order Allowance,"Children, Families & Cultural Services",Debit,218.87,hatchers solicitor,21/04/2015
Nottinghamshire County Council,Other Fee's & Services,"Children, Families & Cultural Services",Debit,11.00,nottingham city co,20/04/2015
Nottinghamshire County Council,Specialist Equipment,"Children, Families & Cultural Services",Debit,12.70,amazon uk retail,09/04/2015
Nottinghamshire County Council,Office / General Equipment,"Adult Social Care, Health & Public Protection ",Debit,12.00,b  q,23/04/2015
Nottinghamshire County Council,Office / General Equipment,"Adult Social Care, Health & Public Protection ",Debit,12.00,b  q,23/04/2015
Nottinghamshire County Council,Office / General Equipment,"Adult Social Care, Health & Public Protection ",Debit,64.47,amazon uk retail,16/04/2015
Nottinghamshire County Council,Office / General Equipment,"Adult Social Care, Health & Public Protection ",Debit,14.30,amazon svcs europesar,16/04/2015
Nottinghamshire County Council,Office / General Equipment,"Adult Social Care, Health & Public Protection ",Debit,136.88,brookfields garden cen,15/04/2015
Nottinghamshire County Council,Office / General Equipment,"Adult Social Care, Health & Public Protection ",Debit,25.38,amazon svcs europesar,12/04/2015
Nottinghamshire County Council,Training Fees,"Children, Families & Cultural Services",Debit,8.97,amazon svcs europesar,29/04/2015
Nottinghamshire County Council,Training Fees,"Children, Families & Cultural Services",Debit,17.96,amazon svcs europesar,29/04/2015
Nottinghamshire County Council,General Employee Exps,"Children, Families & Cultural Services",Debit,83.40,travelodge website,28/04/2015
Nottinghamshire County Council,First Aid Equipment Purchases,"Children, Families & Cultural Services",Debit,100.00,scrivens opticians 084,28/04/2015
Nottinghamshire County Council,Stock,"Children, Families & Cultural Services",Debit,5.98,amazon svcs europesar,28/04/2015
Nottinghamshire County Council,General Employee Exps,"Children, Families & Cultural Services",Debit,4.95,virgintrainsec wi-fi,20/04/2015
Nottinghamshire County Council,Office / General Equipment,"Children, Families & Cultural Services",Debit,51.98,amazon svcs europesar,30/04/2015
Nottinghamshire County Council,Office / General Equipment,"Children, Families & Cultural Services",Debit,35.00,more than flowers,29/04/2015
Nottinghamshire County Council,Office / General Equipment,"Children, Families & Cultural Services",Debit,159.99,kiddicare,29/04/2015
Nottinghamshire County Council,Office / General Equipment,"Children, Families & Cultural Services",Debit,86.40,bridge mcfarland,20/04/2015
Nottinghamshire County Council,Office / General Equipment,"Children, Families & Cultural Services",Debit,27.75,gro hm passport office,21/04/2015
Nottinghamshire County Council,Office / General Equipment,"Children, Families & Cultural Services",Debit,216.00,kcm metals  skip hire,07/04/2015
Nottinghamshire County Council,Office / General Equipment,"Children, Families & Cultural Services",Debit,7.07,tesco stores 2995,27/04/2015
Nottinghamshire County Council,Provisions,"Adult Social Care, Health & Public Protection ",Debit,75.00,www.uhbcharities.co.uk,29/04/2015
Nottinghamshire County Council,Materials - External,Environment & Resources,Debit,83.34,eyre  elliston ltd,28/04/2015
Nottinghamshire County Council,Materials - External,Environment & Resources,Debit,4.16,plumb center tp,24/04/2015
Nottinghamshire County Council,Materials - External,Environment & Resources,Debit,15.10,plumb center tp,24/04/2015
Nottinghamshire County Council,Materials - External,Environment & Resources,Debit,16.84,city electrical fa,24/04/2015
Nottinghamshire County Council,Materials - External,Environment & Resources,Debit,19.32,city electrical fa,24/04/2015
Nottinghamshire County Council,Materials - External,Environment & Resources,Debit,215.45,eyre  elliston ltd,15/04/2015
Nottinghamshire County Council,Materials - External,Environment & Resources,Debit,11.29,www.uk.rs-online.c,14/04/2015
Nottinghamshire County Council,Materials - External,Environment & Resources,Debit,5.75,www.uk.rs-online.c,14/04/2015
Nottinghamshire County Council,Materials - External,Environment & Resources,Debit,6.30,www.uk.rs-online.c,14/04/2015
Nottinghamshire County Council,Materials - External,Environment & Resources,Debit,100.22,eyre  elliston ltd,07/04/2015
Nottinghamshire County Council,Materials - External,Environment & Resources,Debit,52.54,eyre  elliston ltd,01/04/2015
Nottinghamshire County Council,Provisions,"Children, Families & Cultural Services",Debit,14.91,aldi,20/04/2015
Nottinghamshire County Council,Provisions,"Children, Families & Cultural Services",Debit,24.70,rufford,14/04/2015
Nottinghamshire County Council,Personal Needs,"Children, Families & Cultural Services",Debit,9.55,odeon,04/04/2015
Nottinghamshire County Council,Office / General Equipment,Environment & Resources,Debit,185.94,viking,01/05/2015
Nottinghamshire County Council,Office / General Equipment,Environment & Resources,Debit,16.93,b  q,16/04/2015
Nottinghamshire County Council,Office / General Equipment,Environment & Resources,Debit,16.93,b  q,16/04/2015
Nottinghamshire County Council,Office / General Equipment,Environment & Resources,Debit,16.08,b  q,16/04/2015
Nottinghamshire County Council,Office / General Equipment,Environment & Resources,Debit,191.36,www.extensive.co.uk,01/05/2015
Nottinghamshire County Council,Office / General Equipment,Environment & Resources,Debit,189.97,cleaning spot,01/05/2015
Nottinghamshire County Council,Office / General Equipment,Environment & Resources,Debit,70.00,wm morrison store,30/04/2015
Nottinghamshire County Council,Office / General Equipment,Environment & Resources,Debit,259.38,screwfix direct,29/04/2015
Nottinghamshire County Council,Office / General Equipment,Environment & Resources,Debit,186.00,bigdug limited,28/04/2015
Nottinghamshire County Council,Office / General Equipment,Environment & Resources,Debit,20.00,odeon,27/04/2015
Nottinghamshire County Council,Office / General Equipment,Environment & Resources,Debit,10.00,halfords 0493,24/04/2015
Nottinghamshire County Council,Office / General Equipment,Environment & Resources,Debit,153.38,cleaning spot,16/04/2015
Nottinghamshire County Council,Office / General Equipment,Environment & Resources,Debit,30.00,vue bsl ltd,11/04/2015
Nottinghamshire County Council,Office / General Equipment,Environment & Resources,Debit,187.38,sybron (uk) ltd,09/04/2015
Nottinghamshire County Council,Office / General Equipment,Environment & Resources,Debit,120.00,odeon,09/04/2015
Nottinghamshire County Council,Office / General Equipment,Environment & Resources,Debit,40.00,vodafone limited,07/04/2015
Nottinghamshire County Council,Office / General Equipment,Environment & Resources,Debit,180.00,cineworld chf cp,04/04/2015
Nottinghamshire County Council,Provisions,"Children, Families & Cultural Services",Debit,3.39,co-op group 017091,12/04/2015
Nottinghamshire County Council,Materials - External,Environment & Resources,Debit,89.50,edmundson electrical,15/04/2015
Nottinghamshire County Council,Materials - External,Environment & Resources,Debit,115.00,edmundson electrical,13/04/2015
Nottinghamshire County Council,Materials - External,Environment & Resources,Debit,30.40,erf electrical wh,20/04/2015
Nottinghamshire County Council,Cleaning & Domestic Equipment,"Children, Families & Cultural Services",Debit,155.98,amazon uk marketplace,27/04/2015
Nottinghamshire County Council,Personal Needs,"Children, Families & Cultural Services",Debit,42.15,savoy cinemas work,20/04/2015
Nottinghamshire County Council,Holidays,"Children, Families & Cultural Services",Debit,42.50,tropical butterfly hou,17/04/2015
Nottinghamshire County Council,Personal Needs,"Children, Families & Cultural Services",Debit,18.75,amazon uk retail,18/04/2015
Nottinghamshire County Council,Personal Needs,"Children, Families & Cultural Services",Debit,29.44,amazon uk marketplace,15/04/2015
Nottinghamshire County Council,Personal Needs,"Children, Families & Cultural Services",Debit,13.62,amazon uk retail,15/04/2015
Nottinghamshire County Council,Personal Needs,"Children, Families & Cultural Services",Debit,17.52,amazon uk retail,14/04/2015
Nottinghamshire County Council,Office / General Equipment,"Children, Families & Cultural Services",Debit,4.48,amazon svcs europesar,13/04/2015
Nottinghamshire County Council,Holidays,"Children, Families & Cultural Services",Debit,30.00,laser combat,10/04/2015
Nottinghamshire County Council,Office / General Equipment,"Children, Families & Cultural Services",Debit,189.00,ikea,13/04/2015
Nottinghamshire County Council,Activities & Support,"Children, Families & Cultural Services",Debit,13.14,asda superstore,24/04/2015
Nottinghamshire County Council,Activities & Support,"Children, Families & Cultural Services",Debit,2.55,greggs - s1772,21/04/2015
Nottinghamshire County Council,Activities & Support,"Children, Families & Cultural Services",Debit,3.39,mcdonalds rest.,20/04/2015
Nottinghamshire County Council,Activities & Support,"Children, Families & Cultural Services",Debit,6.28,subway,17/04/2015
Nottinghamshire County Council,Activities & Support,"Children, Families & Cultural Services",Debit,3.00,intu victoria centre,17/04/2015
Nottinghamshire County Council,Activities & Support,"Children, Families & Cultural Services",Debit,0.99,subway,17/04/2015
Nottinghamshire County Council,Clothing/Shoes/Uniforms,"Children, Families & Cultural Services",Debit,55.00,j d sports 621,17/04/2015
Nottinghamshire County Council,Provisions,"Children, Families & Cultural Services",Debit,18.82,trainline.com,09/04/2015
Nottinghamshire County Council,Office / General Equipment,"Children, Families & Cultural Services",Debit,60.00,timpson ltd,01/05/2015
Nottinghamshire County Council,Postages,"Children, Families & Cultural Services",Debit,1.64,postoffice selfservice,01/05/2015
Nottinghamshire County Council,Training Fees,Environment & Resources,Debit,4.60,amazon svcs europesar,24/04/2015
Nottinghamshire County Council,Training Fees,Environment & Resources,Debit,127.00,amazon uk retail,23/04/2015
Nottinghamshire County Council,Training Fees,Environment & Resources,Debit,76.20,amazon uk retail,23/04/2015
Nottinghamshire County Council,Training Fees,Environment & Resources,Debit,20.00,www.campaignforlearnin,20/04/2015
Nottinghamshire County Council,Office / General Equipment,"Children, Families & Cultural Services",Debit,3.96,card factory,18/04/2015
Nottinghamshire County Council,Other Fee's & Services,"Children, Families & Cultural Services",Debit,17.48,the post office,10/04/2015
Nottinghamshire County Council,Activities & Support,"Children, Families & Cultural Services",Debit,13.00,b  q plc,17/04/2015
Nottinghamshire County Council,Activities & Support,"Children, Families & Cultural Services",Debit,30.94,robinsons caravans,17/04/2015
Nottinghamshire County Council,Activities & Support,"Children, Families & Cultural Services",Debit,396.49,halfords on line,01/04/2015
Nottinghamshire County Council,Provisions,"Children, Families & Cultural Services",Debit,20.80,lion and snake,29/04/2015
Nottinghamshire County Council,Provisions,"Children, Families & Cultural Services",Debit,106.75,asda superstore 04261,24/04/2015
Nottinghamshire County Council,Other Public Transport,"Children, Families & Cultural Services",Debit,4.10,trinity sq carpark,20/04/2015
Nottinghamshire County Council,Provisions,"Children, Families & Cultural Services",Debit,23.58,redhot worldbuffet,20/04/2015
Nottinghamshire County Council,Provisions,"Children, Families & Cultural Services",Debit,26.51,asda stores 4474,17/04/2015
Nottinghamshire County Council,Personal Needs,"Children, Families & Cultural Services",Debit,20.00,giffgaff.com,17/04/2015
Nottinghamshire County Council,Cleaning Materials,"Children, Families & Cultural Services",Debit,10.00,asda stores 4474,13/04/2015
Nottinghamshire County Council,Provisions,"Children, Families & Cultural Services",Debit,102.00,asda stores 4474,13/04/2015
Nottinghamshire County Council,Provisions,"Children, Families & Cultural Services",Debit,33.77,asda store ston in as,03/04/2015
Nottinghamshire County Council,Personal Needs,"Children, Families & Cultural Services",Debit,14.10,wilko retail limit,03/04/2015
Nottinghamshire County Council,Student Subsistence,"Children, Families & Cultural Services",Debit,1.99,sainsburys smkt,30/04/2015
Nottinghamshire County Council,Student Subsistence,"Children, Families & Cultural Services",Debit,42.00,cambridge assessmt,21/04/2015
Nottinghamshire County Council,Student Subsistence,"Children, Families & Cultural Services",Debit,1.29,mcdonalds rest.,20/04/2015
Nottinghamshire County Council,Student Subsistence,"Children, Families & Cultural Services",Debit,2.28,mcdonalds rest.,20/04/2015
Nottinghamshire County Council,Student Subsistence,"Children, Families & Cultural Services",Debit,2.40,costa coffee,17/04/2015
Nottinghamshire County Council,Student Subsistence,"Children, Families & Cultural Services",Debit,43.00,pearson education ltd,16/04/2015
Nottinghamshire County Council,Student Subsistence,"Children, Families & Cultural Services",Debit,21.86,sainsburys smkt,16/04/2015
Nottinghamshire County Council,Student Subsistence,"Children, Families & Cultural Services",Debit,43.00,pearson education ltd,16/04/2015
Nottinghamshire County Council,Student Subsistence,"Children, Families & Cultural Services",Debit,2.50,the new art exchange l,13/04/2015
Nottinghamshire County Council,Aftercare - Equipment,"Children, Families & Cultural Services",Debit,309.44,argos retail group,09/04/2015
Nottinghamshire County Council,Aftercare - Equipment,"Children, Families & Cultural Services",Debit,558.93,argos retail group,09/04/2015
Nottinghamshire County Council,Hospitality,"Policy, Planning & Corporate Services",Debit,61.95,flogas uk ltd,23/04/2015
Nottinghamshire County Council,Members Conference Fees,"Policy, Planning & Corporate Services",Debit,"2,160.00",www.local.gov.uk,15/04/2015
Nottinghamshire County Council,Hospitality,"Policy, Planning & Corporate Services",Debit,30.00,tesco stores (5378),15/04/2015
Nottinghamshire County Council,Hospitality,"Policy, Planning & Corporate Services",Debit,50.00,whsmith.co.uk,14/04/2015
Nottinghamshire County Council,Vehicle Hire,"Policy, Planning & Corporate Services",Debit,100.00,ncc parking /off s,09/04/2015
Nottinghamshire County Council,Postages,"Policy, Planning & Corporate Services",Debit,72.38,www.adt.co.uk,07/04/2015
Nottinghamshire County Council,Office / General Equipment,"Policy, Planning & Corporate Services",Debit,271.90,www.adt.co.uk,07/04/2015
Nottinghamshire County Council,Aftercare - Equipment,"Children, Families & Cultural Services",Debit,140.00,high peak pine and fur,17/04/2015
Nottinghamshire County Council,Materials - External,Environment & Resources,Debit,100.56,crown decorating centr,13/04/2015
Nottinghamshire County Council,Materials - External,Environment & Resources,Debit,14.40,giltbrook electrical d,13/04/2015
Nottinghamshire County Council,Activities & Support,"Children, Families & Cultural Services",Debit,4.50,costa coffee 43038875,15/04/2015
Nottinghamshire County Council,Office / General Equipment,"Children, Families & Cultural Services",Debit,7.00,b  q,18/04/2015
Nottinghamshire County Council,Office / General Equipment,"Children, Families & Cultural Services",Debit,1.00,b  q,18/04/2015
Nottinghamshire County Council,Office / General Equipment,"Children, Families & Cultural Services",Debit,1.00,b  q,18/04/2015
Nottinghamshire County Council,Office / General Equipment,"Children, Families & Cultural Services",Debit,1.00,b  q,18/04/2015
Nottinghamshire County Council,Office / General Equipment,"Children, Families & Cultural Services",Debit,7.00,b  q,18/04/2015
Nottinghamshire County Council,Office / General Equipment,"Children, Families & Cultural Services",Debit,30.00,b  q,16/04/2015
Nottinghamshire County Council,Office / General Equipment,"Children, Families & Cultural Services",Debit,4.98,b  q,16/04/2015
Nottinghamshire County Council,Office / General Equipment,"Children, Families & Cultural Services",Debit,4.98,b  q,16/04/2015
Nottinghamshire County Council,Office / General Equipment,"Children, Families & Cultural Services",Debit,4.98,b  q,16/04/2015
Nottinghamshire County Council,Office / General Equipment,"Children, Families & Cultural Services",Debit,5.48,b  q,16/04/2015
Nottinghamshire County Council,Office / General Equipment,"Children, Families & Cultural Services",Debit,1.19,b  q,16/04/2015
Nottinghamshire County Council,Office / General Equipment,"Children, Families & Cultural Services",Debit,4.98,b  q,16/04/2015
Nottinghamshire County Council,Office / General Equipment,"Children, Families & Cultural Services",Debit,4.51,b  q,16/04/2015
Nottinghamshire County Council,Office / General Equipment,"Children, Families & Cultural Services",Debit,5.48,b  q,16/04/2015
Nottinghamshire County Council,Office / General Equipment,"Children, Families & Cultural Services",Debit,4.51,b  q,16/04/2015
Nottinghamshire County Council,Office / General Equipment,"Children, Families & Cultural Services",Debit,5.48,b  q,16/04/2015
Nottinghamshire County Council,Office / General Equipment,"Children, Families & Cultural Services",Debit,5.48,b  q,16/04/2015
Nottinghamshire County Council,Office / General Equipment,"Children, Families & Cultural Services",Debit,36.00,b  q,16/04/2015
Nottinghamshire County Council,Office / General Equipment,"Children, Families & Cultural Services",Debit,1.19,b  q,16/04/2015
Nottinghamshire County Council,Office / General Equipment,"Children, Families & Cultural Services",Debit,0.95,post office counter,20/04/2015
Nottinghamshire County Council,Office / General Equipment,"Children, Families & Cultural Services",Debit,79.48,key building suppl,11/04/2015
Nottinghamshire County Council,Office / General Equipment,"Children, Families & Cultural Services",Debit,46.97,screwfix direct,12/04/2015
Nottinghamshire County Council,Other Fee's & Services,"Adult Social Care, Health & Public Protection ",Debit,9.25,gro hm passport office,17/04/2015
Nottinghamshire County Council,Postages,"Adult Social Care, Health & Public Protection ",Debit,19.44,post office counter,09/04/2015
Nottinghamshire County Council,Personal Needs,"Children, Families & Cultural Services",Debit,8.00,poundland ltd 1197,01/05/2015
Nottinghamshire County Council,Clothing/Shoes/Uniforms,"Children, Families & Cultural Services",Debit,65.00,j d sports 269,01/05/2015
Nottinghamshire County Council,Materials - External,Environment & Resources,Debit,94.51,keyline ashfield,23/04/2015
Nottinghamshire County Council,Materials - External,Environment & Resources,Debit,47.24,keyline ashfield,16/04/2015
Nottinghamshire County Council,Activities & Support,"Children, Families & Cultural Services",Debit,21.60,timpson ltd,30/04/2015
Nottinghamshire County Council,Activities & Support,"Children, Families & Cultural Services",Debit,15.56,wm morrisons plc,30/04/2015
Nottinghamshire County Council,Activities & Support,"Children, Families & Cultural Services",Debit,33.50,tesco stores 5437,29/04/2015
Nottinghamshire County Council,Activities & Support,"Children, Families & Cultural Services",Debit,14.30,asda superstore 04261,28/04/2015
Nottinghamshire County Council,Activities & Support,"Children, Families & Cultural Services",Debit,19.10,asda superstore 04261,23/04/2015
Nottinghamshire County Council,Activities & Support,"Children, Families & Cultural Services",Debit,14.10,wm morrisons plc,22/04/2015
Nottinghamshire County Council,Activities & Support,"Children, Families & Cultural Services",Debit,26.22,asda store ston in as,21/04/2015
Nottinghamshire County Council,Activities & Support,"Children, Families & Cultural Services",Debit,34.99,argos ltd,21/04/2015
Nottinghamshire County Council,Activities & Support,"Children, Families & Cultural Services",Debit,39.00,the range nottinghamsh,21/04/2015
Nottinghamshire County Council,Unallocated Budget,"Children, Families & Cultural Services",Debit,238.80,cieh,22/04/2015
Nottinghamshire County Council,Office / General Equipment,"Children, Families & Cultural Services",Debit,2.98,b  q,23/04/2015
Nottinghamshire County Council,Office / General Equipment,"Children, Families & Cultural Services",Debit,19.87,b  q,23/04/2015
Nottinghamshire County Council,Office / General Equipment,"Children, Families & Cultural Services",Debit,29.00,b  q,23/04/2015
Nottinghamshire County Council,Office / General Equipment,"Children, Families & Cultural Services",Debit,2.98,b  q,23/04/2015
Nottinghamshire County Council,Office / General Equipment,"Children, Families & Cultural Services",Debit,19.87,b  q,23/04/2015
Nottinghamshire County Council,Office / General Equipment,"Children, Families & Cultural Services",Debit,19.87,b  q,23/04/2015
Nottinghamshire County Council,Provisions,"Children, Families & Cultural Services",Debit,15.08,tesco stores 5437,17/04/2015
Nottinghamshire County Council,Cleaning & Domestic Equipment,"Children, Families & Cultural Services",Debit,47.70,wilko retail limit,16/04/2015
Nottinghamshire County Council,Provisions,"Children, Families & Cultural Services",Debit,8.50,tesco stores 5437,14/04/2015
Nottinghamshire County Council,Personal Needs,"Children, Families & Cultural Services",Debit,5.04,max tesco 3275,14/04/2015
Nottinghamshire County Council,Provisions,"Children, Families & Cultural Services",Debit,19.23,tesco stores 5437,12/04/2015
Nottinghamshire County Council,Activities & Support,"Children, Families & Cultural Services",Debit,35.00,asda superstore 04261,03/05/2015
Nottinghamshire County Council,Activities & Support,"Children, Families & Cultural Services",Debit,330.00,water meadows swim,29/04/2015
Nottinghamshire County Council,Activities & Support,"Children, Families & Cultural Services",Debit,21.64,tesco stores 5437,29/04/2015
Nottinghamshire County Council,Activities & Support,"Children, Families & Cultural Services",Debit,330.00,water meadows swim,29/04/2015
Nottinghamshire County Council,Activities & Support,"Children, Families & Cultural Services",Debit,8.50,tesco stores 5437,28/04/2015
Nottinghamshire County Council,Activities & Support,"Children, Families & Cultural Services",Debit,16.94,tesco stores 5437,28/04/2015
Nottinghamshire County Council,Activities & Support,"Children, Families & Cultural Services",Debit,11.07,asda superstore 04261,24/04/2015
Nottinghamshire County Council,Activities & Support,"Children, Families & Cultural Services",Debit,11.22,tesco stores 5437,20/04/2015
Nottinghamshire County Council,Activities & Support,"Children, Families & Cultural Services",Debit,7.80,poundstretcher 715,14/04/2015
Nottinghamshire County Council,Activities & Support,"Children, Families & Cultural Services",Debit,3.00,poundland ltd 1333,14/04/2015
Nottinghamshire County Council,Other Fee's & Services,Environment & Resources,Debit,228.00,wp-hemming group l,17/04/2015
Nottinghamshire County Council,Minor Works,"Children, Families & Cultural Services",Debit,1.98,b  q,02/05/2015
Nottinghamshire County Council,Minor Works,"Children, Families & Cultural Services",Debit,2.37,b  q,02/05/2015
Nottinghamshire County Council,Minor Works,"Children, Families & Cultural Services",Debit,2.37,b  q,02/05/2015
Nottinghamshire County Council,Minor Works,"Children, Families & Cultural Services",Debit,2.75,b  q,02/05/2015
Nottinghamshire County Council,Minor Works,"Children, Families & Cultural Services",Debit,2.75,b  q,02/05/2015
Nottinghamshire County Council,Minor Works,"Children, Families & Cultural Services",Debit,9.24,b  q,02/05/2015
Nottinghamshire County Council,Materials - External,"Children, Families & Cultural Services",Debit,199.96,www.gardenature.co.uk,30/04/2015
Nottinghamshire County Council,Minor Works,"Children, Families & Cultural Services",Debit,5.50,b  q,26/04/2015
Nottinghamshire County Council,Minor Works,"Children, Families & Cultural Services",Debit,14.00,b  q,26/04/2015
Nottinghamshire County Council,Minor Works,"Children, Families & Cultural Services",Debit,13.20,b  q,26/04/2015
Nottinghamshire County Council,Minor Works,"Children, Families & Cultural Services",Debit,2.37,b  q,26/04/2015
Nottinghamshire County Council,Minor Works,"Children, Families & Cultural Services",Debit,13.20,b  q,26/04/2015
Nottinghamshire County Council,Minor Works,"Children, Families & Cultural Services",Debit,2.88,b  q,26/04/2015
Nottinghamshire County Council,Minor Works,"Children, Families & Cultural Services",Debit,13.92,b  q,26/04/2015
Nottinghamshire County Council,Minor Works,"Children, Families & Cultural Services",Debit,0.94,b  q,26/04/2015
Nottinghamshire County Council,Minor Works,"Children, Families & Cultural Services",Debit,2.63,b  q,26/04/2015
Nottinghamshire County Council,Minor Works,"Children, Families & Cultural Services",Debit,5.50,b  q,26/04/2015
Nottinghamshire County Council,Minor Works,"Children, Families & Cultural Services",Debit,13.92,b  q,26/04/2015
Nottinghamshire County Council,Minor Works,"Children, Families & Cultural Services",Debit,8.10,b  q,26/04/2015
Nottinghamshire County Council,Minor Works,"Children, Families & Cultural Services",Debit,0.94,b  q,26/04/2015
Nottinghamshire County Council,Minor Works,"Children, Families & Cultural Services",Debit,100.08,key building suppl,09/04/2015
Nottinghamshire County Council,Materials - External,"Children, Families & Cultural Services",Debit,70.96,farmstar ltd,08/04/2015
Nottinghamshire County Council,Minor Works,"Children, Families & Cultural Services",Debit,56.20,mansfield garden machine,02/04/2015
Nottinghamshire County Council,Activities & Support,"Children, Families & Cultural Services",Debit,1.99,card factory,25/04/2015
Nottinghamshire County Council,Activities & Support,"Children, Families & Cultural Services",Debit,1.20,sainsburys s/mkts,15/04/2015
Nottinghamshire County Council,Activities & Support,"Children, Families & Cultural Services",Debit,21.06,asda superstore 04261,14/04/2015
Nottinghamshire County Council,Activities & Support,"Children, Families & Cultural Services",Debit,9.71,tesco stores 5379,08/04/2015
Nottinghamshire County Council,Activities & Support,"Children, Families & Cultural Services",Debit,12.25,tesco stores 5379,07/04/2015
Nottinghamshire County Council,Office / General Equipment,"Adult Social Care, Health & Public Protection ",Debit,20.94,amazon svcs europesar,08/04/2015
Nottinghamshire County Council,Office / General Equipment,"Adult Social Care, Health & Public Protection ",Debit,21.29,amazon uk marketplace,07/04/2015
Nottinghamshire County Council,Office / General Equipment,"Adult Social Care, Health & Public Protection ",Debit,18.76,amazon svcs europesar,07/04/2015
Nottinghamshire County Council,Activities & Support,"Children, Families & Cultural Services",Debit,13.95,w m morrison,01/05/2015
Nottinghamshire County Council,Activities & Support,"Children, Families & Cultural Services",Debit,17.06,w m morrison,23/04/2015
Nottinghamshire County Council,Materials - External,Place,Debit,9.22,s jeyes  son (midland,22/04/2015
Nottinghamshire County Council,Materials - External,Place,Debit,146.90,k h electrical distrib,17/04/2015
Nottinghamshire County Council,Provisions,"Children, Families & Cultural Services",Debit,2.00,co-op group 017091,24/04/2015
Nottinghamshire County Council,Provisions,"Children, Families & Cultural Services",Debit,6.39,co-op group 017091,23/04/2015
Nottinghamshire County Council,Office / General Equipment,"Children, Families & Cultural Services",Debit,52.24,argos ltd,10/04/2015
Nottinghamshire County Council,Provisions,"Children, Families & Cultural Services",Debit,15.15,tesco stores 2995,07/04/2015
Nottinghamshire County Council,Activities & Support,"Children, Families & Cultural Services",Debit,49.24,tesco stores 2702,29/04/2015
Nottinghamshire County Council,Provisions,"Adult Social Care, Health & Public Protection ",Debit,136.69,wm morrison food.com,29/04/2015
Nottinghamshire County Council,Cleaning & Domestic Equipment,"Adult Social Care, Health & Public Protection ",Debit,53.00,asda home shopping,28/04/2015
Nottinghamshire County Council,Provisions,"Adult Social Care, Health & Public Protection ",Debit,119.87,wm morrison food.com,23/04/2015
Nottinghamshire County Council,Provisions,"Adult Social Care, Health & Public Protection ",Debit,136.20,wm morrison food.com,09/04/2015
Nottinghamshire County Council,Provisions,"Adult Social Care, Health & Public Protection ",Debit,195.09,wm morrison food.com,03/04/2015
Nottinghamshire County Council,Provisions,"Adult Social Care, Health & Public Protection ",Debit,57.60,asda home shopping,27/04/2015
Nottinghamshire County Council,Provisions,"Adult Social Care, Health & Public Protection ",Debit,179.05,asda home shopping,23/04/2015
Nottinghamshire County Council,Provisions,"Adult Social Care, Health & Public Protection ",Debit,67.59,asda home shopping,20/04/2015
Nottinghamshire County Council,Provisions,"Adult Social Care, Health & Public Protection ",Credit,-0.64,asda home shopping,16/04/2015
Nottinghamshire County Council,Provisions,"Adult Social Care, Health & Public Protection ",Debit,172.41,asda home shopping,16/04/2015
Nottinghamshire County Council,Provisions,"Adult Social Care, Health & Public Protection ",Debit,67.91,asda home shopping,13/04/2015
Nottinghamshire County Council,Provisions,"Adult Social Care, Health & Public Protection ",Debit,200.79,asda home shopping,09/04/2015
Nottinghamshire County Council,Activities & Support,"Children, Families & Cultural Services",Debit,3.98,aldi,17/04/2015
Nottinghamshire County Council,Activities & Support,"Children, Families & Cultural Services",Debit,2.05,sainsburys s/mkt,18/04/2015
Nottinghamshire County Council,Activities & Support,"Children, Families & Cultural Services",Debit,11.05,aldi,09/04/2015
Nottinghamshire County Council,Provisions,"Adult Social Care, Health & Public Protection ",Debit,12.00,iceland,01/05/2015
Nottinghamshire County Council,Provisions,"Adult Social Care, Health & Public Protection ",Debit,53.60,moorcroft seafoods ltd,30/04/2015
Nottinghamshire County Council,Provisions,"Adult Social Care, Health & Public Protection ",Debit,3.15,iceland,28/04/2015
Nottinghamshire County Council,Provisions,"Adult Social Care, Health & Public Protection ",Debit,6.50,iceland,26/04/2015
Nottinghamshire County Council,Provisions,"Adult Social Care, Health & Public Protection ",Debit,58.48,moorcroft seafoods ltd,23/04/2015
Nottinghamshire County Council,Provisions,"Adult Social Care, Health & Public Protection ",Debit,75.68,iceland,22/04/2015
Nottinghamshire County Council,Provisions,"Adult Social Care, Health & Public Protection ",Debit,31.22,iceland,14/04/2015
Nottinghamshire County Council,Provisions,"Adult Social Care, Health & Public Protection ",Debit,41.15,iceland,08/04/2015
Nottinghamshire County Council,Activities & Support,"Children, Families & Cultural Services",Debit,6.00,wm morrisons plc,18/04/2015
Nottinghamshire County Council,Activities & Support,"Children, Families & Cultural Services",Debit,26.08,tesco stores 5437,14/04/2015
Nottinghamshire County Council,Activities & Support,"Children, Families & Cultural Services",Debit,29.27,tesco stores 5437,07/04/2015
Nottinghamshire County Council,Activities & Support,"Children, Families & Cultural Services",Debit,26.33,wm morrisons plc,04/04/2015
Nottinghamshire County Council,Cleaning & Domestic Equipment,"Adult Social Care, Health & Public Protection ",Debit,70.00,matalan,22/04/2015
Nottinghamshire County Council,Office / General Equipment,"Children, Families & Cultural Services",Debit,114.78,morplan ltd,29/04/2015
Nottinghamshire County Council,Office / General Equipment,"Children, Families & Cultural Services",Debit,111.48,morplan ltd,28/04/2015
Nottinghamshire County Council,Stock,"Children, Families & Cultural Services",Debit,314.28,morplan ltd,09/04/2015
Nottinghamshire County Council,Activities & Support,"Children, Families & Cultural Services",Debit,6.62,tesco stores 2733,08/04/2015
Nottinghamshire County Council,Activities & Support,"Children, Families & Cultural Services",Debit,11.81,sainsburys s/mkt,07/04/2015
Nottinghamshire County Council,Office / General Equipment,"Children, Families & Cultural Services",Debit,5.00,wsale office supp,27/04/2015
Nottinghamshire County Council,Other Fee's & Services,"Children, Families & Cultural Services",Debit,145.50,tv licensing,20/04/2015
Nottinghamshire County Council,Cleaning Materials,"Children, Families & Cultural Services",Debit,5.37,aldi,20/04/2015
Nottinghamshire County Council,Cleaning Materials,"Children, Families & Cultural Services",Debit,6.00,sainsburys s/mkts,20/04/2015
Nottinghamshire County Council,Cleaning Materials,"Children, Families & Cultural Services",Debit,94.99,argos ltd,09/04/2015
Nottinghamshire County Council,Clothing/Shoes/Uniforms,"Children, Families & Cultural Services",Debit,35.50,primark,07/04/2015
Nottinghamshire County Council,Activities & Support,"Children, Families & Cultural Services",Debit,3.45,sainsburys s/mkts,30/04/2015
Nottinghamshire County Council,Activities & Support,"Children, Families & Cultural Services",Debit,38.80,ikea,28/04/2015
Nottinghamshire County Council,Activities & Support,"Children, Families & Cultural Services",Debit,4.00,tesco stores 5329,24/04/2015
Nottinghamshire County Council,Activities & Support,"Children, Families & Cultural Services",Debit,20.00,sainsburys s/mkts,22/04/2015
Nottinghamshire County Council,Personal Needs,"Children, Families & Cultural Services",Debit,16.98,superdrug stores plc,23/04/2015
Nottinghamshire County Council,Provisions,"Children, Families & Cultural Services",Debit,10.90,the promenade fish bar,17/04/2015
Nottinghamshire County Council,Personal Needs,"Children, Families & Cultural Services",Debit,2.00,sainsburys s/mkts,17/04/2015
Nottinghamshire County Council,Personal Needs,"Children, Families & Cultural Services",Debit,21.45,odeon,15/04/2015
Nottinghamshire County Council,Personal Needs,"Children, Families & Cultural Services",Debit,2.35,waitrose 227,15/04/2015
Nottinghamshire County Council,Minor Works,"Children, Families & Cultural Services",Debit,26.88,b  q,01/05/2015
Nottinghamshire County Council,Minor Works,"Children, Families & Cultural Services",Debit,56.60,planet pizza,25/04/2015
Nottinghamshire County Council,Minor Works,"Children, Families & Cultural Services",Debit,40.00,planet pizza,17/04/2015
Nottinghamshire County Council,Materials - External,Place,Debit,18.64,burdens,21/04/2015
Nottinghamshire County Council,Office / General Equipment,Place,Debit,37.99,burdens,21/04/2015
Nottinghamshire County Council,Office / General Equipment,Place,Debit,23.95,burdens,21/04/2015
Nottinghamshire County Council,Materials - External,Place,Debit,150.37,burdens,21/04/2015
Nottinghamshire County Council,Materials - External,Place,Debit,28.99,terratruck distrib,21/04/2015
Nottinghamshire County Council,Materials - External,Place,Debit,168.00,fast graphics ltd,07/04/2015
Nottinghamshire County Council,Office / General Equipment,Place ,Debit,48.99,amazon svcs europesar,30/04/2015
Nottinghamshire County Council,Office / General Equipment,Place ,Debit,4.99,amazon svcs europesar,23/04/2015
Nottinghamshire County Council,Office / General Equipment,Place ,Debit,143.04,hudsons media ltd,15/04/2015
Nottinghamshire County Council,Provisions,Place ,Debit,69.95,barrons of,14/04/2015
Nottinghamshire County Council,Postages,Place ,Debit,14.47,post office counter,14/04/2015
Nottinghamshire County Council,Books - General,"Children, Families & Cultural Services",Debit,39.46,amazon uk retail,01/05/2015
Nottinghamshire County Council,Books - General,"Children, Families & Cultural Services",Debit,42.66,paypal  ,24/04/2015
Nottinghamshire County Council,Books - General,"Children, Families & Cultural Services",Debit,10.61,amazon svcs europesar,27/04/2015
Nottinghamshire County Council,Books - General,"Children, Families & Cultural Services",Debit,209.48,paypal  ,21/04/2015
Nottinghamshire County Council,Books - General,"Children, Families & Cultural Services",Debit,187.45,www.muji.co.uk,17/04/2015
Nottinghamshire County Council,Books - General,"Children, Families & Cultural Services",Debit,25.97,amazon uk retail,15/04/2015
Nottinghamshire County Council,Books - General,"Children, Families & Cultural Services",Debit,7.99,amazon uk retail,08/04/2015
Nottinghamshire County Council,Books - General,"Children, Families & Cultural Services",Debit,79.99,amazon uk retail,07/04/2015
Nottinghamshire County Council,Postages,Resources,Debit,55.73,www.neopost.co.uk,27/04/2015
Nottinghamshire County Council,Postages,Resources,Debit,1.67,www.neopost.co.uk,27/04/2015
Nottinghamshire County Council,Provisions,"Children, Families & Cultural Services",Debit,87.71,aldi,27/04/2015
Nottinghamshire County Council,Provisions,"Children, Families & Cultural Services",Debit,14.89,aldi,27/04/2015
Nottinghamshire County Council,Provisions,"Children, Families & Cultural Services",Debit,33.64,tesco stores 5437,24/04/2015
Nottinghamshire County Council,Personal Needs,"Children, Families & Cultural Services",Debit,5.68,mcdonalds rest.,30/04/2015
Nottinghamshire County Council,Personal Needs,"Children, Families & Cultural Services",Debit,208.04,argos ltd,30/04/2015
Nottinghamshire County Council,Personal Needs,"Children, Families & Cultural Services",Debit,16.00,nottingham city co,30/04/2015
Nottinghamshire County Council,Personal Needs,"Children, Families & Cultural Services",Debit,15.47,argos ltd,30/04/2015
Nottinghamshire County Council,Personal Needs,"Children, Families & Cultural Services",Debit,3.97,tesco stores 5437,24/04/2015
Nottinghamshire County Council,Personal Needs,"Children, Families & Cultural Services",Debit,3.39,mcdonalds rest.,23/04/2015
Nottinghamshire County Council,Personal Needs,"Children, Families & Cultural Services",Debit,151.08,asda superstore,23/04/2015
Nottinghamshire County Council,Personal Needs,"Children, Families & Cultural Services",Debit,50.00,the stage hotel,21/04/2015
Nottinghamshire County Council,Personal Needs,"Children, Families & Cultural Services",Debit,30.00,asda superstore,22/04/2015
Nottinghamshire County Council,Personal Needs,"Children, Families & Cultural Services",Debit,5.13,ncp limited,22/04/2015
Nottinghamshire County Council,Personal Needs,"Children, Families & Cultural Services",Debit,30.00,tesco stores 6430,22/04/2015
Nottinghamshire County Council,Personal Needs,"Children, Families & Cultural Services",Debit,15.80,sainsburys s/mkt,21/04/2015
Nottinghamshire County Council,Personal Needs,"Children, Families & Cultural Services",Debit,22.25,sainsburys smkt,17/04/2015
Nottinghamshire County Council,Personal Needs,"Children, Families & Cultural Services",Debit,4.87,mcdonalds rest.,15/04/2015
Nottinghamshire County Council,Personal Needs,"Children, Families & Cultural Services",Debit,1.98,mcdonalds rest.,15/04/2015
Nottinghamshire County Council,Personal Needs,"Children, Families & Cultural Services",Debit,5.29,sainsburys s/mkts,14/04/2015
Nottinghamshire County Council,Personal Needs,"Children, Families & Cultural Services",Debit,27.24,sainsburys s/mkts,14/04/2015
Nottinghamshire County Council,Personal Needs,"Children, Families & Cultural Services",Debit,96.20,stoke on trent city co,14/04/2015
Nottinghamshire County Council,Personal Needs,"Children, Families & Cultural Services",Debit,14.19,sainsburys s/mkts,14/04/2015
Nottinghamshire County Council,Materials - Stores,Place,Debit,28.48,homebase ltd,24/04/2015
Nottinghamshire County Council,Provisions,"Adult Social Care, Health & Public Protection ",Debit,36.70,jtf wholesale ltd,30/04/2015
Nottinghamshire County Council,Provisions,"Adult Social Care, Health & Public Protection ",Debit,49.78,paul white limited,30/04/2015
Nottinghamshire County Council,Provisions,"Adult Social Care, Health & Public Protection ",Debit,37.93,tk maxx,30/04/2015
Nottinghamshire County Council,Provisions,"Adult Social Care, Health & Public Protection ",Debit,6.88,tesco stores 2702,28/04/2015
Nottinghamshire County Council,Provisions,"Adult Social Care, Health & Public Protection ",Credit,-16.14,www.floristsuppliesuk.co,20/04/2015
Nottinghamshire County Council,Provisions,Environment & Resources,Debit,9.00,iceland,01/05/2015
Nottinghamshire County Council,Provisions,Environment & Resources,Debit,5.34,iceland,01/05/2015
Nottinghamshire County Council,Provisions,Environment & Resources,Debit,2.60,iceland,02/05/2015
Nottinghamshire County Council,Provisions,Environment & Resources,Debit,5.50,iceland,30/04/2015
Nottinghamshire County Council,Provisions,Environment & Resources,Debit,16.21,iceland,27/04/2015
Nottinghamshire County Council,Provisions,Environment & Resources,Debit,2.50,iceland,23/04/2015
Nottinghamshire County Council,Provisions,Environment & Resources,Debit,13.51,iceland,20/04/2015
Nottinghamshire County Council,Provisions,Environment & Resources,Debit,11.23,iceland,14/04/2015
Nottinghamshire County Council,Provisions,Environment & Resources,Debit,1.49,iceland,13/04/2015
Nottinghamshire County Council,Provisions,Environment & Resources,Debit,20.05,iceland,10/04/2015
Nottinghamshire County Council,Provisions,Environment & Resources,Debit,3.54,aldi,10/04/2015
Nottinghamshire County Council,Provisions,Environment & Resources,Debit,11.68,iceland,07/04/2015
Nottinghamshire County Council,Activities & Support,"Children, Families & Cultural Services",Debit,124.99,child poverty,09/04/2015
Nottinghamshire County Council,Office / General Equipment,Environment & Resources,Debit,132.43,gibbs  dandy,16/04/2015
Nottinghamshire County Council,Activities & Support,"Children, Families & Cultural Services",Debit,22.29,asda store ston in as,24/04/2015
Nottinghamshire County Council,Activities & Support,"Children, Families & Cultural Services",Debit,29.87,asda store ston in as,24/04/2015
Nottinghamshire County Council,Activities & Support,"Children, Families & Cultural Services",Debit,0.89,aldi,22/04/2015
Nottinghamshire County Council,Materials - External,Environment & Resources,Debit,109.67,tubes fittings,29/04/2015
Nottinghamshire County Council,Materials - External,Environment & Resources,Debit,42.83,tubes fittings,29/04/2015
Nottinghamshire County Council,Materials - External,Environment & Resources,Debit,26.41,tubes fittings,29/04/2015
Nottinghamshire County Council,Materials - External,Environment & Resources,Debit,42.24,tubes fittings,17/04/2015
Nottinghamshire County Council,Materials - External,Environment & Resources,Debit,142.96,tubes fittings,18/04/2015
Nottinghamshire County Council,Materials - External,Environment & Resources,Debit,64.90,tubes fittings,15/04/2015
Nottinghamshire County Council,Materials - External,Environment & Resources,Debit,87.92,tubes fittings,15/04/2015
Nottinghamshire County Council,Materials - External,Environment & Resources,Debit,311.06,tubes fittings,15/04/2015
Nottinghamshire County Council,Materials - External,Environment & Resources,Debit,27.57,tubes fittings,15/04/2015
Nottinghamshire County Council,Materials - External,Environment & Resources,Debit,367.33,tubes fittings,13/04/2015
Nottinghamshire County Council,Materials - External,Environment & Resources,Debit,399.56,tubes fittings,13/04/2015
Nottinghamshire County Council,Materials - External,Environment & Resources,Debit,85.37,tubes fittings,13/04/2015
Nottinghamshire County Council,Materials - External,Environment & Resources,Debit,128.67,bss group plc,08/04/2015
Nottinghamshire County Council,Materials - External,Environment & Resources,Debit,67.35,bss group plc,08/04/2015
Nottinghamshire County Council,Materials - External,Environment & Resources,Debit,15.47,bss group plc,08/04/2015
Nottinghamshire County Council,Materials - External,Environment & Resources,Debit,57.22,bss group plc,08/04/2015
Nottinghamshire County Council,Materials - External,Environment & Resources,Debit,9.47,bss group plc,08/04/2015
Nottinghamshire County Council,Materials - External,Environment & Resources,Debit,47.40,bss group plc,08/04/2015
Nottinghamshire County Council,Materials - External,Environment & Resources,Debit,3.54,bss group plc,08/04/2015
Nottinghamshire County Council,Materials - External,Environment & Resources,Debit,6.00,bss group plc,08/04/2015
Nottinghamshire County Council,Materials - External,Environment & Resources,Debit,11.40,bss group plc,08/04/2015
Nottinghamshire County Council,Materials - External,Environment & Resources,Debit,61.25,arco ltd,28/04/2015
Nottinghamshire County Council,Personal Needs,"Children, Families & Cultural Services",Debit,45.00,the stage hotel,14/04/2015
Nottinghamshire County Council,Materials - External,Environment & Resources,Debit,2.04,city electrical fa,30/04/2015
Nottinghamshire County Council,Materials - External,Environment & Resources,Debit,34.63,city electrical fa,30/04/2015
Nottinghamshire County Council,Materials - External,Environment & Resources,Debit,8.57,city electrical fa,30/04/2015
Nottinghamshire County Council,Materials - External,Environment & Resources,Debit,0.66,city electrical fa,30/04/2015
Nottinghamshire County Council,Materials - External,Environment & Resources,Debit,13.96,city electrical fa,30/04/2015
Nottinghamshire County Council,Materials - External,Environment & Resources,Debit,21.78,city electrical fa,30/04/2015
Nottinghamshire County Council,Materials - External,Environment & Resources,Debit,2.05,city electrical fa,30/04/2015
Nottinghamshire County Council,Materials - External,Environment & Resources,Debit,1.74,city electrical fa,30/04/2015
Nottinghamshire County Council,Materials - External,Environment & Resources,Debit,15.53,city electrical fa,30/04/2015
Nottinghamshire County Council,Materials - External,Environment & Resources,Debit,3.38,city electrical fa,30/04/2015
Nottinghamshire County Council,Materials - External,Environment & Resources,Debit,21.00,edmundson electrical,24/04/2015
Nottinghamshire County Council,Materials - External,Environment & Resources,Debit,143.36,city electrical fa,20/04/2015
Nottinghamshire County Council,Materials - External,Environment & Resources,Debit,104.18,city electrical fa,20/04/2015
Nottinghamshire County Council,Materials - External,Environment & Resources,Debit,24.00,city electrical fa,20/04/2015
Nottinghamshire County Council,Materials - External,Environment & Resources,Debit,142.08,city electrical fa,20/04/2015
Nottinghamshire County Council,Materials - External,Environment & Resources,Debit,107.28,city electrical fa,20/04/2015
Nottinghamshire County Council,Materials - External,Environment & Resources,Debit,40.61,city electrical fa,20/04/2015
Nottinghamshire County Council,Materials - External,Place ,Debit,182.40,18000,22/04/2015
Nottinghamshire County Council,Materials - External,Place ,Debit,21.84,18000,09/04/2015
Nottinghamshire County Council,Specialist Equipment,"Children, Families & Cultural Services",Debit,185.34,screwfix,25/04/2015
Nottinghamshire County Council,Specialist Equipment,"Children, Families & Cultural Services",Debit,165.00,custom frames picture fr,14/04/2015
Nottinghamshire County Council,Specialist Equipment,"Children, Families & Cultural Services",Debit,136.46,www.ukpos.com,14/04/2015
Nottinghamshire County Council,Specialist Equipment,"Children, Families & Cultural Services",Debit,208.00,ikea online,13/04/2015
Nottinghamshire County Council,Specialist Equipment,"Children, Families & Cultural Services",Debit,116.93,screwfix,07/04/2015
Nottinghamshire County Council,Activities & Support,"Children, Families & Cultural Services",Debit,9.89,asda store ston in as,14/04/2015
Nottinghamshire County Council,Activities & Support,"Children, Families & Cultural Services",Debit,18.97,wm morrison 023,12/04/2015
Nottinghamshire County Council,Activities & Support,"Children, Families & Cultural Services",Debit,113.78,booker limited mansfield,29/04/2015
Nottinghamshire County Council,Activities & Support,"Policy, Planning & Corporate Services",Debit,40.99,amazon uk retail,03/05/2015
Nottinghamshire County Council,Activities & Support,"Policy, Planning & Corporate Services",Debit,313.00,www.istock.com,30/04/2015
Nottinghamshire County Council,Activities & Support,"Policy, Planning & Corporate Services",Debit,53.85,stk bigstockphoto.com,27/04/2015
Nottinghamshire County Council,Personal Needs,"Children, Families & Cultural Services",Debit,4.90,costa coffee,17/04/2015
Nottinghamshire County Council,Personal Needs,"Children, Families & Cultural Services",Debit,3.40,starbucks,07/04/2015
Nottinghamshire County Council,Activities & Support,"Children, Families & Cultural Services",Debit,117.69,w m morrisons,29/04/2015
Nottinghamshire County Council,Activities & Support,"Children, Families & Cultural Services",Debit,6.49,sainsburys s/mkt,24/04/2015
Nottinghamshire County Council,Activities & Support,"Children, Families & Cultural Services",Debit,11.42,lidl uk,24/04/2015
Nottinghamshire County Council,Activities & Support,"Children, Families & Cultural Services",Debit,27.33,co-op group 010811,21/04/2015
Nottinghamshire County Council,Other Fee's & Services,"Children, Families & Cultural Services",Debit,11.00,nottingham city co,01/05/2015
Nottinghamshire County Council,Other Fee's & Services,"Children, Families & Cultural Services",Debit,22.00,lcc telephone payment,01/05/2015
Nottinghamshire County Council,Other Fee's & Services,"Children, Families & Cultural Services",Debit,11.00,nottingham city co,30/04/2015
Nottinghamshire County Council,Other Fee's & Services,"Children, Families & Cultural Services",Credit,-11.00,sheffield city cnc,30/04/2015
Nottinghamshire County Council,Other Fee's & Services,"Children, Families & Cultural Services",Debit,10.00,east riding of yorkshi,30/04/2015
Nottinghamshire County Council,Other Fee's & Services,"Children, Families & Cultural Services",Debit,11.00,nottingham city co,30/04/2015
Nottinghamshire County Council,Other Fee's & Services,"Children, Families & Cultural Services",Debit,11.00,nottingham city co,30/04/2015
Nottinghamshire County Council,Other Fee's & Services,"Children, Families & Cultural Services",Debit,11.00,nottingham city co,30/04/2015
Nottinghamshire County Council,Other Fee's & Services,"Children, Families & Cultural Services",Debit,11.00,nottingham city co,30/04/2015
Nottinghamshire County Council,Rent / Hire Rooms,"Children, Families & Cultural Services",Debit,19.35,gedling bc int,29/04/2015
Nottinghamshire County Council,Other Fee's & Services,"Children, Families & Cultural Services",Debit,21.00,nottingham city co,29/04/2015
Nottinghamshire County Council,Other Fee's & Services,"Children, Families & Cultural Services",Debit,9.25,gro hm passport office,28/04/2015
Nottinghamshire County Council,Activities & Support,"Children, Families & Cultural Services",Debit,149.50,water meadows swim,28/04/2015
Nottinghamshire County Council,Other Fee's & Services,"Children, Families & Cultural Services",Debit,16.00,nottingham city co,28/04/2015
Nottinghamshire County Council,Other Fee's & Services,"Children, Families & Cultural Services",Debit,11.00,sheffield city cnc,28/04/2015
Nottinghamshire County Council,Other Fee's & Services,"Children, Families & Cultural Services",Debit,11.00,nottingham city co,27/04/2015
Nottinghamshire County Council,Other Fee's & Services,"Children, Families & Cultural Services",Debit,21.00,nottingham city co,27/04/2015
Nottinghamshire County Council,Other Fee's & Services,"Children, Families & Cultural Services",Debit,11.00,nottingham city co,27/04/2015
Nottinghamshire County Council,Unallocated Budget,"Children, Families & Cultural Services",Debit,11.00,nottingham city co,27/04/2015
Nottinghamshire County Council,Other Fee's & Services,"Children, Families & Cultural Services",Debit,21.00,nottingham city co,27/04/2015
Nottinghamshire County Council,Other Fee's & Services,"Children, Families & Cultural Services",Debit,11.00,nottingham city co,23/04/2015
Nottinghamshire County Council,Personal Needs,"Children, Families & Cultural Services",Debit,8.00,tesco stores 2995,22/04/2015
Nottinghamshire County Council,Activities & Support,"Children, Families & Cultural Services",Debit,599.99,currys online,17/04/2015
Nottinghamshire County Council,Legal Fees,"Children, Families & Cultural Services",Debit,53.00,oxley  coward solicit,16/04/2015
Nottinghamshire County Council,Stationery,"Children, Families & Cultural Services",Debit,153.60,amazon svcs europesar,16/04/2015
Nottinghamshire County Council,Furniture,"Children, Families & Cultural Services",Debit,60.00,beestons cut price fu,16/04/2015
Nottinghamshire County Council,Furniture,"Children, Families & Cultural Services",Debit,130.00,beestons cut price fu,16/04/2015
Nottinghamshire County Council,Stationery,"Children, Families & Cultural Services",Debit,84.00,amazon svcs europesar,15/04/2015
Nottinghamshire County Council,Stationery,"Children, Families & Cultural Services",Debit,12.57,amazon uk marketplace,15/04/2015
Nottinghamshire County Council,Stationery,"Children, Families & Cultural Services",Debit,22.47,amazon svcs europesar,15/04/2015
Nottinghamshire County Council,Other Fee's & Services,"Children, Families & Cultural Services",Debit,11.00,nottingham city co,15/04/2015
Nottinghamshire County Council,Stationery,"Children, Families & Cultural Services",Debit,199.80,amazon svcs europesar,15/04/2015
Nottinghamshire County Council,Stationery,"Children, Families & Cultural Services",Debit,16.35,amazon uk marketplace,15/04/2015
Nottinghamshire County Council,Other Fee's & Services,"Children, Families & Cultural Services",Debit,11.00,nottingham city co,15/04/2015
Nottinghamshire County Council,Other Fee's & Services,"Children, Families & Cultural Services",Debit,9.25,gro hm passport office,14/04/2015
Nottinghamshire County Council,CLA Extra Curriculum Activities,"Children, Families & Cultural Services",Debit,345.00,www.rushcliffe.notts.s,14/04/2015
Nottinghamshire County Council,Other Fee's & Services,"Children, Families & Cultural Services",Debit,10.20,newcastle city council,14/04/2015
Nottinghamshire County Council,Other Fee's & Services,"Children, Families & Cultural Services",Debit,11.00,nottingham city co,13/04/2015
Nottinghamshire County Council,Activities & Support,"Children, Families & Cultural Services",Debit,15.00,mansfield superbowl,13/04/2015
Nottinghamshire County Council,Other Fee's & Services,"Children, Families & Cultural Services",Debit,10.00,cardiff county cou,09/04/2015
Nottinghamshire County Council,Other Fee's & Services,"Children, Families & Cultural Services",Debit,11.00,nottingham city co,09/04/2015
Nottinghamshire County Council,Other Fee's & Services,"Children, Families & Cultural Services",Debit,10.00,lincolnshire cc card p,08/04/2015
Nottinghamshire County Council,Office / General Equipment,"Children, Families & Cultural Services",Debit,7.00,tesco stores 2995,08/04/2015
Nottinghamshire County Council,Activities & Support,"Children, Families & Cultural Services",Debit,15.00,mansfield superbowl,07/04/2015
Nottinghamshire County Council,Aftercare Lodging/Hostel,"Children, Families & Cultural Services",Debit,655.00,prestige lettings  pr,07/04/2015
Nottinghamshire County Council,Activities & Support,"Children, Families & Cultural Services",Debit,12.50,mansfield superbowl,07/04/2015
Nottinghamshire County Council,Other Fee's & Services,"Children, Families & Cultural Services",Debit,11.00,nottingham city co,07/04/2015
Nottinghamshire County Council,Office / General Equipment,Environment & Resources,Debit,26.36,edmundson electrical,29/04/2015
Nottinghamshire County Council,Office / General Equipment,Environment & Resources,Debit,189.19,edmundson electrical,29/04/2015
Nottinghamshire County Council,Teaching Equipment,"Children, Families & Cultural Services",Debit,45.68,sgc,24/04/2015
Nottinghamshire County Council,Teaching Equipment,"Children, Families & Cultural Services",Debit,17.74,co op food,10/04/2015
Nottinghamshire County Council,Building Maintenance Servicing,Place ,Debit,17.98,b  q,22/04/2015
Nottinghamshire County Council,Building Maintenance Servicing,Place ,Debit,40.00,b  q,22/04/2015
Nottinghamshire County Council,Building Maintenance Servicing,Place ,Debit,17.00,b  q,22/04/2015
Nottinghamshire County Council,Building Maintenance Servicing,Place ,Debit,20.94,wilko retail limit,01/05/2015
Nottinghamshire County Council,Building Maintenance Servicing,Place ,Debit,52.50,tesco stores 5744,30/04/2015
Nottinghamshire County Council,Activities & Support,"Children, Families & Cultural Services",Debit,15.30,aldi,22/04/2015
Nottinghamshire County Council,Activities & Support,"Children, Families & Cultural Services",Debit,29.59,asda store ston in as,15/04/2015
Nottinghamshire County Council,Activities & Support,"Children, Families & Cultural Services",Debit,57.85,odeon,08/04/2015
Nottinghamshire County Council,Activities & Support,"Children, Families & Cultural Services",Debit,24.03,asda store ston in as,08/04/2015
Nottinghamshire County Council,Materials - External,Environment & Resources,Debit,59.29,staples uk,16/04/2015
Nottinghamshire County Council,Materials - External,Environment & Resources,Debit,156.97,www.staples.co.uk,15/04/2015
Nottinghamshire County Council,Building Maintenance,"Adult Social Care, Health & Public Protection ",Debit,21.70,shirley nurseries,22/04/2015
Nottinghamshire County Council,Hospitality,"Adult Social Care, Health & Public Protection ",Debit,36.71,sainsburys s/mkts,21/04/2015
Nottinghamshire County Council,Printing / Photocopying Materials,"Adult Social Care, Health & Public Protection ",Debit,35.88,dunelm ltd,20/04/2015
Nottinghamshire County Council,Office / General Equipment,"Children, Families & Cultural Services",Debit,71.89,amazon uk retail,23/04/2015
Nottinghamshire County Council,Office / General Equipment,"Adult Social Care, Health & Public Protection ",Debit,16.88,wilko retail limit,20/04/2015
Nottinghamshire County Council,Office / General Equipment,"Adult Social Care, Health & Public Protection ",Debit,37.18,moorcroft seafoods ltd,16/04/2015
Nottinghamshire County Council,Office / General Equipment,"Adult Social Care, Health & Public Protection ",Debit,16.00,wilko retail limit,09/04/2015
Nottinghamshire County Council,Office / General Equipment,"Adult Social Care, Health & Public Protection ",Debit,42.64,moorcroft seafoods ltd,09/04/2015
Nottinghamshire County Council,Materials - External,Environment & Resources,Debit,23.88,turnbull  co ltd,23/04/2015
Nottinghamshire County Council,Materials - External,Environment & Resources,Debit,8.18,buildbase newark,16/04/2015
Nottinghamshire County Council,Materials - External,Environment & Resources,Debit,64.99,newark  sherwood lock,16/04/2015
Nottinghamshire County Council,Materials - External,Environment & Resources,Debit,8.30,[Redacted],14/04/2015
Nottinghamshire County Council,Protective Clothing,Environment & Resources,Debit,498.98,forestandarb.com,17/04/2015
Nottinghamshire County Council,Office / General Equipment,Environment & Resources,Debit,99.99,amazon svcs europesar,07/04/2015
Nottinghamshire County Council,Provisions,Environment & Resources,Debit,376.49,makro self service notti,28/04/2015
Nottinghamshire County Council,Provisions,Environment & Resources,Debit,15.25,asda superstore 04030,23/04/2015
Nottinghamshire County Council,Provisions,Environment & Resources,Debit,193.42,makro self service notti,20/04/2015
Nottinghamshire County Council,Provisions,Environment & Resources,Debit,11.80,asda superstore 04030,20/04/2015
Nottinghamshire County Council,Provisions,Environment & Resources,Debit,562.14,makro self service notti,14/04/2015
Nottinghamshire County Council,Provisions,Environment & Resources,Debit,512.91,makro self service notti,08/04/2015
Nottinghamshire County Council,Provisions,Environment & Resources,Debit,3.00,co-op group 065071,08/04/2015
Nottinghamshire County Council,Personal Needs,"Children, Families & Cultural Services",Debit,5.99,www.netflix.com,01/05/2015
Nottinghamshire County Council,Training Fees,"Children, Families & Cultural Services",Debit,37.50,www.interchangecomms.c,20/04/2015
Nottinghamshire County Council,Furniture,"Children, Families & Cultural Services",Debit,180.68,pineapple contracts,15/04/2015
Nottinghamshire County Council,Activities & Support,"Children, Families & Cultural Services",Debit,9.00,asda superstore 04030,28/04/2015
Nottinghamshire County Council,Activities & Support,"Children, Families & Cultural Services",Debit,19.96,amazon uk marketplace,29/04/2015
Nottinghamshire County Council,Activities & Support,"Children, Families & Cultural Services",Debit,15.00,amazon uk retail,29/04/2015
Nottinghamshire County Council,Activities & Support,"Children, Families & Cultural Services",Debit,6.69,lidl uk,27/04/2015
Nottinghamshire County Council,Activities & Support,"Children, Families & Cultural Services",Debit,9.03,wm morrison 067,23/04/2015
Nottinghamshire County Council,Activities & Support,"Children, Families & Cultural Services",Debit,3.96,bm retail ltd,22/04/2015
Nottinghamshire County Council,Activities & Support,"Children, Families & Cultural Services",Debit,6.00,poundworld retail,22/04/2015
Nottinghamshire County Council,Activities & Support,"Children, Families & Cultural Services",Debit,10.47,wm morrison 067,20/04/2015
Nottinghamshire County Council,Office / General Equipment,Environment & Resources,Debit,14.97,one stop 2353,29/04/2015
Nottinghamshire County Council,Office / General Equipment,Environment & Resources,Debit,145.50,tv licensing,22/04/2015
Nottinghamshire County Council,Office / General Equipment,Environment & Resources,Debit,31.90,wilko retail limit,17/04/2015
Nottinghamshire County Council,Provisions,"Adult Social Care, Health & Public Protection ",Debit,2.99,w m morrison plc,29/04/2015
Nottinghamshire County Council,Provisions,"Adult Social Care, Health & Public Protection ",Debit,20.30,w m morrison plc,28/04/2015
Nottinghamshire County Council,Cleaning & Domestic Equipment,"Adult Social Care, Health & Public Protection ",Debit,6.95,w boyes  co ltd kirkb,27/04/2015
Nottinghamshire County Council,Provisions,"Adult Social Care, Health & Public Protection ",Debit,1.85,w m morrison plc,27/04/2015
Nottinghamshire County Council,Fixtures & Fittings,"Adult Social Care, Health & Public Protection ",Debit,101.98,lidl uk,23/04/2015
Nottinghamshire County Council,Provisions,"Adult Social Care, Health & Public Protection ",Debit,0.79,w m morrison plc,22/04/2015
Nottinghamshire County Council,Provisions,"Adult Social Care, Health & Public Protection ",Debit,5.80,w m morrison plc,21/04/2015
Nottinghamshire County Council,Provisions,"Adult Social Care, Health & Public Protection ",Debit,1.14,w m morrison plc,20/04/2015
Nottinghamshire County Council,Provisions,"Adult Social Care, Health & Public Protection ",Debit,3.59,w m morrison plc,17/04/2015
Nottinghamshire County Council,Cleaning & Domestic Equipment,"Adult Social Care, Health & Public Protection ",Debit,7.15,w boyes  co ltd kirkb,16/04/2015
Nottinghamshire County Council,Provisions,"Adult Social Care, Health & Public Protection ",Debit,27.93,w m morrison plc,14/04/2015
Nottinghamshire County Council,Provisions,"Adult Social Care, Health & Public Protection ",Debit,5.98,w m morrison plc,08/04/2015
Nottinghamshire County Council,Cleaning & Domestic Equipment,"Adult Social Care, Health & Public Protection ",Debit,39.99,blake and beeley,07/04/2015
Nottinghamshire County Council,Provisions,"Adult Social Care, Health & Public Protection ",Debit,11.53,w m morrison plc,07/04/2015
Nottinghamshire County Council,Other Public Transport,"Children, Families & Cultural Services",Debit,141.50,eastmidlandstrains,03/05/2015
Nottinghamshire County Council,First Aid Equipment Purchases,"Children, Families & Cultural Services",Debit,46.55,medisave (uk),01/05/2015
Nottinghamshire County Council,Exam Fees,"Children, Families & Cultural Services",Debit,18.53,amazon uk retail,28/04/2015
Nottinghamshire County Council,Exam Fees,"Children, Families & Cultural Services",Debit,384.00,texthelp lt,28/04/2015
Nottinghamshire County Council,Teaching Equipment,"Children, Families & Cultural Services",Debit,10.74,amazon uk retail,16/04/2015
Nottinghamshire County Council,Teaching Equipment,"Children, Families & Cultural Services",Debit,10.74,amazon uk retail,15/04/2015
Nottinghamshire County Council,Office / General Equipment,"Children, Families & Cultural Services",Debit,20.00,ee  t-mobile,14/04/2015
Nottinghamshire County Council,Activities & Support,"Children, Families & Cultural Services",Debit,8.30,sainsburys smkt,01/05/2015
Nottinghamshire County Council,Activities & Support,"Children, Families & Cultural Services",Debit,5.47,b  m retail,17/04/2015
Nottinghamshire County Council,Activities & Support,"Children, Families & Cultural Services",Debit,15.44,sainsburys smkt,17/04/2015
Nottinghamshire County Council,Activities & Support,"Children, Families & Cultural Services",Debit,6.05,aldi,01/05/2015
Nottinghamshire County Council,Activities & Support,"Children, Families & Cultural Services",Debit,21.83,asda store ston in as,28/04/2015
Nottinghamshire County Council,Activities & Support,"Children, Families & Cultural Services",Debit,7.00,aldi,29/04/2015
Nottinghamshire County Council,Activities & Support,"Children, Families & Cultural Services",Debit,4.90,aldi,24/04/2015
Nottinghamshire County Council,Activities & Support,"Children, Families & Cultural Services",Debit,14.55,asda store ston in as,22/04/2015
Nottinghamshire County Council,Activities & Support,"Children, Families & Cultural Services",Debit,17.50,amazon uk retail,26/04/2015
Nottinghamshire County Council,Activities & Support,"Children, Families & Cultural Services",Debit,188.10,frankie and bennys,29/04/2015
Nottinghamshire County Council,Activities & Support,"Children, Families & Cultural Services",Debit,106.00,hi gatwick london,22/04/2015
Nottinghamshire County Council,Activities & Support,"Children, Families & Cultural Services",Debit,8.00,welcome break,23/04/2015
Nottinghamshire County Council,Training Fees,"Adult Social Care, Health & Public Protection ",Debit,12.98,post office counter,24/04/2015
Nottinghamshire County Council,Teaching Equipment,"Children, Families & Cultural Services",Debit,62.35,harvey map services ltd,21/04/2015
Nottinghamshire County Council,Teaching Equipment,"Children, Families & Cultural Services",Debit,4.99,aldi,12/04/2015
Nottinghamshire County Council,Teaching Equipment,"Children, Families & Cultural Services",Debit,3.00,wm morrison store,12/04/2015
Nottinghamshire County Council,Office / General Equipment,"Adult Social Care, Health & Public Protection ",Debit,2.81,amazon svcs europesar,01/05/2015
Nottinghamshire County Council,Office / General Equipment,"Adult Social Care, Health & Public Protection ",Debit,44.99,amazon uk marketplace,30/04/2015
Nottinghamshire County Council,Office / General Equipment,"Adult Social Care, Health & Public Protection ",Debit,33.00,wilko retail limit,29/04/2015
Nottinghamshire County Council,Office / General Equipment,"Adult Social Care, Health & Public Protection ",Debit,11.74,amazon uk retail,29/04/2015
Nottinghamshire County Council,Office / General Equipment,"Adult Social Care, Health & Public Protection ",Debit,21.00,wilko retail limit,15/04/2015
Nottinghamshire County Council,Office / General Equipment,"Adult Social Care, Health & Public Protection ",Debit,106.95,moorcroft seafoods ltd,14/04/2015
Nottinghamshire County Council,Office / General Equipment,"Adult Social Care, Health & Public Protection ",Debit,48.71,w m morrison plc,09/04/2015
Nottinghamshire County Council,Materials - External,Environment & Resources,Debit,1.91,bss group plc,02/05/2015
Nottinghamshire County Council,Materials - External,Environment & Resources,Debit,2.36,bss group plc,02/05/2015
Nottinghamshire County Council,Materials - External,Environment & Resources,Debit,5.88,bss group plc,02/05/2015
Nottinghamshire County Council,Materials - External,Environment & Resources,Debit,6.26,bss group plc,02/05/2015
Nottinghamshire County Council,Materials - External,Environment & Resources,Debit,6.79,bss group plc,02/05/2015
Nottinghamshire County Council,Materials - External,Environment & Resources,Debit,8.54,bss group plc,02/05/2015
Nottinghamshire County Council,Materials - External,Environment & Resources,Debit,9.38,bss group plc,02/05/2015
Nottinghamshire County Council,Materials - External,Environment & Resources,Debit,15.26,bss group plc,02/05/2015
Nottinghamshire County Council,Materials - External,Environment & Resources,Debit,17.50,bss group plc,02/05/2015
Nottinghamshire County Council,Materials - External,Environment & Resources,Debit,20.48,bss group plc,02/05/2015
Nottinghamshire County Council,Materials - External,Environment & Resources,Debit,22.27,bss group plc,02/05/2015
Nottinghamshire County Council,Materials - External,Environment & Resources,Debit,23.86,bss group plc,02/05/2015
Nottinghamshire County Council,Materials - External,Environment & Resources,Debit,29.15,bss group plc,02/05/2015
Nottinghamshire County Council,Materials - External,Environment & Resources,Debit,34.34,bss group plc,02/05/2015
Nottinghamshire County Council,Materials - External,Environment & Resources,Debit,36.86,bss group plc,02/05/2015
Nottinghamshire County Council,Materials - External,Environment & Resources,Debit,50.00,bss group plc,02/05/2015
Nottinghamshire County Council,Materials - External,Environment & Resources,Debit,100.02,bss group plc,02/05/2015
Nottinghamshire County Council,Materials - External,Environment & Resources,Debit,0.77,bss group plc,02/05/2015
Nottinghamshire County Council,Materials - External,Environment & Resources,Debit,1.02,bss group plc,02/05/2015
Nottinghamshire County Council,Materials - External,Environment & Resources,Debit,2.75,bss group plc,02/05/2015
Nottinghamshire County Council,Materials - External,Environment & Resources,Debit,3.12,bss group plc,02/05/2015
Nottinghamshire County Council,Materials - External,Environment & Resources,Debit,6.93,bss group plc,02/05/2015
Nottinghamshire County Council,Materials - External,Environment & Resources,Debit,10.39,bss group plc,02/05/2015
Nottinghamshire County Council,Materials - External,Environment & Resources,Debit,13.44,bss group plc,02/05/2015
Nottinghamshire County Council,Materials - External,Environment & Resources,Debit,15.60,bss group plc,02/05/2015
Nottinghamshire County Council,Materials - External,Environment & Resources,Debit,16.52,bss group plc,02/05/2015
Nottinghamshire County Council,Materials - External,Environment & Resources,Debit,26.38,bss group plc,02/05/2015
Nottinghamshire County Council,Materials - External,Environment & Resources,Debit,29.99,bss group plc,02/05/2015
Nottinghamshire County Council,Materials - External,Environment & Resources,Debit,425.68,tubes fittings,24/04/2015
Nottinghamshire County Council,Materials - External,Environment & Resources,Debit,467.36,tubes fittings,23/04/2015
Nottinghamshire County Council,Materials - External,Environment & Resources,Debit,474.36,tubes fittings,23/04/2015
Nottinghamshire County Council,Materials - External,Environment & Resources,Debit,204.46,tubes fittings,23/04/2015
Nottinghamshire County Council,Materials - External,Environment & Resources,Debit,286.58,tubes fittings,13/04/2015
Nottinghamshire County Council,Materials - External,Environment & Resources,Debit,14.04,bss group plc,09/04/2015
Nottinghamshire County Council,Materials - External,Environment & Resources,Debit,13.74,bss group plc,09/04/2015
Nottinghamshire County Council,Materials - External,Environment & Resources,Debit,44.63,bss group plc,09/04/2015
Nottinghamshire County Council,Materials - External,Environment & Resources,Debit,9.91,bss group plc,09/04/2015
Nottinghamshire County Council,Materials - External,Environment & Resources,Debit,418.62,tubes fittings,07/04/2015
Nottinghamshire County Council,Materials - External,Environment & Resources,Debit,482.78,tubes fittings,07/04/2015
Nottinghamshire County Council,Materials - External,Environment & Resources,Debit,437.53,tubes fittings,07/04/2015
Nottinghamshire County Council,Materials - External,Environment & Resources,Debit,456.32,tubes fittings,07/04/2015
Nottinghamshire County Council,Materials - External,Environment & Resources,Debit,120.96,tubes fittings,07/04/2015
Nottinghamshire County Council,Materials - External,Environment & Resources,Debit,39.54,tubes fittings,07/04/2015
Nottinghamshire County Council,Office / General Equipment,Place,Debit,15.50,keyline nottingham,30/04/2015
Nottinghamshire County Council,Office / General Equipment,Place,Debit,6.20,keyline nottingham,30/04/2015
Nottinghamshire County Council,Office / General Equipment,Place,Debit,7.09,keyline nottingham,22/04/2015
Nottinghamshire County Council,Office / General Equipment,Place,Debit,23.90,keyline nottingham,22/04/2015
Nottinghamshire County Council,Office / General Equipment,Place,Debit,107.64,burdens,17/04/2015
Nottinghamshire County Council,Office / General Equipment,Place,Debit,51.26,keyline nottingham,10/04/2015
Nottinghamshire County Council,Office / General Equipment,Place,Debit,89.70,burdens,08/04/2015
Nottinghamshire County Council,Office / General Equipment,Place,Debit,118.80,burdens,08/04/2015
Nottinghamshire County Council,Office / General Equipment,Place,Debit,15.95,s jeyes  son (midland,22/04/2015
Nottinghamshire County Council,Provisions,"Adult Social Care, Health & Public Protection ",Debit,5.88,co-op group 310059,01/05/2015
Nottinghamshire County Council,Cleaning & Domestic Equipment,"Adult Social Care, Health & Public Protection ",Debit,4.20,wilko retail limit,30/04/2015
Nottinghamshire County Council,Provisions,"Adult Social Care, Health & Public Protection ",Debit,140.33,tesco stores 3297,28/04/2015
Nottinghamshire County Council,Provisions,"Adult Social Care, Health & Public Protection ",Debit,16.46,w m morrison,21/04/2015
Nottinghamshire County Council,Provisions,"Adult Social Care, Health & Public Protection ",Debit,2.80,sainsburys s/mkt,17/04/2015
Nottinghamshire County Council,Provisions,"Adult Social Care, Health & Public Protection ",Debit,122.53,tesco stores 3297,14/04/2015
Nottinghamshire County Council,Provisions,"Adult Social Care, Health & Public Protection ",Debit,6.00,asda superstore,13/04/2015
Nottinghamshire County Council,Provisions,"Adult Social Care, Health & Public Protection ",Debit,22.05,sainsburys s/mkt,09/04/2015
Nottinghamshire County Council,Provisions,"Adult Social Care, Health & Public Protection ",Debit,9.53,lidl uk,08/04/2015
Nottinghamshire County Council,Provisions,"Adult Social Care, Health & Public Protection ",Debit,3.00,tesco delivery saver2,07/04/2015
Nottinghamshire County Council,Hospitality,"Children, Families & Cultural Services",Debit,94.50,ms e commerce,20/04/2015
Nottinghamshire County Council,Hospitality,"Children, Families & Cultural Services",Debit,70.00,ms e commerce,20/04/2015
Nottinghamshire County Council,Hospitality,"Children, Families & Cultural Services",Debit,176.40,key industrial equipment,09/04/2015
Nottinghamshire County Council,Hospitality,"Children, Families & Cultural Services",Debit,30.00,british library-online,09/04/2015
Nottinghamshire County Council,Activities & Support,"Children, Families & Cultural Services",Debit,15.15,tesco stores 5437,01/05/2015
Nottinghamshire County Council,Activities & Support,"Children, Families & Cultural Services",Debit,4.00,tesco stores 5437,24/04/2015
Nottinghamshire County Council,Activities & Support,"Children, Families & Cultural Services",Debit,0.55,tesco stores 5437,24/04/2015
Nottinghamshire County Council,Activities & Support,"Children, Families & Cultural Services",Debit,9.65,tesco stores 5379,17/04/2015
Nottinghamshire County Council,Activities & Support,"Children, Families & Cultural Services",Debit,4.77,tesco stores 5437,10/04/2015
Nottinghamshire County Council,Activities & Support,"Children, Families & Cultural Services",Debit,16.80,tesco stores 5379,03/04/2015
Nottinghamshire County Council,Activities & Support,"Children, Families & Cultural Services",Debit,8.00,the black pearl,30/04/2015
Nottinghamshire County Council,Activities & Support,"Children, Families & Cultural Services",Debit,3.24,tesco stores 5437,30/04/2015
Nottinghamshire County Council,Activities & Support,"Children, Families & Cultural Services",Debit,43.96,tesco stores 5437,28/04/2015
Nottinghamshire County Council,Activities & Support,"Children, Families & Cultural Services",Debit,4.19,jtf wholesale ltd,27/04/2015
Nottinghamshire County Council,Office / General Equipment,"Children, Families & Cultural Services",Debit,12.50,b  q,07/04/2015
Nottinghamshire County Council,Office / General Equipment,"Children, Families & Cultural Services",Debit,12.50,b  q,07/04/2015
Nottinghamshire County Council,Personal Needs,"Children, Families & Cultural Services",Debit,7.00,asda superstore 04261,03/05/2015
Nottinghamshire County Council,Provisions,"Children, Families & Cultural Services",Debit,101.14,asda superstore 04261,03/05/2015
Nottinghamshire County Council,Office / General Equipment,"Children, Families & Cultural Services",Debit,23.48,bm retail ltd,27/04/2015
Nottinghamshire County Council,Office / General Equipment,"Children, Families & Cultural Services",Debit,7.99,bm retail ltd,26/04/2015
Nottinghamshire County Council,Provisions,"Children, Families & Cultural Services",Debit,89.26,tesco stores 5437,20/04/2015
Nottinghamshire County Council,Cleaning & Domestic Equipment,"Children, Families & Cultural Services",Debit,7.00,tesco stores 5437,20/04/2015
Nottinghamshire County Council,Office / General Equipment,"Children, Families & Cultural Services",Debit,25.83,poundstretcher 136,18/04/2015
Nottinghamshire County Council,Office / General Equipment,"Children, Families & Cultural Services",Debit,9.95,home bargains,18/04/2015
Nottinghamshire County Council,Cleaning & Domestic Equipment,"Children, Families & Cultural Services",Debit,100.36,the range nottinghamsh,14/04/2015
Nottinghamshire County Council,Office / General Equipment,"Children, Families & Cultural Services",Debit,28.00,wembley park,10/04/2015
Nottinghamshire County Council,Holidays,"Children, Families & Cultural Services",Debit,36.00,lul ticket machine,10/04/2015
Nottinghamshire County Council,Office / General Equipment,"Children, Families & Cultural Services",Debit,249.15,ikea,08/04/2015
Nottinghamshire County Council,Provisions,"Children, Families & Cultural Services",Debit,104.69,tesco stores 5437,07/04/2015
Nottinghamshire County Council,Office / General Equipment,"Adult Social Care, Health & Public Protection ",Debit,18.90,post office counter,28/04/2015
Nottinghamshire County Council,Office / General Equipment,"Adult Social Care, Health & Public Protection ",Debit,167.50,timpson ltd,27/04/2015
Nottinghamshire County Council,Personal Needs,"Children, Families & Cultural Services",Debit,5.00,www.postoffice.co.uk,02/05/2015
Nottinghamshire County Council,Personal Needs,"Children, Families & Cultural Services",Debit,15.00,hmcourts-service.g,01/05/2015
Nottinghamshire County Council,Personal Needs,"Children, Families & Cultural Services",Debit,10.00,hmcourts-service.g,07/04/2015
Nottinghamshire County Council,Activities & Support,"Children, Families & Cultural Services",Debit,8.50,w m morrison plc,01/05/2015
Nottinghamshire County Council,Activities & Support,"Children, Families & Cultural Services",Debit,0.90,w m morrison plc,29/04/2015
Nottinghamshire County Council,Activities & Support,"Children, Families & Cultural Services",Debit,3.78,the post office,29/04/2015
Nottinghamshire County Council,Activities & Support,"Children, Families & Cultural Services",Debit,3.50,farmfoods- kirkby/,28/04/2015
Nottinghamshire County Council,Activities & Support,"Children, Families & Cultural Services",Debit,5.00,tesco stores 2702,29/04/2015
Nottinghamshire County Council,Activities & Support,"Children, Families & Cultural Services",Debit,45.00,currys,27/04/2015
Nottinghamshire County Council,Activities & Support,"Children, Families & Cultural Services",Debit,4.29,farmfoods- kirkby/,23/04/2015
Nottinghamshire County Council,Activities & Support,"Children, Families & Cultural Services",Debit,21.50,w m morrison plc,24/04/2015
Nottinghamshire County Council,Activities & Support,"Children, Families & Cultural Services",Debit,17.30,w m morrison plc,21/04/2015
Nottinghamshire County Council,Cleaning Materials,"Children, Families & Cultural Services",Debit,17.50,currys,11/04/2015
Nottinghamshire County Council,Other Fee's & Services,Environment & Resources,Debit,270.00,gedling brgh counc,27/04/2015
Nottinghamshire County Council,Other Fee's & Services,Environment & Resources,Debit,"2,594.22",severn tren water,22/04/2015
Nottinghamshire County Council,Materials - External,Environment & Resources,Debit,"1,172.40",paypal  ,20/04/2015
Nottinghamshire County Council,Books - General,Environment & Resources,Debit,48.20,www.aps.org.uk,17/04/2015
Nottinghamshire County Council,Books - General,Environment & Resources,Debit,83.50,www.thefpa.co.uk,16/04/2015
Nottinghamshire County Council,Office / General Equipment,Environment & Resources,Debit,42.99,amazon svcs europesar,13/04/2015
Nottinghamshire County Council,Staff Training,Environment & Resources,Debit,60.50,radar communications l,10/04/2015
Nottinghamshire County Council,Personal Needs,"Children, Families & Cultural Services",Debit,71.75,sky subscription,28/04/2015
Nottinghamshire County Council,Provisions,"Children, Families & Cultural Services",Debit,14.30,yorkshire wildlife par,07/04/2015
Nottinghamshire County Council,Personal Needs,"Children, Families & Cultural Services",Debit,29.00,yorkshire wildlife par,07/04/2015
Nottinghamshire County Council,Provisions,"Adult Social Care, Health & Public Protection ",Debit,177.37,w m morrisons.com,30/04/2015
Nottinghamshire County Council,Provisions,"Adult Social Care, Health & Public Protection ",Debit,50.23,w m morrisons.com,06/04/2015
Nottinghamshire County Council,Activities & Support,"Children, Families & Cultural Services",Debit,24.60,asda superstore 04030,28/04/2015
Nottinghamshire County Council,Activities & Support,"Children, Families & Cultural Services",Debit,19.51,amazon svcs europesar,24/04/2015
Nottinghamshire County Council,Activities & Support,"Children, Families & Cultural Services",Debit,30.75,trainline.com,22/04/2015
Nottinghamshire County Council,Activities & Support,"Children, Families & Cultural Services",Debit,10.95,sainsburys s/mkts,14/04/2015
Nottinghamshire County Council,Activities & Support,"Children, Families & Cultural Services",Debit,15.00,sainsburys smkt,14/04/2015
Nottinghamshire County Council,Provisions,"Children, Families & Cultural Services",Debit,112.00,judson signs ltd,16/04/2015
Nottinghamshire County Council,Office / General Equipment,Resources,Debit,215.99,next directory,20/04/2015
Nottinghamshire County Council,Activities & Support,"Children, Families & Cultural Services",Debit,13.30,tesco stores 5437,22/04/2015
Nottinghamshire County Council,Office / General Equipment,"Children, Families & Cultural Services",Debit,262.80,the art department,29/04/2015
Nottinghamshire County Council,Office / General Equipment,"Children, Families & Cultural Services",Debit,72.00,offscreen,17/04/2015
Nottinghamshire County Council,Office / General Equipment,"Children, Families & Cultural Services",Debit,225.00,just wipe ltd,14/04/2015
Nottinghamshire County Council,Office / General Equipment,"Children, Families & Cultural Services",Debit,201.60,the art department,08/04/2015
Nottinghamshire County Council,Office / General Equipment,"Children, Families & Cultural Services",Debit,234.00,the art department,08/04/2015
Nottinghamshire County Council,Aftercare - Equipment,"Children, Families & Cultural Services",Debit,61.50,sainsburys s/mkts,01/05/2015
Nottinghamshire County Council,Aftercare - Equipment,"Children, Families & Cultural Services",Debit,32.00,sainsburys s/mkts,22/04/2015
Nottinghamshire County Council,Aftercare - Equipment,"Children, Families & Cultural Services",Debit,159.99,currys-worksop 2369,22/04/2015
Nottinghamshire County Council,Clients - H & S Equipt,"Children, Families & Cultural Services",Debit,9.69,wm morrison store,20/04/2015
Nottinghamshire County Council,Aftercare - Equipment,"Children, Families & Cultural Services",Debit,41.33,sainsburys s/mkts,07/04/2015
Nottinghamshire County Council,Aftercare - Equipment,"Children, Families & Cultural Services",Debit,36.90,tesco stores-3439,04/04/2015
Nottinghamshire County Council,Office / General Equipment,"Adult Social Care, Health & Public Protection ",Debit,4.98,b  q,01/05/2015
Nottinghamshire County Council,Office / General Equipment,"Adult Social Care, Health & Public Protection ",Debit,7.07,b  q,01/05/2015
Nottinghamshire County Council,Office / General Equipment,"Adult Social Care, Health & Public Protection ",Debit,7.07,b  q,01/05/2015
Nottinghamshire County Council,Office / General Equipment,"Adult Social Care, Health & Public Protection ",Debit,12.83,b  q,01/05/2015
Nottinghamshire County Council,Office / General Equipment,"Adult Social Care, Health & Public Protection ",Debit,22.00,b  q,01/05/2015
Nottinghamshire County Council,Office / General Equipment,"Adult Social Care, Health & Public Protection ",Debit,34.80,1st access,01/05/2015
Nottinghamshire County Council,Office / General Equipment,"Adult Social Care, Health & Public Protection ",Debit,13.95,amazon svcs europesar,21/04/2015
Nottinghamshire County Council,Office / General Equipment,"Children, Families & Cultural Services",Debit,19.14,waitrose 227,01/05/2015
Nottinghamshire County Council,Office / General Equipment,"Children, Families & Cultural Services",Debit,60.00,john lewis,24/04/2015
Nottinghamshire County Council,Office / General Equipment,"Children, Families & Cultural Services",Debit,153.50,ikea,21/04/2015
Nottinghamshire County Council,Office / General Equipment,"Children, Families & Cultural Services",Debit,51.00,ikea,21/04/2015
Nottinghamshire County Council,Office / General Equipment,"Children, Families & Cultural Services",Debit,203.93,argos retail group,07/04/2015
Nottinghamshire County Council,Staff Training,Environment & Resources,Debit,332.00,seymour hotels ltd,30/04/2015
Nottinghamshire County Council,General Employee Exps,Environment & Resources,Debit,65.00,281 restaurant  rooms,27/04/2015
Nottinghamshire County Council,home to school transport,Environment & Resources,Debit,318.00,c n unwin ltd,21/04/2015
Nottinghamshire County Council,Activities & Support,Environment & Resources,Credit,-72.90,premier inn 44529775,15/04/2015
Nottinghamshire County Council,Subsistence Allowance,Environment & Resources,Credit,-284.25,premier inn44020520,14/04/2015
